{"text_format":"1","workbook":"xlsx","n_sheets":12,"sheets":["Accueil","Demande","Rapport","Agenda","OLSA Mensuelle","OLSA Semestrielle","OLSA Annuelle","BJA Mensuelle","BJA Annuelle","Planning","Listes","Paramètres"],"not_rendered":{"charts":0,"images":12,"macros":1,"external_links":0,"defined_names":56,"comments":0,"pivot_tables":0},"unopened":[],"bounds":{"document_bytes":16777216,"sheet_cells":100000,"rows_first":2000,"rows_last":500,"rows_between":2000,"halvings":0,"cell_chars":16384,"cell_head_chars":4096},"cells_cut":0,"cells_raw":0,"read":"whole","date_system":"1900"}

{"sheet":"Accueil","index":0,"n_rows":4,"n_cols":3,"rows_kept":4,"cut":false,"hidden":false,"merged":[[2,2,2,6],[3,2,3,6]]}
[]
[]
[null,null,{"$f":"Raison_Sociale","v":",,,"}]
[null,null,{"$f":"Titre","v":"Demande d'intervention"}]

{"sheet":"Demande","index":1,"n_rows":15,"n_cols":10,"rows_kept":15,"cut":false,"hidden":false,"merged":[[0,0,0,5]]}
["Fichier demande d'intervention"]
[]
["Date","Demandeur","Priorité","Equipement","Problème rencontré","Observation",null,null,"CARACTERISTIQUE","CARACTERISTIQUE"]
["2016-08-03T10:05:46","BOUSQUIE Stéphane","Haute","MACEF NOIR","Problème de chauffe","aaaa"]
["2016-07-06T15:22:08","Adrien","Haute","MACEF  BLEU CLAIR","Vanne de vidange","sqsqsq"]
["2016-07-06T15:16:51","ETN","Haute","MACEF JAUNE","Vanne d'intro","zzdd"]
["2016-07-06T15:12:52","ETN","Haute","MACEF  BLEU CLAIR","Vanne de vidange","aaa"]
["2016-07-04T11:45:57","exemple","Faible","KALIX KX60","Le vide","vide"]
["2016-07-04T10:20:18","Adrien","Priorité","Equipement","Panne","qq"]
["2016-07-04T09:51:56","Demandeur","Priorité","Equipement","Panne","z"]
["2016-07-04T09:49:35","Philippe","Haute","MACEF JAUNE","Vanne de vidange","aaa"]
["2016-05-27T16:28:04","ETN","Moyenne","MACEF MARINE",null,"r"]
["2016-05-27T16:26:07","Adrien","Haute","MACEF MARINE","Vanne d'intro","peyrichou peyrichou !!"]
["2016-05-23T13:38:34","Fabrice","Faible","DELAU 209",null,"jujujj"]
["2016-05-19T11:58:36","exemple"]

{"sheet":"Rapport","index":2,"n_rows":15,"n_cols":9,"rows_kept":15,"cut":false,"hidden":false,"merged":[[0,0,0,5]]}
["Fichier de rapport d'intervention"]
[]
["Date","Demandeur","Priorité","Equipement","Observation technique","Etat",null,"CARACTERISTIQUE","CARACTERISTIQUE"]
["2016-08-03T10:05:46","BOUSQUIE Stéphane","Haute","MACEF NOIR"]
["2016-07-06T15:22:08","Adrien","Haute","MACEF  BLEU CLAIR","ssxxxx","Terminé"]
["2016-07-06T15:16:51","ETN","Haute","MACEF JAUNE"]
["2016-07-06T15:12:52","ETN","Haute","MACEF  BLEU CLAIR","aqqq","En cours"]
["2016-07-04T11:45:57","exemple","Faible","KALIX KX60","ok","En cours"]
["2016-07-04T10:20:18","Adrien","Priorité","Equipement","hhhhhhhhhhh","Terminé"]
["2016-07-04T09:51:56","Demandeur","Priorité","Equipement"]
["2016-07-04T09:49:35","Philippe","Haute","MACEF JAUNE"]
["2016-05-27T16:28:04","ETN","Moyenne","MACEF MARINE"]
["2016-05-27T16:26:07","Adrien","Haute","MACEF MARINE"]
["2016-05-19T11:58:36","exemple"]
["2016-05-23T13:38:34","Fabrice","Faible","DELAU 209","jujujj"]

{"sheet":"Agenda","index":3,"n_rows":60,"n_cols":17,"rows_kept":60,"cut":false,"hidden":false,"merged":[[0,10,0,13],[2,1,2,7],[2,9,2,15],[12,1,12,7],[12,9,12,15],[5,17,6,19],[52,1,52,7],[52,9,52,15],[22,1,22,7],[22,9,22,15],[32,1,32,7],[32,9,32,15],[42,1,42,7],[42,9,42,15]]}
[null,null,null,null,null,null,"Préventif pour",null,null,null,2016]
[]
[null,"JANVIER",null,null,null,null,null,null,null,"FÉVRIER"]
[null,"L","M","M","J","V","S","D",null,"L","M","M","J","V","S","D"]
[null,{"$f":"IF(DAY(Jan_Dim1)=1,\"\",IF(AND(YEAR(Jan_Dim1+1)=Année_Calendaire,MONTH(Jan_Dim1+1)=1),Jan_Dim1+1,\"\"))","v":""},{"$f":"IF(DAY(Jan_Dim1)=1,\"\",IF(AND(YEAR(Jan_Dim1+2)=Année_Calendaire,MONTH(Jan_Dim1+2)=1),Jan_Dim1+2,\"\"))","v":""},{"$f":"IF(DAY(Jan_Dim1)=1,\"\",IF(AND(YEAR(Jan_Dim1+3)=Année_Calendaire,MONTH(Jan_Dim1+3)=1),Jan_Dim1+3,\"\"))","v":""},{"$f":"IF(DAY(Jan_Dim1)=1,\"\",IF(AND(YEAR(Jan_Dim1+4)=Année_Calendaire,MONTH(Jan_Dim1+4)=1),Jan_Dim1+4,\"\"))","v":""},{"$f":"IF(DAY(Jan_Dim1)=1,\"\",IF(AND(YEAR(Jan_Dim1+5)=Année_Calendaire,MONTH(Jan_Dim1+5)=1),Jan_Dim1+5,\"\"))","v":"2016-01-01"},{"$f":"IF(DAY(Jan_Dim1)=1,\"\",IF(AND(YEAR(Jan_Dim1+6)=Année_Calendaire,MONTH(Jan_Dim1+6)=1),Jan_Dim1+6,\"\"))","v":"2016-01-02"},{"$f":"IF(DAY(Jan_Dim1)=1,IF(AND(YEAR(Jan_Dim1)=Année_Calendaire,MONTH(Jan_Dim1)=1),Jan_Dim1,\"\"),IF(AND(YEAR(Jan_Dim1+7)=Année_Calendaire,MONTH(Jan_Dim1+7)=1),Jan_Dim1+7,\"\"))","v":"2016-01-03"},null,{"$f":"IF(DAY(Fév_Dim1)=1,\"\",IF(AND(YEAR(Fév_Dim1+1)=Année_Calendaire,MONTH(Fév_Dim1+1)=2),Fév_Dim1+1,\"\"))","v":"2016-02-01"},{"$f":"IF(DAY(Fév_Dim1)=1,\"\",IF(AND(YEAR(Fév_Dim1+2)=Année_Calendaire,MONTH(Fév_Dim1+2)=2),Fév_Dim1+2,\"\"))","v":"2016-02-02"},{"$f":"IF(DAY(Fév_Dim1)=1,\"\",IF(AND(YEAR(Fév_Dim1+3)=Année_Calendaire,MONTH(Fév_Dim1+3)=2),Fév_Dim1+3,\"\"))","v":"2016-02-03"},{"$f":"IF(DAY(Fév_Dim1)=1,\"\",IF(AND(YEAR(Fév_Dim1+4)=Année_Calendaire,MONTH(Fév_Dim1+4)=2),Fév_Dim1+4,\"\"))","v":"2016-02-04"},{"$f":"IF(DAY(Fév_Dim1)=1,\"\",IF(AND(YEAR(Fév_Dim1+5)=Année_Calendaire,MONTH(Fév_Dim1+5)=2),Fév_Dim1+5,\"\"))","v":"2016-02-05"},{"$f":"IF(DAY(Fév_Dim1)=1,\"\",IF(AND(YEAR(Fév_Dim1+6)=Année_Calendaire,MONTH(Fév_Dim1+6)=2),Fév_Dim1+6,\"\"))","v":"2016-02-06"},{"$f":"IF(DAY(Fév_Dim1)=1,IF(AND(YEAR(Fév_Dim1)=Année_Calendaire,MONTH(Fév_Dim1)=2),Fév_Dim1,\"\"),IF(AND(YEAR(Fév_Dim1+7)=Année_Calendaire,MONTH(Fév_Dim1+7)=2),Fév_Dim1+7,\"\"))","v":"2016-02-07"}]
[null,{"$f":"IF(DAY(Jan_Dim1)=1,IF(AND(YEAR(Jan_Dim1+1)=Année_Calendaire,MONTH(Jan_Dim1+1)=1),Jan_Dim1+1,\"\"),IF(AND(YEAR(Jan_Dim1+8)=Année_Calendaire,MONTH(Jan_Dim1+8)=1),Jan_Dim1+8,\"\"))","v":"2016-01-04"},{"$f":"IF(DAY(Jan_Dim1)=1,IF(AND(YEAR(Jan_Dim1+2)=Année_Calendaire,MONTH(Jan_Dim1+2)=1),Jan_Dim1+2,\"\"),IF(AND(YEAR(Jan_Dim1+9)=Année_Calendaire,MONTH(Jan_Dim1+9)=1),Jan_Dim1+9,\"\"))","v":"2016-01-05"},{"$f":"IF(DAY(Jan_Dim1)=1,IF(AND(YEAR(Jan_Dim1+3)=Année_Calendaire,MONTH(Jan_Dim1+3)=1),Jan_Dim1+3,\"\"),IF(AND(YEAR(Jan_Dim1+10)=Année_Calendaire,MONTH(Jan_Dim1+10)=1),Jan_Dim1+10,\"\"))","v":"2016-01-06"},{"$f":"IF(DAY(Jan_Dim1)=1,IF(AND(YEAR(Jan_Dim1+4)=Année_Calendaire,MONTH(Jan_Dim1+4)=1),Jan_Dim1+4,\"\"),IF(AND(YEAR(Jan_Dim1+11)=Année_Calendaire,MONTH(Jan_Dim1+11)=1),Jan_Dim1+11,\"\"))","v":"2016-01-07"},{"$f":"IF(DAY(Jan_Dim1)=1,IF(AND(YEAR(Jan_Dim1+5)=Année_Calendaire,MONTH(Jan_Dim1+5)=1),Jan_Dim1+5,\"\"),IF(AND(YEAR(Jan_Dim1+12)=Année_Calendaire,MONTH(Jan_Dim1+12)=1),Jan_Dim1+12,\"\"))","v":"2016-01-08"},{"$f":"IF(DAY(Jan_Dim1)=1,IF(AND(YEAR(Jan_Dim1+6)=Année_Calendaire,MONTH(Jan_Dim1+6)=1),Jan_Dim1+6,\"\"),IF(AND(YEAR(Jan_Dim1+13)=Année_Calendaire,MONTH(Jan_Dim1+13)=1),Jan_Dim1+13,\"\"))","v":"2016-01-09"},{"$f":"IF(DAY(Jan_Dim1)=1,IF(AND(YEAR(Jan_Dim1+7)=Année_Calendaire,MONTH(Jan_Dim1+7)=1),Jan_Dim1+7,\"\"),IF(AND(YEAR(Jan_Dim1+14)=Année_Calendaire,MONTH(Jan_Dim1+14)=1),Jan_Dim1+14,\"\"))","v":"2016-01-10"},null,{"$f":"IF(DAY(Fév_Dim1)=1,IF(AND(YEAR(Fév_Dim1+1)=Année_Calendaire,MONTH(Fév_Dim1+1)=2),Fév_Dim1+1,\"\"),IF(AND(YEAR(Fév_Dim1+8)=Année_Calendaire,MONTH(Fév_Dim1+8)=2),Fév_Dim1+8,\"\"))","v":"2016-02-08"},{"$f":"IF(DAY(Fév_Dim1)=1,IF(AND(YEAR(Fév_Dim1+2)=Année_Calendaire,MONTH(Fév_Dim1+2)=2),Fév_Dim1+2,\"\"),IF(AND(YEAR(Fév_Dim1+9)=Année_Calendaire,MONTH(Fév_Dim1+9)=2),Fév_Dim1+9,\"\"))","v":"2016-02-09"},{"$f":"IF(DAY(Fév_Dim1)=1,IF(AND(YEAR(Fév_Dim1+3)=Année_Calendaire,MONTH(Fév_Dim1+3)=2),Fév_Dim1+3,\"\"),IF(AND(YEAR(Fév_Dim1+10)=Année_Calendaire,MONTH(Fév_Dim1+10)=2),Fév_Dim1+10,\"\"))","v":"2016-02-10"},{"$f":"IF(DAY(Fév_Dim1)=1,IF(AND(YEAR(Fév_Dim1+4)=Année_Calendaire,MONTH(Fév_Dim1+4)=2),Fév_Dim1+4,\"\"),IF(AND(YEAR(Fév_Dim1+11)=Année_Calendaire,MONTH(Fév_Dim1+11)=2),Fév_Dim1+11,\"\"))","v":"2016-02-11"},{"$f":"IF(DAY(Fév_Dim1)=1,IF(AND(YEAR(Fév_Dim1+5)=Année_Calendaire,MONTH(Fév_Dim1+5)=2),Fév_Dim1+5,\"\"),IF(AND(YEAR(Fév_Dim1+12)=Année_Calendaire,MONTH(Fév_Dim1+12)=2),Fév_Dim1+12,\"\"))","v":"2016-02-12"},{"$f":"IF(DAY(Fév_Dim1)=1,IF(AND(YEAR(Fév_Dim1+6)=Année_Calendaire,MONTH(Fév_Dim1+6)=2),Fév_Dim1+6,\"\"),IF(AND(YEAR(Fév_Dim1+13)=Année_Calendaire,MONTH(Fév_Dim1+13)=2),Fév_Dim1+13,\"\"))","v":"2016-02-13"},{"$f":"IF(DAY(Fév_Dim1)=1,IF(AND(YEAR(Fév_Dim1+7)=Année_Calendaire,MONTH(Fév_Dim1+7)=2),Fév_Dim1+7,\"\"),IF(AND(YEAR(Fév_Dim1+14)=Année_Calendaire,MONTH(Fév_Dim1+14)=2),Fév_Dim1+14,\"\"))","v":"2016-02-14"}]
[null,{"$f":"IF(DAY(Jan_Dim1)=1,IF(AND(YEAR(Jan_Dim1+8)=Année_Calendaire,MONTH(Jan_Dim1+8)=1),Jan_Dim1+8,\"\"),IF(AND(YEAR(Jan_Dim1+15)=Année_Calendaire,MONTH(Jan_Dim1+15)=1),Jan_Dim1+15,\"\"))","v":"2016-01-11"},{"$f":"IF(DAY(Jan_Dim1)=1,IF(AND(YEAR(Jan_Dim1+9)=Année_Calendaire,MONTH(Jan_Dim1+9)=1),Jan_Dim1+9,\"\"),IF(AND(YEAR(Jan_Dim1+16)=Année_Calendaire,MONTH(Jan_Dim1+16)=1),Jan_Dim1+16,\"\"))","v":"2016-01-12"},{"$f":"IF(DAY(Jan_Dim1)=1,IF(AND(YEAR(Jan_Dim1+10)=Année_Calendaire,MONTH(Jan_Dim1+10)=1),Jan_Dim1+10,\"\"),IF(AND(YEAR(Jan_Dim1+17)=Année_Calendaire,MONTH(Jan_Dim1+17)=1),Jan_Dim1+17,\"\"))","v":"2016-01-13"},{"$f":"IF(DAY(Jan_Dim1)=1,IF(AND(YEAR(Jan_Dim1+11)=Année_Calendaire,MONTH(Jan_Dim1+11)=1),Jan_Dim1+11,\"\"),IF(AND(YEAR(Jan_Dim1+18)=Année_Calendaire,MONTH(Jan_Dim1+18)=1),Jan_Dim1+18,\"\"))","v":"2016-01-14"},{"$f":"IF(DAY(Jan_Dim1)=1,IF(AND(YEAR(Jan_Dim1+12)=Année_Calendaire,MONTH(Jan_Dim1+12)=1),Jan_Dim1+12,\"\"),IF(AND(YEAR(Jan_Dim1+19)=Année_Calendaire,MONTH(Jan_Dim1+19)=1),Jan_Dim1+19,\"\"))","v":"2016-01-15"},{"$f":"IF(DAY(Jan_Dim1)=1,IF(AND(YEAR(Jan_Dim1+13)=Année_Calendaire,MONTH(Jan_Dim1+13)=1),Jan_Dim1+13,\"\"),IF(AND(YEAR(Jan_Dim1+20)=Année_Calendaire,MONTH(Jan_Dim1+20)=1),Jan_Dim1+20,\"\"))","v":"2016-01-16"},{"$f":"IF(DAY(Jan_Dim1)=1,IF(AND(YEAR(Jan_Dim1+14)=Année_Calendaire,MONTH(Jan_Dim1+14)=1),Jan_Dim1+14,\"\"),IF(AND(YEAR(Jan_Dim1+21)=Année_Calendaire,MONTH(Jan_Dim1+21)=1),Jan_Dim1+21,\"\"))","v":"2016-01-17"},null,{"$f":"IF(DAY(Fév_Dim1)=1,IF(AND(YEAR(Fév_Dim1+8)=Année_Calendaire,MONTH(Fév_Dim1+8)=2),Fév_Dim1+8,\"\"),IF(AND(YEAR(Fév_Dim1+15)=Année_Calendaire,MONTH(Fév_Dim1+15)=2),Fév_Dim1+15,\"\"))","v":"2016-02-15"},{"$f":"IF(DAY(Fév_Dim1)=1,IF(AND(YEAR(Fév_Dim1+9)=Année_Calendaire,MONTH(Fév_Dim1+9)=2),Fév_Dim1+9,\"\"),IF(AND(YEAR(Fév_Dim1+16)=Année_Calendaire,MONTH(Fév_Dim1+16)=2),Fév_Dim1+16,\"\"))","v":"2016-02-16"},{"$f":"IF(DAY(Fév_Dim1)=1,IF(AND(YEAR(Fév_Dim1+10)=Année_Calendaire,MONTH(Fév_Dim1+10)=2),Fév_Dim1+10,\"\"),IF(AND(YEAR(Fév_Dim1+17)=Année_Calendaire,MONTH(Fév_Dim1+17)=2),Fév_Dim1+17,\"\"))","v":"2016-02-17"},{"$f":"IF(DAY(Fév_Dim1)=1,IF(AND(YEAR(Fév_Dim1+11)=Année_Calendaire,MONTH(Fév_Dim1+11)=2),Fév_Dim1+11,\"\"),IF(AND(YEAR(Fév_Dim1+18)=Année_Calendaire,MONTH(Fév_Dim1+18)=2),Fév_Dim1+18,\"\"))","v":"2016-02-18"},{"$f":"IF(DAY(Fév_Dim1)=1,IF(AND(YEAR(Fév_Dim1+12)=Année_Calendaire,MONTH(Fév_Dim1+12)=2),Fév_Dim1+12,\"\"),IF(AND(YEAR(Fév_Dim1+19)=Année_Calendaire,MONTH(Fév_Dim1+19)=2),Fév_Dim1+19,\"\"))","v":"2016-02-19"},{"$f":"IF(DAY(Fév_Dim1)=1,IF(AND(YEAR(Fév_Dim1+13)=Année_Calendaire,MONTH(Fév_Dim1+13)=2),Fév_Dim1+13,\"\"),IF(AND(YEAR(Fév_Dim1+20)=Année_Calendaire,MONTH(Fév_Dim1+20)=2),Fév_Dim1+20,\"\"))","v":"2016-02-20"},{"$f":"IF(DAY(Fév_Dim1)=1,IF(AND(YEAR(Fév_Dim1+14)=Année_Calendaire,MONTH(Fév_Dim1+14)=2),Fév_Dim1+14,\"\"),IF(AND(YEAR(Fév_Dim1+21)=Année_Calendaire,MONTH(Fév_Dim1+21)=2),Fév_Dim1+21,\"\"))","v":"2016-02-21"}]
[null,{"$f":"IF(DAY(Jan_Dim1)=1,IF(AND(YEAR(Jan_Dim1+15)=Année_Calendaire,MONTH(Jan_Dim1+15)=1),Jan_Dim1+15,\"\"),IF(AND(YEAR(Jan_Dim1+22)=Année_Calendaire,MONTH(Jan_Dim1+22)=1),Jan_Dim1+22,\"\"))","v":"2016-01-18"},{"$f":"IF(DAY(Jan_Dim1)=1,IF(AND(YEAR(Jan_Dim1+16)=Année_Calendaire,MONTH(Jan_Dim1+16)=1),Jan_Dim1+16,\"\"),IF(AND(YEAR(Jan_Dim1+23)=Année_Calendaire,MONTH(Jan_Dim1+23)=1),Jan_Dim1+23,\"\"))","v":"2016-01-19"},{"$f":"IF(DAY(Jan_Dim1)=1,IF(AND(YEAR(Jan_Dim1+17)=Année_Calendaire,MONTH(Jan_Dim1+17)=1),Jan_Dim1+17,\"\"),IF(AND(YEAR(Jan_Dim1+24)=Année_Calendaire,MONTH(Jan_Dim1+24)=1),Jan_Dim1+24,\"\"))","v":"2016-01-20"},{"$f":"IF(DAY(Jan_Dim1)=1,IF(AND(YEAR(Jan_Dim1+18)=Année_Calendaire,MONTH(Jan_Dim1+18)=1),Jan_Dim1+18,\"\"),IF(AND(YEAR(Jan_Dim1+25)=Année_Calendaire,MONTH(Jan_Dim1+25)=1),Jan_Dim1+25,\"\"))","v":"2016-01-21"},{"$f":"IF(DAY(Jan_Dim1)=1,IF(AND(YEAR(Jan_Dim1+19)=Année_Calendaire,MONTH(Jan_Dim1+19)=1),Jan_Dim1+19,\"\"),IF(AND(YEAR(Jan_Dim1+26)=Année_Calendaire,MONTH(Jan_Dim1+26)=1),Jan_Dim1+26,\"\"))","v":"2016-01-22"},{"$f":"IF(DAY(Jan_Dim1)=1,IF(AND(YEAR(Jan_Dim1+20)=Année_Calendaire,MONTH(Jan_Dim1+20)=1),Jan_Dim1+20,\"\"),IF(AND(YEAR(Jan_Dim1+27)=Année_Calendaire,MONTH(Jan_Dim1+27)=1),Jan_Dim1+27,\"\"))","v":"2016-01-23"},{"$f":"IF(DAY(Jan_Dim1)=1,IF(AND(YEAR(Jan_Dim1+21)=Année_Calendaire,MONTH(Jan_Dim1+21)=1),Jan_Dim1+21,\"\"),IF(AND(YEAR(Jan_Dim1+28)=Année_Calendaire,MONTH(Jan_Dim1+28)=1),Jan_Dim1+28,\"\"))","v":"2016-01-24"},null,{"$f":"IF(DAY(Fév_Dim1)=1,IF(AND(YEAR(Fév_Dim1+15)=Année_Calendaire,MONTH(Fév_Dim1+15)=2),Fév_Dim1+15,\"\"),IF(AND(YEAR(Fév_Dim1+22)=Année_Calendaire,MONTH(Fév_Dim1+22)=2),Fév_Dim1+22,\"\"))","v":"2016-02-22"},{"$f":"IF(DAY(Fév_Dim1)=1,IF(AND(YEAR(Fév_Dim1+16)=Année_Calendaire,MONTH(Fév_Dim1+16)=2),Fév_Dim1+16,\"\"),IF(AND(YEAR(Fév_Dim1+23)=Année_Calendaire,MONTH(Fév_Dim1+23)=2),Fév_Dim1+23,\"\"))","v":"2016-02-23"},{"$f":"IF(DAY(Fév_Dim1)=1,IF(AND(YEAR(Fév_Dim1+17)=Année_Calendaire,MONTH(Fév_Dim1+17)=2),Fév_Dim1+17,\"\"),IF(AND(YEAR(Fév_Dim1+24)=Année_Calendaire,MONTH(Fév_Dim1+24)=2),Fév_Dim1+24,\"\"))","v":"2016-02-24"},{"$f":"IF(DAY(Fév_Dim1)=1,IF(AND(YEAR(Fév_Dim1+18)=Année_Calendaire,MONTH(Fév_Dim1+18)=2),Fév_Dim1+18,\"\"),IF(AND(YEAR(Fév_Dim1+25)=Année_Calendaire,MONTH(Fév_Dim1+25)=2),Fév_Dim1+25,\"\"))","v":"2016-02-25"},{"$f":"IF(DAY(Fév_Dim1)=1,IF(AND(YEAR(Fév_Dim1+19)=Année_Calendaire,MONTH(Fév_Dim1+19)=2),Fév_Dim1+19,\"\"),IF(AND(YEAR(Fév_Dim1+26)=Année_Calendaire,MONTH(Fév_Dim1+26)=2),Fév_Dim1+26,\"\"))","v":"2016-02-26"},{"$f":"IF(DAY(Fév_Dim1)=1,IF(AND(YEAR(Fév_Dim1+20)=Année_Calendaire,MONTH(Fév_Dim1+20)=2),Fév_Dim1+20,\"\"),IF(AND(YEAR(Fév_Dim1+27)=Année_Calendaire,MONTH(Fév_Dim1+27)=2),Fév_Dim1+27,\"\"))","v":"2016-02-27"},{"$f":"IF(DAY(Fév_Dim1)=1,IF(AND(YEAR(Fév_Dim1+21)=Année_Calendaire,MONTH(Fév_Dim1+21)=2),Fév_Dim1+21,\"\"),IF(AND(YEAR(Fév_Dim1+28)=Année_Calendaire,MONTH(Fév_Dim1+28)=2),Fév_Dim1+28,\"\"))","v":"2016-02-28"}]
[null,{"$f":"IF(DAY(Jan_Dim1)=1,IF(AND(YEAR(Jan_Dim1+22)=Année_Calendaire,MONTH(Jan_Dim1+22)=1),Jan_Dim1+22,\"\"),IF(AND(YEAR(Jan_Dim1+29)=Année_Calendaire,MONTH(Jan_Dim1+29)=1),Jan_Dim1+29,\"\"))","v":"2016-01-25"},{"$f":"IF(DAY(Jan_Dim1)=1,IF(AND(YEAR(Jan_Dim1+23)=Année_Calendaire,MONTH(Jan_Dim1+23)=1),Jan_Dim1+23,\"\"),IF(AND(YEAR(Jan_Dim1+30)=Année_Calendaire,MONTH(Jan_Dim1+30)=1),Jan_Dim1+30,\"\"))","v":"2016-01-26"},{"$f":"IF(DAY(Jan_Dim1)=1,IF(AND(YEAR(Jan_Dim1+24)=Année_Calendaire,MONTH(Jan_Dim1+24)=1),Jan_Dim1+24,\"\"),IF(AND(YEAR(Jan_Dim1+31)=Année_Calendaire,MONTH(Jan_Dim1+31)=1),Jan_Dim1+31,\"\"))","v":"2016-01-27"},{"$f":"IF(DAY(Jan_Dim1)=1,IF(AND(YEAR(Jan_Dim1+25)=Année_Calendaire,MONTH(Jan_Dim1+25)=1),Jan_Dim1+25,\"\"),IF(AND(YEAR(Jan_Dim1+32)=Année_Calendaire,MONTH(Jan_Dim1+32)=1),Jan_Dim1+32,\"\"))","v":"2016-01-28"},{"$f":"IF(DAY(Jan_Dim1)=1,IF(AND(YEAR(Jan_Dim1+26)=Année_Calendaire,MONTH(Jan_Dim1+26)=1),Jan_Dim1+26,\"\"),IF(AND(YEAR(Jan_Dim1+33)=Année_Calendaire,MONTH(Jan_Dim1+33)=1),Jan_Dim1+33,\"\"))","v":"2016-01-29"},{"$f":"IF(DAY(Jan_Dim1)=1,IF(AND(YEAR(Jan_Dim1+27)=Année_Calendaire,MONTH(Jan_Dim1+27)=1),Jan_Dim1+27,\"\"),IF(AND(YEAR(Jan_Dim1+34)=Année_Calendaire,MONTH(Jan_Dim1+34)=1),Jan_Dim1+34,\"\"))","v":"2016-01-30"},{"$f":"IF(DAY(Jan_Dim1)=1,IF(AND(YEAR(Jan_Dim1+28)=Année_Calendaire,MONTH(Jan_Dim1+28)=1),Jan_Dim1+28,\"\"),IF(AND(YEAR(Jan_Dim1+35)=Année_Calendaire,MONTH(Jan_Dim1+35)=1),Jan_Dim1+35,\"\"))","v":"2016-01-31"},null,{"$f":"IF(DAY(Fév_Dim1)=1,IF(AND(YEAR(Fév_Dim1+22)=Année_Calendaire,MONTH(Fév_Dim1+22)=2),Fév_Dim1+22,\"\"),IF(AND(YEAR(Fév_Dim1+29)=Année_Calendaire,MONTH(Fév_Dim1+29)=2),Fév_Dim1+29,\"\"))","v":"2016-02-29"},{"$f":"IF(DAY(Fév_Dim1)=1,IF(AND(YEAR(Fév_Dim1+23)=Année_Calendaire,MONTH(Fév_Dim1+23)=2),Fév_Dim1+23,\"\"),IF(AND(YEAR(Fév_Dim1+30)=Année_Calendaire,MONTH(Fév_Dim1+30)=2),Fév_Dim1+30,\"\"))","v":""},{"$f":"IF(DAY(Fév_Dim1)=1,IF(AND(YEAR(Fév_Dim1+24)=Année_Calendaire,MONTH(Fév_Dim1+24)=2),Fév_Dim1+24,\"\"),IF(AND(YEAR(Fév_Dim1+31)=Année_Calendaire,MONTH(Fév_Dim1+31)=2),Fév_Dim1+31,\"\"))","v":""},{"$f":"IF(DAY(Fév_Dim1)=1,IF(AND(YEAR(Fév_Dim1+25)=Année_Calendaire,MONTH(Fév_Dim1+25)=2),Fév_Dim1+25,\"\"),IF(AND(YEAR(Fév_Dim1+32)=Année_Calendaire,MONTH(Fév_Dim1+32)=2),Fév_Dim1+32,\"\"))","v":""},{"$f":"IF(DAY(Fév_Dim1)=1,IF(AND(YEAR(Fév_Dim1+26)=Année_Calendaire,MONTH(Fév_Dim1+26)=2),Fév_Dim1+26,\"\"),IF(AND(YEAR(Fév_Dim1+33)=Année_Calendaire,MONTH(Fév_Dim1+33)=2),Fév_Dim1+33,\"\"))","v":""},{"$f":"IF(DAY(Fév_Dim1)=1,IF(AND(YEAR(Fév_Dim1+27)=Année_Calendaire,MONTH(Fév_Dim1+27)=2),Fév_Dim1+27,\"\"),IF(AND(YEAR(Fév_Dim1+34)=Année_Calendaire,MONTH(Fév_Dim1+34)=2),Fév_Dim1+34,\"\"))","v":""},{"$f":"IF(DAY(Fév_Dim1)=1,IF(AND(YEAR(Fév_Dim1+28)=Année_Calendaire,MONTH(Fév_Dim1+28)=2),Fév_Dim1+28,\"\"),IF(AND(YEAR(Fév_Dim1+35)=Année_Calendaire,MONTH(Fév_Dim1+35)=2),Fév_Dim1+35,\"\"))","v":""}]
[null,{"$f":"IF(DAY(Jan_Dim1)=1,IF(AND(YEAR(Jan_Dim1+29)=Année_Calendaire,MONTH(Jan_Dim1+29)=1),Jan_Dim1+29,\"\"),IF(AND(YEAR(Jan_Dim1+36)=Année_Calendaire,MONTH(Jan_Dim1+36)=1),Jan_Dim1+36,\"\"))","v":""},{"$f":"IF(DAY(Jan_Dim1)=1,IF(AND(YEAR(Jan_Dim1+30)=Année_Calendaire,MONTH(Jan_Dim1+30)=1),Jan_Dim1+30,\"\"),IF(AND(YEAR(Jan_Dim1+37)=Année_Calendaire,MONTH(Jan_Dim1+37)=1),Jan_Dim1+37,\"\"))","v":""},{"$f":"IF(DAY(Jan_Dim1)=1,IF(AND(YEAR(Jan_Dim1+31)=Année_Calendaire,MONTH(Jan_Dim1+31)=1),Jan_Dim1+31,\"\"),IF(AND(YEAR(Jan_Dim1+38)=Année_Calendaire,MONTH(Jan_Dim1+38)=1),Jan_Dim1+38,\"\"))","v":""},{"$f":"IF(DAY(Jan_Dim1)=1,IF(AND(YEAR(Jan_Dim1+32)=Année_Calendaire,MONTH(Jan_Dim1+32)=1),Jan_Dim1+32,\"\"),IF(AND(YEAR(Jan_Dim1+39)=Année_Calendaire,MONTH(Jan_Dim1+39)=1),Jan_Dim1+39,\"\"))","v":""},{"$f":"IF(DAY(Jan_Dim1)=1,IF(AND(YEAR(Jan_Dim1+33)=Année_Calendaire,MONTH(Jan_Dim1+33)=1),Jan_Dim1+33,\"\"),IF(AND(YEAR(Jan_Dim1+40)=Année_Calendaire,MONTH(Jan_Dim1+40)=1),Jan_Dim1+40,\"\"))","v":""},{"$f":"IF(DAY(Jan_Dim1)=1,IF(AND(YEAR(Jan_Dim1+34)=Année_Calendaire,MONTH(Jan_Dim1+34)=1),Jan_Dim1+34,\"\"),IF(AND(YEAR(Jan_Dim1+41)=Année_Calendaire,MONTH(Jan_Dim1+41)=1),Jan_Dim1+41,\"\"))","v":""},{"$f":"IF(DAY(Jan_Dim1)=1,IF(AND(YEAR(Jan_Dim1+35)=Année_Calendaire,MONTH(Jan_Dim1+35)=1),Jan_Dim1+35,\"\"),IF(AND(YEAR(Jan_Dim1+42)=Année_Calendaire,MONTH(Jan_Dim1+42)=1),Jan_Dim1+42,\"\"))","v":""},null,{"$f":"IF(DAY(Fév_Dim1)=1,IF(AND(YEAR(Fév_Dim1+29)=Année_Calendaire,MONTH(Fév_Dim1+29)=2),Fév_Dim1+29,\"\"),IF(AND(YEAR(Fév_Dim1+36)=Année_Calendaire,MONTH(Fév_Dim1+36)=2),Fév_Dim1+36,\"\"))","v":""},{"$f":"IF(DAY(Fév_Dim1)=1,IF(AND(YEAR(Fév_Dim1+30)=Année_Calendaire,MONTH(Fév_Dim1+30)=2),Fév_Dim1+30,\"\"),IF(AND(YEAR(Fév_Dim1+37)=Année_Calendaire,MONTH(Fév_Dim1+37)=2),Fév_Dim1+37,\"\"))","v":""},{"$f":"IF(DAY(Fév_Dim1)=1,IF(AND(YEAR(Fév_Dim1+31)=Année_Calendaire,MONTH(Fév_Dim1+31)=2),Fév_Dim1+31,\"\"),IF(AND(YEAR(Fév_Dim1+38)=Année_Calendaire,MONTH(Fév_Dim1+38)=2),Fév_Dim1+38,\"\"))","v":""},{"$f":"IF(DAY(Fév_Dim1)=1,IF(AND(YEAR(Fév_Dim1+32)=Année_Calendaire,MONTH(Fév_Dim1+32)=2),Fév_Dim1+32,\"\"),IF(AND(YEAR(Fév_Dim1+39)=Année_Calendaire,MONTH(Fév_Dim1+39)=2),Fév_Dim1+39,\"\"))","v":""},{"$f":"IF(DAY(Fév_Dim1)=1,IF(AND(YEAR(Fév_Dim1+33)=Année_Calendaire,MONTH(Fév_Dim1+33)=2),Fév_Dim1+33,\"\"),IF(AND(YEAR(Fév_Dim1+40)=Année_Calendaire,MONTH(Fév_Dim1+40)=2),Fév_Dim1+40,\"\"))","v":""},{"$f":"IF(DAY(Fév_Dim1)=1,IF(AND(YEAR(Fév_Dim1+34)=Année_Calendaire,MONTH(Fév_Dim1+34)=2),Fév_Dim1+34,\"\"),IF(AND(YEAR(Fév_Dim1+41)=Année_Calendaire,MONTH(Fév_Dim1+41)=2),Fév_Dim1+41,\"\"))","v":""},{"$f":"IF(DAY(Fév_Dim1)=1,IF(AND(YEAR(Fév_Dim1+35)=Année_Calendaire,MONTH(Fév_Dim1+35)=2),Fév_Dim1+35,\"\"),IF(AND(YEAR(Fév_Dim1+42)=Année_Calendaire,MONTH(Fév_Dim1+42)=2),Fév_Dim1+42,\"\"))","v":""}]
[]
[]
[null,"MARS",null,null,null,null,null,null,null,"AVRIL"]
[null,"L","M","M","J","V","S","D",null,"L","M","M","J","V","S","D"]
[null,{"$f":"IF(DAY(Mar_Dim1)=1,\"\",IF(AND(YEAR(Mar_Dim1+1)=Année_Calendaire,MONTH(Mar_Dim1+1)=3),Mar_Dim1+1,\"\"))","v":""},{"$f":"IF(DAY(Mar_Dim1)=1,\"\",IF(AND(YEAR(Mar_Dim1+2)=Année_Calendaire,MONTH(Mar_Dim1+2)=3),Mar_Dim1+2,\"\"))","v":"2016-03-01"},{"$f":"IF(DAY(Mar_Dim1)=1,\"\",IF(AND(YEAR(Mar_Dim1+3)=Année_Calendaire,MONTH(Mar_Dim1+3)=3),Mar_Dim1+3,\"\"))","v":"2016-03-02"},{"$f":"IF(DAY(Mar_Dim1)=1,\"\",IF(AND(YEAR(Mar_Dim1+4)=Année_Calendaire,MONTH(Mar_Dim1+4)=3),Mar_Dim1+4,\"\"))","v":"2016-03-03"},{"$f":"IF(DAY(Mar_Dim1)=1,\"\",IF(AND(YEAR(Mar_Dim1+5)=Année_Calendaire,MONTH(Mar_Dim1+5)=3),Mar_Dim1+5,\"\"))","v":"2016-03-04"},{"$f":"IF(DAY(Mar_Dim1)=1,\"\",IF(AND(YEAR(Mar_Dim1+6)=Année_Calendaire,MONTH(Mar_Dim1+6)=3),Mar_Dim1+6,\"\"))","v":"2016-03-05"},{"$f":"IF(DAY(Mar_Dim1)=1,IF(AND(YEAR(Mar_Dim1)=Année_Calendaire,MONTH(Mar_Dim1)=3),Mar_Dim1,\"\"),IF(AND(YEAR(Mar_Dim1+7)=Année_Calendaire,MONTH(Mar_Dim1+7)=3),Mar_Dim1+7,\"\"))","v":"2016-03-06"},null,{"$f":"IF(DAY(Avr_Dim1)=1,\"\",IF(AND(YEAR(Avr_Dim1+1)=Année_Calendaire,MONTH(Avr_Dim1+1)=4),Avr_Dim1+1,\"\"))","v":""},{"$f":"IF(DAY(Avr_Dim1)=1,\"\",IF(AND(YEAR(Avr_Dim1+2)=Année_Calendaire,MONTH(Avr_Dim1+2)=4),Avr_Dim1+2,\"\"))","v":""},{"$f":"IF(DAY(Avr_Dim1)=1,\"\",IF(AND(YEAR(Avr_Dim1+3)=Année_Calendaire,MONTH(Avr_Dim1+3)=4),Avr_Dim1+3,\"\"))","v":""},{"$f":"IF(DAY(Avr_Dim1)=1,\"\",IF(AND(YEAR(Avr_Dim1+4)=Année_Calendaire,MONTH(Avr_Dim1+4)=4),Avr_Dim1+4,\"\"))","v":""},{"$f":"IF(DAY(Avr_Dim1)=1,\"\",IF(AND(YEAR(Avr_Dim1+5)=Année_Calendaire,MONTH(Avr_Dim1+5)=4),Avr_Dim1+5,\"\"))","v":"2016-04-01"},{"$f":"IF(DAY(Avr_Dim1)=1,\"\",IF(AND(YEAR(Avr_Dim1+6)=Année_Calendaire,MONTH(Avr_Dim1+6)=4),Avr_Dim1+6,\"\"))","v":"2016-04-02"},{"$f":"IF(DAY(Avr_Dim1)=1,IF(AND(YEAR(Avr_Dim1)=Année_Calendaire,MONTH(Avr_Dim1)=4),Avr_Dim1,\"\"),IF(AND(YEAR(Avr_Dim1+7)=Année_Calendaire,MONTH(Avr_Dim1+7)=4),Avr_Dim1+7,\"\"))","v":"2016-04-03"}]
[null,{"$f":"IF(DAY(Mar_Dim1)=1,IF(AND(YEAR(Mar_Dim1+1)=Année_Calendaire,MONTH(Mar_Dim1+1)=3),Mar_Dim1+1,\"\"),IF(AND(YEAR(Mar_Dim1+8)=Année_Calendaire,MONTH(Mar_Dim1+8)=3),Mar_Dim1+8,\"\"))","v":"2016-03-07"},{"$f":"IF(DAY(Mar_Dim1)=1,IF(AND(YEAR(Mar_Dim1+2)=Année_Calendaire,MONTH(Mar_Dim1+2)=3),Mar_Dim1+2,\"\"),IF(AND(YEAR(Mar_Dim1+9)=Année_Calendaire,MONTH(Mar_Dim1+9)=3),Mar_Dim1+9,\"\"))","v":"2016-03-08"},{"$f":"IF(DAY(Mar_Dim1)=1,IF(AND(YEAR(Mar_Dim1+3)=Année_Calendaire,MONTH(Mar_Dim1+3)=3),Mar_Dim1+3,\"\"),IF(AND(YEAR(Mar_Dim1+10)=Année_Calendaire,MONTH(Mar_Dim1+10)=3),Mar_Dim1+10,\"\"))","v":"2016-03-09"},{"$f":"IF(DAY(Mar_Dim1)=1,IF(AND(YEAR(Mar_Dim1+4)=Année_Calendaire,MONTH(Mar_Dim1+4)=3),Mar_Dim1+4,\"\"),IF(AND(YEAR(Mar_Dim1+11)=Année_Calendaire,MONTH(Mar_Dim1+11)=3),Mar_Dim1+11,\"\"))","v":"2016-03-10"},{"$f":"IF(DAY(Mar_Dim1)=1,IF(AND(YEAR(Mar_Dim1+5)=Année_Calendaire,MONTH(Mar_Dim1+5)=3),Mar_Dim1+5,\"\"),IF(AND(YEAR(Mar_Dim1+12)=Année_Calendaire,MONTH(Mar_Dim1+12)=3),Mar_Dim1+12,\"\"))","v":"2016-03-11"},{"$f":"IF(DAY(Mar_Dim1)=1,IF(AND(YEAR(Mar_Dim1+6)=Année_Calendaire,MONTH(Mar_Dim1+6)=3),Mar_Dim1+6,\"\"),IF(AND(YEAR(Mar_Dim1+13)=Année_Calendaire,MONTH(Mar_Dim1+13)=3),Mar_Dim1+13,\"\"))","v":"2016-03-12"},{"$f":"IF(DAY(Mar_Dim1)=1,IF(AND(YEAR(Mar_Dim1+7)=Année_Calendaire,MONTH(Mar_Dim1+7)=3),Mar_Dim1+7,\"\"),IF(AND(YEAR(Mar_Dim1+14)=Année_Calendaire,MONTH(Mar_Dim1+14)=3),Mar_Dim1+14,\"\"))","v":"2016-03-13"},null,{"$f":"IF(DAY(Avr_Dim1)=1,IF(AND(YEAR(Avr_Dim1+1)=Année_Calendaire,MONTH(Avr_Dim1+1)=4),Avr_Dim1+1,\"\"),IF(AND(YEAR(Avr_Dim1+8)=Année_Calendaire,MONTH(Avr_Dim1+8)=4),Avr_Dim1+8,\"\"))","v":"2016-04-04"},{"$f":"IF(DAY(Avr_Dim1)=1,IF(AND(YEAR(Avr_Dim1+2)=Année_Calendaire,MONTH(Avr_Dim1+2)=4),Avr_Dim1+2,\"\"),IF(AND(YEAR(Avr_Dim1+9)=Année_Calendaire,MONTH(Avr_Dim1+9)=4),Avr_Dim1+9,\"\"))","v":"2016-04-05"},{"$f":"IF(DAY(Avr_Dim1)=1,IF(AND(YEAR(Avr_Dim1+3)=Année_Calendaire,MONTH(Avr_Dim1+3)=4),Avr_Dim1+3,\"\"),IF(AND(YEAR(Avr_Dim1+10)=Année_Calendaire,MONTH(Avr_Dim1+10)=4),Avr_Dim1+10,\"\"))","v":"2016-04-06"},{"$f":"IF(DAY(Avr_Dim1)=1,IF(AND(YEAR(Avr_Dim1+4)=Année_Calendaire,MONTH(Avr_Dim1+4)=4),Avr_Dim1+4,\"\"),IF(AND(YEAR(Avr_Dim1+11)=Année_Calendaire,MONTH(Avr_Dim1+11)=4),Avr_Dim1+11,\"\"))","v":"2016-04-07"},{"$f":"IF(DAY(Avr_Dim1)=1,IF(AND(YEAR(Avr_Dim1+5)=Année_Calendaire,MONTH(Avr_Dim1+5)=4),Avr_Dim1+5,\"\"),IF(AND(YEAR(Avr_Dim1+12)=Année_Calendaire,MONTH(Avr_Dim1+12)=4),Avr_Dim1+12,\"\"))","v":"2016-04-08"},{"$f":"IF(DAY(Avr_Dim1)=1,IF(AND(YEAR(Avr_Dim1+6)=Année_Calendaire,MONTH(Avr_Dim1+6)=4),Avr_Dim1+6,\"\"),IF(AND(YEAR(Avr_Dim1+13)=Année_Calendaire,MONTH(Avr_Dim1+13)=4),Avr_Dim1+13,\"\"))","v":"2016-04-09"},{"$f":"IF(DAY(Avr_Dim1)=1,IF(AND(YEAR(Avr_Dim1+7)=Année_Calendaire,MONTH(Avr_Dim1+7)=4),Avr_Dim1+7,\"\"),IF(AND(YEAR(Avr_Dim1+14)=Année_Calendaire,MONTH(Avr_Dim1+14)=4),Avr_Dim1+14,\"\"))","v":"2016-04-10"}," "]
[null,{"$f":"IF(DAY(Mar_Dim1)=1,IF(AND(YEAR(Mar_Dim1+8)=Année_Calendaire,MONTH(Mar_Dim1+8)=3),Mar_Dim1+8,\"\"),IF(AND(YEAR(Mar_Dim1+15)=Année_Calendaire,MONTH(Mar_Dim1+15)=3),Mar_Dim1+15,\"\"))","v":"2016-03-14"},{"$f":"IF(DAY(Mar_Dim1)=1,IF(AND(YEAR(Mar_Dim1+9)=Année_Calendaire,MONTH(Mar_Dim1+9)=3),Mar_Dim1+9,\"\"),IF(AND(YEAR(Mar_Dim1+16)=Année_Calendaire,MONTH(Mar_Dim1+16)=3),Mar_Dim1+16,\"\"))","v":"2016-03-15"},{"$f":"IF(DAY(Mar_Dim1)=1,IF(AND(YEAR(Mar_Dim1+10)=Année_Calendaire,MONTH(Mar_Dim1+10)=3),Mar_Dim1+10,\"\"),IF(AND(YEAR(Mar_Dim1+17)=Année_Calendaire,MONTH(Mar_Dim1+17)=3),Mar_Dim1+17,\"\"))","v":"2016-03-16"},{"$f":"IF(DAY(Mar_Dim1)=1,IF(AND(YEAR(Mar_Dim1+11)=Année_Calendaire,MONTH(Mar_Dim1+11)=3),Mar_Dim1+11,\"\"),IF(AND(YEAR(Mar_Dim1+18)=Année_Calendaire,MONTH(Mar_Dim1+18)=3),Mar_Dim1+18,\"\"))","v":"2016-03-17"},{"$f":"IF(DAY(Mar_Dim1)=1,IF(AND(YEAR(Mar_Dim1+12)=Année_Calendaire,MONTH(Mar_Dim1+12)=3),Mar_Dim1+12,\"\"),IF(AND(YEAR(Mar_Dim1+19)=Année_Calendaire,MONTH(Mar_Dim1+19)=3),Mar_Dim1+19,\"\"))","v":"2016-03-18"},{"$f":"IF(DAY(Mar_Dim1)=1,IF(AND(YEAR(Mar_Dim1+13)=Année_Calendaire,MONTH(Mar_Dim1+13)=3),Mar_Dim1+13,\"\"),IF(AND(YEAR(Mar_Dim1+20)=Année_Calendaire,MONTH(Mar_Dim1+20)=3),Mar_Dim1+20,\"\"))","v":"2016-03-19"},{"$f":"IF(DAY(Mar_Dim1)=1,IF(AND(YEAR(Mar_Dim1+14)=Année_Calendaire,MONTH(Mar_Dim1+14)=3),Mar_Dim1+14,\"\"),IF(AND(YEAR(Mar_Dim1+21)=Année_Calendaire,MONTH(Mar_Dim1+21)=3),Mar_Dim1+21,\"\"))","v":"2016-03-20"},null,{"$f":"IF(DAY(Avr_Dim1)=1,IF(AND(YEAR(Avr_Dim1+8)=Année_Calendaire,MONTH(Avr_Dim1+8)=4),Avr_Dim1+8,\"\"),IF(AND(YEAR(Avr_Dim1+15)=Année_Calendaire,MONTH(Avr_Dim1+15)=4),Avr_Dim1+15,\"\"))","v":"2016-04-11"},{"$f":"IF(DAY(Avr_Dim1)=1,IF(AND(YEAR(Avr_Dim1+9)=Année_Calendaire,MONTH(Avr_Dim1+9)=4),Avr_Dim1+9,\"\"),IF(AND(YEAR(Avr_Dim1+16)=Année_Calendaire,MONTH(Avr_Dim1+16)=4),Avr_Dim1+16,\"\"))","v":"2016-04-12"},{"$f":"IF(DAY(Avr_Dim1)=1,IF(AND(YEAR(Avr_Dim1+10)=Année_Calendaire,MONTH(Avr_Dim1+10)=4),Avr_Dim1+10,\"\"),IF(AND(YEAR(Avr_Dim1+17)=Année_Calendaire,MONTH(Avr_Dim1+17)=4),Avr_Dim1+17,\"\"))","v":"2016-04-13"},{"$f":"IF(DAY(Avr_Dim1)=1,IF(AND(YEAR(Avr_Dim1+11)=Année_Calendaire,MONTH(Avr_Dim1+11)=4),Avr_Dim1+11,\"\"),IF(AND(YEAR(Avr_Dim1+18)=Année_Calendaire,MONTH(Avr_Dim1+18)=4),Avr_Dim1+18,\"\"))","v":"2016-04-14"},{"$f":"IF(DAY(Avr_Dim1)=1,IF(AND(YEAR(Avr_Dim1+12)=Année_Calendaire,MONTH(Avr_Dim1+12)=4),Avr_Dim1+12,\"\"),IF(AND(YEAR(Avr_Dim1+19)=Année_Calendaire,MONTH(Avr_Dim1+19)=4),Avr_Dim1+19,\"\"))","v":"2016-04-15"},{"$f":"IF(DAY(Avr_Dim1)=1,IF(AND(YEAR(Avr_Dim1+13)=Année_Calendaire,MONTH(Avr_Dim1+13)=4),Avr_Dim1+13,\"\"),IF(AND(YEAR(Avr_Dim1+20)=Année_Calendaire,MONTH(Avr_Dim1+20)=4),Avr_Dim1+20,\"\"))","v":"2016-04-16"},{"$f":"IF(DAY(Avr_Dim1)=1,IF(AND(YEAR(Avr_Dim1+14)=Année_Calendaire,MONTH(Avr_Dim1+14)=4),Avr_Dim1+14,\"\"),IF(AND(YEAR(Avr_Dim1+21)=Année_Calendaire,MONTH(Avr_Dim1+21)=4),Avr_Dim1+21,\"\"))","v":"2016-04-17"}]
[null,{"$f":"IF(DAY(Mar_Dim1)=1,IF(AND(YEAR(Mar_Dim1+15)=Année_Calendaire,MONTH(Mar_Dim1+15)=3),Mar_Dim1+15,\"\"),IF(AND(YEAR(Mar_Dim1+22)=Année_Calendaire,MONTH(Mar_Dim1+22)=3),Mar_Dim1+22,\"\"))","v":"2016-03-21"},{"$f":"IF(DAY(Mar_Dim1)=1,IF(AND(YEAR(Mar_Dim1+16)=Année_Calendaire,MONTH(Mar_Dim1+16)=3),Mar_Dim1+16,\"\"),IF(AND(YEAR(Mar_Dim1+23)=Année_Calendaire,MONTH(Mar_Dim1+23)=3),Mar_Dim1+23,\"\"))","v":"2016-03-22"},{"$f":"IF(DAY(Mar_Dim1)=1,IF(AND(YEAR(Mar_Dim1+17)=Année_Calendaire,MONTH(Mar_Dim1+17)=3),Mar_Dim1+17,\"\"),IF(AND(YEAR(Mar_Dim1+24)=Année_Calendaire,MONTH(Mar_Dim1+24)=3),Mar_Dim1+24,\"\"))","v":"2016-03-23"},{"$f":"IF(DAY(Mar_Dim1)=1,IF(AND(YEAR(Mar_Dim1+18)=Année_Calendaire,MONTH(Mar_Dim1+18)=3),Mar_Dim1+18,\"\"),IF(AND(YEAR(Mar_Dim1+25)=Année_Calendaire,MONTH(Mar_Dim1+25)=3),Mar_Dim1+25,\"\"))","v":"2016-03-24"},{"$f":"IF(DAY(Mar_Dim1)=1,IF(AND(YEAR(Mar_Dim1+19)=Année_Calendaire,MONTH(Mar_Dim1+19)=3),Mar_Dim1+19,\"\"),IF(AND(YEAR(Mar_Dim1+26)=Année_Calendaire,MONTH(Mar_Dim1+26)=3),Mar_Dim1+26,\"\"))","v":"2016-03-25"},{"$f":"IF(DAY(Mar_Dim1)=1,IF(AND(YEAR(Mar_Dim1+20)=Année_Calendaire,MONTH(Mar_Dim1+20)=3),Mar_Dim1+20,\"\"),IF(AND(YEAR(Mar_Dim1+27)=Année_Calendaire,MONTH(Mar_Dim1+27)=3),Mar_Dim1+27,\"\"))","v":"2016-03-26"},{"$f":"IF(DAY(Mar_Dim1)=1,IF(AND(YEAR(Mar_Dim1+21)=Année_Calendaire,MONTH(Mar_Dim1+21)=3),Mar_Dim1+21,\"\"),IF(AND(YEAR(Mar_Dim1+28)=Année_Calendaire,MONTH(Mar_Dim1+28)=3),Mar_Dim1+28,\"\"))","v":"2016-03-27"},null,{"$f":"IF(DAY(Avr_Dim1)=1,IF(AND(YEAR(Avr_Dim1+15)=Année_Calendaire,MONTH(Avr_Dim1+15)=4),Avr_Dim1+15,\"\"),IF(AND(YEAR(Avr_Dim1+22)=Année_Calendaire,MONTH(Avr_Dim1+22)=4),Avr_Dim1+22,\"\"))","v":"2016-04-18"},{"$f":"IF(DAY(Avr_Dim1)=1,IF(AND(YEAR(Avr_Dim1+16)=Année_Calendaire,MONTH(Avr_Dim1+16)=4),Avr_Dim1+16,\"\"),IF(AND(YEAR(Avr_Dim1+23)=Année_Calendaire,MONTH(Avr_Dim1+23)=4),Avr_Dim1+23,\"\"))","v":"2016-04-19"},{"$f":"IF(DAY(Avr_Dim1)=1,IF(AND(YEAR(Avr_Dim1+17)=Année_Calendaire,MONTH(Avr_Dim1+17)=4),Avr_Dim1+17,\"\"),IF(AND(YEAR(Avr_Dim1+24)=Année_Calendaire,MONTH(Avr_Dim1+24)=4),Avr_Dim1+24,\"\"))","v":"2016-04-20"},{"$f":"IF(DAY(Avr_Dim1)=1,IF(AND(YEAR(Avr_Dim1+18)=Année_Calendaire,MONTH(Avr_Dim1+18)=4),Avr_Dim1+18,\"\"),IF(AND(YEAR(Avr_Dim1+25)=Année_Calendaire,MONTH(Avr_Dim1+25)=4),Avr_Dim1+25,\"\"))","v":"2016-04-21"},{"$f":"IF(DAY(Avr_Dim1)=1,IF(AND(YEAR(Avr_Dim1+19)=Année_Calendaire,MONTH(Avr_Dim1+19)=4),Avr_Dim1+19,\"\"),IF(AND(YEAR(Avr_Dim1+26)=Année_Calendaire,MONTH(Avr_Dim1+26)=4),Avr_Dim1+26,\"\"))","v":"2016-04-22"},{"$f":"IF(DAY(Avr_Dim1)=1,IF(AND(YEAR(Avr_Dim1+20)=Année_Calendaire,MONTH(Avr_Dim1+20)=4),Avr_Dim1+20,\"\"),IF(AND(YEAR(Avr_Dim1+27)=Année_Calendaire,MONTH(Avr_Dim1+27)=4),Avr_Dim1+27,\"\"))","v":"2016-04-23"},{"$f":"IF(DAY(Avr_Dim1)=1,IF(AND(YEAR(Avr_Dim1+21)=Année_Calendaire,MONTH(Avr_Dim1+21)=4),Avr_Dim1+21,\"\"),IF(AND(YEAR(Avr_Dim1+28)=Année_Calendaire,MONTH(Avr_Dim1+28)=4),Avr_Dim1+28,\"\"))","v":"2016-04-24"}]
[null,{"$f":"IF(DAY(Mar_Dim1)=1,IF(AND(YEAR(Mar_Dim1+22)=Année_Calendaire,MONTH(Mar_Dim1+22)=3),Mar_Dim1+22,\"\"),IF(AND(YEAR(Mar_Dim1+29)=Année_Calendaire,MONTH(Mar_Dim1+29)=3),Mar_Dim1+29,\"\"))","v":"2016-03-28"},{"$f":"IF(DAY(Mar_Dim1)=1,IF(AND(YEAR(Mar_Dim1+23)=Année_Calendaire,MONTH(Mar_Dim1+23)=3),Mar_Dim1+23,\"\"),IF(AND(YEAR(Mar_Dim1+30)=Année_Calendaire,MONTH(Mar_Dim1+30)=3),Mar_Dim1+30,\"\"))","v":"2016-03-29"},{"$f":"IF(DAY(Mar_Dim1)=1,IF(AND(YEAR(Mar_Dim1+24)=Année_Calendaire,MONTH(Mar_Dim1+24)=3),Mar_Dim1+24,\"\"),IF(AND(YEAR(Mar_Dim1+31)=Année_Calendaire,MONTH(Mar_Dim1+31)=3),Mar_Dim1+31,\"\"))","v":"2016-03-30"},{"$f":"IF(DAY(Mar_Dim1)=1,IF(AND(YEAR(Mar_Dim1+25)=Année_Calendaire,MONTH(Mar_Dim1+25)=3),Mar_Dim1+25,\"\"),IF(AND(YEAR(Mar_Dim1+32)=Année_Calendaire,MONTH(Mar_Dim1+32)=3),Mar_Dim1+32,\"\"))","v":"2016-03-31"},{"$f":"IF(DAY(Mar_Dim1)=1,IF(AND(YEAR(Mar_Dim1+26)=Année_Calendaire,MONTH(Mar_Dim1+26)=3),Mar_Dim1+26,\"\"),IF(AND(YEAR(Mar_Dim1+33)=Année_Calendaire,MONTH(Mar_Dim1+33)=3),Mar_Dim1+33,\"\"))","v":""},{"$f":"IF(DAY(Mar_Dim1)=1,IF(AND(YEAR(Mar_Dim1+27)=Année_Calendaire,MONTH(Mar_Dim1+27)=3),Mar_Dim1+27,\"\"),IF(AND(YEAR(Mar_Dim1+34)=Année_Calendaire,MONTH(Mar_Dim1+34)=3),Mar_Dim1+34,\"\"))","v":""},{"$f":"IF(DAY(Mar_Dim1)=1,IF(AND(YEAR(Mar_Dim1+28)=Année_Calendaire,MONTH(Mar_Dim1+28)=3),Mar_Dim1+28,\"\"),IF(AND(YEAR(Mar_Dim1+35)=Année_Calendaire,MONTH(Mar_Dim1+35)=3),Mar_Dim1+35,\"\"))","v":""},null,{"$f":"IF(DAY(Avr_Dim1)=1,IF(AND(YEAR(Avr_Dim1+22)=Année_Calendaire,MONTH(Avr_Dim1+22)=4),Avr_Dim1+22,\"\"),IF(AND(YEAR(Avr_Dim1+29)=Année_Calendaire,MONTH(Avr_Dim1+29)=4),Avr_Dim1+29,\"\"))","v":"2016-04-25"},{"$f":"IF(DAY(Avr_Dim1)=1,IF(AND(YEAR(Avr_Dim1+23)=Année_Calendaire,MONTH(Avr_Dim1+23)=4),Avr_Dim1+23,\"\"),IF(AND(YEAR(Avr_Dim1+30)=Année_Calendaire,MONTH(Avr_Dim1+30)=4),Avr_Dim1+30,\"\"))","v":"2016-04-26"},{"$f":"IF(DAY(Avr_Dim1)=1,IF(AND(YEAR(Avr_Dim1+24)=Année_Calendaire,MONTH(Avr_Dim1+24)=4),Avr_Dim1+24,\"\"),IF(AND(YEAR(Avr_Dim1+31)=Année_Calendaire,MONTH(Avr_Dim1+31)=4),Avr_Dim1+31,\"\"))","v":"2016-04-27"},{"$f":"IF(DAY(Avr_Dim1)=1,IF(AND(YEAR(Avr_Dim1+25)=Année_Calendaire,MONTH(Avr_Dim1+25)=4),Avr_Dim1+25,\"\"),IF(AND(YEAR(Avr_Dim1+32)=Année_Calendaire,MONTH(Avr_Dim1+32)=4),Avr_Dim1+32,\"\"))","v":"2016-04-28"},{"$f":"IF(DAY(Avr_Dim1)=1,IF(AND(YEAR(Avr_Dim1+26)=Année_Calendaire,MONTH(Avr_Dim1+26)=4),Avr_Dim1+26,\"\"),IF(AND(YEAR(Avr_Dim1+33)=Année_Calendaire,MONTH(Avr_Dim1+33)=4),Avr_Dim1+33,\"\"))","v":"2016-04-29"},{"$f":"IF(DAY(Avr_Dim1)=1,IF(AND(YEAR(Avr_Dim1+27)=Année_Calendaire,MONTH(Avr_Dim1+27)=4),Avr_Dim1+27,\"\"),IF(AND(YEAR(Avr_Dim1+34)=Année_Calendaire,MONTH(Avr_Dim1+34)=4),Avr_Dim1+34,\"\"))","v":"2016-04-30"},{"$f":"IF(DAY(Avr_Dim1)=1,IF(AND(YEAR(Avr_Dim1+28)=Année_Calendaire,MONTH(Avr_Dim1+28)=4),Avr_Dim1+28,\"\"),IF(AND(YEAR(Avr_Dim1+35)=Année_Calendaire,MONTH(Avr_Dim1+35)=4),Avr_Dim1+35,\"\"))","v":""}]
[null,{"$f":"IF(DAY(Mar_Dim1)=1,IF(AND(YEAR(Mar_Dim1+29)=Année_Calendaire,MONTH(Mar_Dim1+29)=3),Mar_Dim1+29,\"\"),IF(AND(YEAR(Mar_Dim1+36)=Année_Calendaire,MONTH(Mar_Dim1+36)=3),Mar_Dim1+36,\"\"))","v":""},{"$f":"IF(DAY(Mar_Dim1)=1,IF(AND(YEAR(Mar_Dim1+30)=Année_Calendaire,MONTH(Mar_Dim1+30)=3),Mar_Dim1+30,\"\"),IF(AND(YEAR(Mar_Dim1+37)=Année_Calendaire,MONTH(Mar_Dim1+37)=3),Mar_Dim1+37,\"\"))","v":""},{"$f":"IF(DAY(Mar_Dim1)=1,IF(AND(YEAR(Mar_Dim1+31)=Année_Calendaire,MONTH(Mar_Dim1+31)=3),Mar_Dim1+31,\"\"),IF(AND(YEAR(Mar_Dim1+38)=Année_Calendaire,MONTH(Mar_Dim1+38)=3),Mar_Dim1+38,\"\"))","v":""},{"$f":"IF(DAY(Mar_Dim1)=1,IF(AND(YEAR(Mar_Dim1+32)=Année_Calendaire,MONTH(Mar_Dim1+32)=3),Mar_Dim1+32,\"\"),IF(AND(YEAR(Mar_Dim1+39)=Année_Calendaire,MONTH(Mar_Dim1+39)=3),Mar_Dim1+39,\"\"))","v":""},{"$f":"IF(DAY(Mar_Dim1)=1,IF(AND(YEAR(Mar_Dim1+33)=Année_Calendaire,MONTH(Mar_Dim1+33)=3),Mar_Dim1+33,\"\"),IF(AND(YEAR(Mar_Dim1+40)=Année_Calendaire,MONTH(Mar_Dim1+40)=3),Mar_Dim1+40,\"\"))","v":""},{"$f":"IF(DAY(Mar_Dim1)=1,IF(AND(YEAR(Mar_Dim1+34)=Année_Calendaire,MONTH(Mar_Dim1+34)=3),Mar_Dim1+34,\"\"),IF(AND(YEAR(Mar_Dim1+41)=Année_Calendaire,MONTH(Mar_Dim1+41)=3),Mar_Dim1+41,\"\"))","v":""},{"$f":"IF(DAY(Mar_Dim1)=1,IF(AND(YEAR(Mar_Dim1+35)=Année_Calendaire,MONTH(Mar_Dim1+35)=3),Mar_Dim1+35,\"\"),IF(AND(YEAR(Mar_Dim1+42)=Année_Calendaire,MONTH(Mar_Dim1+42)=3),Mar_Dim1+42,\"\"))","v":""},null,{"$f":"IF(DAY(Avr_Dim1)=1,IF(AND(YEAR(Avr_Dim1+29)=Année_Calendaire,MONTH(Avr_Dim1+29)=4),Avr_Dim1+29,\"\"),IF(AND(YEAR(Avr_Dim1+36)=Année_Calendaire,MONTH(Avr_Dim1+36)=4),Avr_Dim1+36,\"\"))","v":""},{"$f":"IF(DAY(Avr_Dim1)=1,IF(AND(YEAR(Avr_Dim1+30)=Année_Calendaire,MONTH(Avr_Dim1+30)=4),Avr_Dim1+30,\"\"),IF(AND(YEAR(Avr_Dim1+37)=Année_Calendaire,MONTH(Avr_Dim1+37)=4),Avr_Dim1+37,\"\"))","v":""},{"$f":"IF(DAY(Avr_Dim1)=1,IF(AND(YEAR(Avr_Dim1+31)=Année_Calendaire,MONTH(Avr_Dim1+31)=4),Avr_Dim1+31,\"\"),IF(AND(YEAR(Avr_Dim1+38)=Année_Calendaire,MONTH(Avr_Dim1+38)=4),Avr_Dim1+38,\"\"))","v":""},{"$f":"IF(DAY(Avr_Dim1)=1,IF(AND(YEAR(Avr_Dim1+32)=Année_Calendaire,MONTH(Avr_Dim1+32)=4),Avr_Dim1+32,\"\"),IF(AND(YEAR(Avr_Dim1+39)=Année_Calendaire,MONTH(Avr_Dim1+39)=4),Avr_Dim1+39,\"\"))","v":""},{"$f":"IF(DAY(Avr_Dim1)=1,IF(AND(YEAR(Avr_Dim1+33)=Année_Calendaire,MONTH(Avr_Dim1+33)=4),Avr_Dim1+33,\"\"),IF(AND(YEAR(Avr_Dim1+40)=Année_Calendaire,MONTH(Avr_Dim1+40)=4),Avr_Dim1+40,\"\"))","v":""},{"$f":"IF(DAY(Avr_Dim1)=1,IF(AND(YEAR(Avr_Dim1+34)=Année_Calendaire,MONTH(Avr_Dim1+34)=4),Avr_Dim1+34,\"\"),IF(AND(YEAR(Avr_Dim1+41)=Année_Calendaire,MONTH(Avr_Dim1+41)=4),Avr_Dim1+41,\"\"))","v":""},{"$f":"IF(DAY(Avr_Dim1)=1,IF(AND(YEAR(Avr_Dim1+35)=Année_Calendaire,MONTH(Avr_Dim1+35)=4),Avr_Dim1+35,\"\"),IF(AND(YEAR(Avr_Dim1+42)=Année_Calendaire,MONTH(Avr_Dim1+42)=4),Avr_Dim1+42,\"\"))","v":""}]
[]
[]
[null,"MAI",null,null,null,null,null,null,null,"JUIN"]
[null,"L","M","M","J","V","S","D",null,"L","M","M","J","V","S","D"]
[null,{"$f":"IF(DAY(Mai_Dim1)=1,\"\",IF(AND(YEAR(Mai_Dim1+1)=Année_Calendaire,MONTH(Mai_Dim1+1)=5),Mai_Dim1+1,\"\"))","v":""},{"$f":"IF(DAY(Mai_Dim1)=1,\"\",IF(AND(YEAR(Mai_Dim1+2)=Année_Calendaire,MONTH(Mai_Dim1+2)=5),Mai_Dim1+2,\"\"))","v":""},{"$f":"IF(DAY(Mai_Dim1)=1,\"\",IF(AND(YEAR(Mai_Dim1+3)=Année_Calendaire,MONTH(Mai_Dim1+3)=5),Mai_Dim1+3,\"\"))","v":""},{"$f":"IF(DAY(Mai_Dim1)=1,\"\",IF(AND(YEAR(Mai_Dim1+4)=Année_Calendaire,MONTH(Mai_Dim1+4)=5),Mai_Dim1+4,\"\"))","v":""},{"$f":"IF(DAY(Mai_Dim1)=1,\"\",IF(AND(YEAR(Mai_Dim1+5)=Année_Calendaire,MONTH(Mai_Dim1+5)=5),Mai_Dim1+5,\"\"))","v":""},{"$f":"IF(DAY(Mai_Dim1)=1,\"\",IF(AND(YEAR(Mai_Dim1+6)=Année_Calendaire,MONTH(Mai_Dim1+6)=5),Mai_Dim1+6,\"\"))","v":""},{"$f":"IF(DAY(Mai_Dim1)=1,IF(AND(YEAR(Mai_Dim1)=Année_Calendaire,MONTH(Mai_Dim1)=5),Mai_Dim1,\"\"),IF(AND(YEAR(Mai_Dim1+7)=Année_Calendaire,MONTH(Mai_Dim1+7)=5),Mai_Dim1+7,\"\"))","v":"2016-05-01"},null,{"$f":"IF(DAY(Juin_Dim1)=1,\"\",IF(AND(YEAR(Juin_Dim1+1)=Année_Calendaire,MONTH(Juin_Dim1+1)=6),Juin_Dim1+1,\"\"))","v":""},{"$f":"IF(DAY(Juin_Dim1)=1,\"\",IF(AND(YEAR(Juin_Dim1+2)=Année_Calendaire,MONTH(Juin_Dim1+2)=6),Juin_Dim1+2,\"\"))","v":""},{"$f":"IF(DAY(Juin_Dim1)=1,\"\",IF(AND(YEAR(Juin_Dim1+3)=Année_Calendaire,MONTH(Juin_Dim1+3)=6),Juin_Dim1+3,\"\"))","v":"2016-06-01"},{"$f":"IF(DAY(Juin_Dim1)=1,\"\",IF(AND(YEAR(Juin_Dim1+4)=Année_Calendaire,MONTH(Juin_Dim1+4)=6),Juin_Dim1+4,\"\"))","v":"2016-06-02"},{"$f":"IF(DAY(Juin_Dim1)=1,\"\",IF(AND(YEAR(Juin_Dim1+5)=Année_Calendaire,MONTH(Juin_Dim1+5)=6),Juin_Dim1+5,\"\"))","v":"2016-06-03"},{"$f":"IF(DAY(Juin_Dim1)=1,\"\",IF(AND(YEAR(Juin_Dim1+6)=Année_Calendaire,MONTH(Juin_Dim1+6)=6),Juin_Dim1+6,\"\"))","v":"2016-06-04"},{"$f":"IF(DAY(Juin_Dim1)=1,IF(AND(YEAR(Juin_Dim1)=Année_Calendaire,MONTH(Juin_Dim1)=6),Juin_Dim1,\"\"),IF(AND(YEAR(Juin_Dim1+7)=Année_Calendaire,MONTH(Juin_Dim1+7)=6),Juin_Dim1+7,\"\"))","v":"2016-06-05"}]
[null,{"$f":"IF(DAY(Mai_Dim1)=1,IF(AND(YEAR(Mai_Dim1+1)=Année_Calendaire,MONTH(Mai_Dim1+1)=5),Mai_Dim1+1,\"\"),IF(AND(YEAR(Mai_Dim1+8)=Année_Calendaire,MONTH(Mai_Dim1+8)=5),Mai_Dim1+8,\"\"))","v":"2016-05-02"},{"$f":"IF(DAY(Mai_Dim1)=1,IF(AND(YEAR(Mai_Dim1+2)=Année_Calendaire,MONTH(Mai_Dim1+2)=5),Mai_Dim1+2,\"\"),IF(AND(YEAR(Mai_Dim1+9)=Année_Calendaire,MONTH(Mai_Dim1+9)=5),Mai_Dim1+9,\"\"))","v":"2016-05-03"},{"$f":"IF(DAY(Mai_Dim1)=1,IF(AND(YEAR(Mai_Dim1+3)=Année_Calendaire,MONTH(Mai_Dim1+3)=5),Mai_Dim1+3,\"\"),IF(AND(YEAR(Mai_Dim1+10)=Année_Calendaire,MONTH(Mai_Dim1+10)=5),Mai_Dim1+10,\"\"))","v":"2016-05-04"},{"$f":"IF(DAY(Mai_Dim1)=1,IF(AND(YEAR(Mai_Dim1+4)=Année_Calendaire,MONTH(Mai_Dim1+4)=5),Mai_Dim1+4,\"\"),IF(AND(YEAR(Mai_Dim1+11)=Année_Calendaire,MONTH(Mai_Dim1+11)=5),Mai_Dim1+11,\"\"))","v":"2016-05-05"},{"$f":"IF(DAY(Mai_Dim1)=1,IF(AND(YEAR(Mai_Dim1+5)=Année_Calendaire,MONTH(Mai_Dim1+5)=5),Mai_Dim1+5,\"\"),IF(AND(YEAR(Mai_Dim1+12)=Année_Calendaire,MONTH(Mai_Dim1+12)=5),Mai_Dim1+12,\"\"))","v":"2016-05-06"},{"$f":"IF(DAY(Mai_Dim1)=1,IF(AND(YEAR(Mai_Dim1+6)=Année_Calendaire,MONTH(Mai_Dim1+6)=5),Mai_Dim1+6,\"\"),IF(AND(YEAR(Mai_Dim1+13)=Année_Calendaire,MONTH(Mai_Dim1+13)=5),Mai_Dim1+13,\"\"))","v":"2016-05-07"},{"$f":"IF(DAY(Mai_Dim1)=1,IF(AND(YEAR(Mai_Dim1+7)=Année_Calendaire,MONTH(Mai_Dim1+7)=5),Mai_Dim1+7,\"\"),IF(AND(YEAR(Mai_Dim1+14)=Année_Calendaire,MONTH(Mai_Dim1+14)=5),Mai_Dim1+14,\"\"))","v":"2016-05-08"},null,{"$f":"IF(DAY(Juin_Dim1)=1,IF(AND(YEAR(Juin_Dim1+1)=Année_Calendaire,MONTH(Juin_Dim1+1)=6),Juin_Dim1+1,\"\"),IF(AND(YEAR(Juin_Dim1+8)=Année_Calendaire,MONTH(Juin_Dim1+8)=6),Juin_Dim1+8,\"\"))","v":"2016-06-06"},{"$f":"IF(DAY(Juin_Dim1)=1,IF(AND(YEAR(Juin_Dim1+2)=Année_Calendaire,MONTH(Juin_Dim1+2)=6),Juin_Dim1+2,\"\"),IF(AND(YEAR(Juin_Dim1+9)=Année_Calendaire,MONTH(Juin_Dim1+9)=6),Juin_Dim1+9,\"\"))","v":"2016-06-07"},{"$f":"IF(DAY(Juin_Dim1)=1,IF(AND(YEAR(Juin_Dim1+3)=Année_Calendaire,MONTH(Juin_Dim1+3)=6),Juin_Dim1+3,\"\"),IF(AND(YEAR(Juin_Dim1+10)=Année_Calendaire,MONTH(Juin_Dim1+10)=6),Juin_Dim1+10,\"\"))","v":"2016-06-08"},{"$f":"IF(DAY(Juin_Dim1)=1,IF(AND(YEAR(Juin_Dim1+4)=Année_Calendaire,MONTH(Juin_Dim1+4)=6),Juin_Dim1+4,\"\"),IF(AND(YEAR(Juin_Dim1+11)=Année_Calendaire,MONTH(Juin_Dim1+11)=6),Juin_Dim1+11,\"\"))","v":"2016-06-09"},{"$f":"IF(DAY(Juin_Dim1)=1,IF(AND(YEAR(Juin_Dim1+5)=Année_Calendaire,MONTH(Juin_Dim1+5)=6),Juin_Dim1+5,\"\"),IF(AND(YEAR(Juin_Dim1+12)=Année_Calendaire,MONTH(Juin_Dim1+12)=6),Juin_Dim1+12,\"\"))","v":"2016-06-10"},{"$f":"IF(DAY(Juin_Dim1)=1,IF(AND(YEAR(Juin_Dim1+6)=Année_Calendaire,MONTH(Juin_Dim1+6)=6),Juin_Dim1+6,\"\"),IF(AND(YEAR(Juin_Dim1+13)=Année_Calendaire,MONTH(Juin_Dim1+13)=6),Juin_Dim1+13,\"\"))","v":"2016-06-11"},{"$f":"IF(DAY(Juin_Dim1)=1,IF(AND(YEAR(Juin_Dim1+7)=Année_Calendaire,MONTH(Juin_Dim1+7)=6),Juin_Dim1+7,\"\"),IF(AND(YEAR(Juin_Dim1+14)=Année_Calendaire,MONTH(Juin_Dim1+14)=6),Juin_Dim1+14,\"\"))","v":"2016-06-12"}]
[null,{"$f":"IF(DAY(Mai_Dim1)=1,IF(AND(YEAR(Mai_Dim1+8)=Année_Calendaire,MONTH(Mai_Dim1+8)=5),Mai_Dim1+8,\"\"),IF(AND(YEAR(Mai_Dim1+15)=Année_Calendaire,MONTH(Mai_Dim1+15)=5),Mai_Dim1+15,\"\"))","v":"2016-05-09"},{"$f":"IF(DAY(Mai_Dim1)=1,IF(AND(YEAR(Mai_Dim1+9)=Année_Calendaire,MONTH(Mai_Dim1+9)=5),Mai_Dim1+9,\"\"),IF(AND(YEAR(Mai_Dim1+16)=Année_Calendaire,MONTH(Mai_Dim1+16)=5),Mai_Dim1+16,\"\"))","v":"2016-05-10"},{"$f":"IF(DAY(Mai_Dim1)=1,IF(AND(YEAR(Mai_Dim1+10)=Année_Calendaire,MONTH(Mai_Dim1+10)=5),Mai_Dim1+10,\"\"),IF(AND(YEAR(Mai_Dim1+17)=Année_Calendaire,MONTH(Mai_Dim1+17)=5),Mai_Dim1+17,\"\"))","v":"2016-05-11"},{"$f":"IF(DAY(Mai_Dim1)=1,IF(AND(YEAR(Mai_Dim1+11)=Année_Calendaire,MONTH(Mai_Dim1+11)=5),Mai_Dim1+11,\"\"),IF(AND(YEAR(Mai_Dim1+18)=Année_Calendaire,MONTH(Mai_Dim1+18)=5),Mai_Dim1+18,\"\"))","v":"2016-05-12"},{"$f":"IF(DAY(Mai_Dim1)=1,IF(AND(YEAR(Mai_Dim1+12)=Année_Calendaire,MONTH(Mai_Dim1+12)=5),Mai_Dim1+12,\"\"),IF(AND(YEAR(Mai_Dim1+19)=Année_Calendaire,MONTH(Mai_Dim1+19)=5),Mai_Dim1+19,\"\"))","v":"2016-05-13"},{"$f":"IF(DAY(Mai_Dim1)=1,IF(AND(YEAR(Mai_Dim1+13)=Année_Calendaire,MONTH(Mai_Dim1+13)=5),Mai_Dim1+13,\"\"),IF(AND(YEAR(Mai_Dim1+20)=Année_Calendaire,MONTH(Mai_Dim1+20)=5),Mai_Dim1+20,\"\"))","v":"2016-05-14"},{"$f":"IF(DAY(Mai_Dim1)=1,IF(AND(YEAR(Mai_Dim1+14)=Année_Calendaire,MONTH(Mai_Dim1+14)=5),Mai_Dim1+14,\"\"),IF(AND(YEAR(Mai_Dim1+21)=Année_Calendaire,MONTH(Mai_Dim1+21)=5),Mai_Dim1+21,\"\"))","v":"2016-05-15"},null,{"$f":"IF(DAY(Juin_Dim1)=1,IF(AND(YEAR(Juin_Dim1+8)=Année_Calendaire,MONTH(Juin_Dim1+8)=6),Juin_Dim1+8,\"\"),IF(AND(YEAR(Juin_Dim1+15)=Année_Calendaire,MONTH(Juin_Dim1+15)=6),Juin_Dim1+15,\"\"))","v":"2016-06-13"},{"$f":"IF(DAY(Juin_Dim1)=1,IF(AND(YEAR(Juin_Dim1+9)=Année_Calendaire,MONTH(Juin_Dim1+9)=6),Juin_Dim1+9,\"\"),IF(AND(YEAR(Juin_Dim1+16)=Année_Calendaire,MONTH(Juin_Dim1+16)=6),Juin_Dim1+16,\"\"))","v":"2016-06-14"},{"$f":"IF(DAY(Juin_Dim1)=1,IF(AND(YEAR(Juin_Dim1+10)=Année_Calendaire,MONTH(Juin_Dim1+10)=6),Juin_Dim1+10,\"\"),IF(AND(YEAR(Juin_Dim1+17)=Année_Calendaire,MONTH(Juin_Dim1+17)=6),Juin_Dim1+17,\"\"))","v":"2016-06-15"},{"$f":"IF(DAY(Juin_Dim1)=1,IF(AND(YEAR(Juin_Dim1+11)=Année_Calendaire,MONTH(Juin_Dim1+11)=6),Juin_Dim1+11,\"\"),IF(AND(YEAR(Juin_Dim1+18)=Année_Calendaire,MONTH(Juin_Dim1+18)=6),Juin_Dim1+18,\"\"))","v":"2016-06-16"},{"$f":"IF(DAY(Juin_Dim1)=1,IF(AND(YEAR(Juin_Dim1+12)=Année_Calendaire,MONTH(Juin_Dim1+12)=6),Juin_Dim1+12,\"\"),IF(AND(YEAR(Juin_Dim1+19)=Année_Calendaire,MONTH(Juin_Dim1+19)=6),Juin_Dim1+19,\"\"))","v":"2016-06-17"},{"$f":"IF(DAY(Juin_Dim1)=1,IF(AND(YEAR(Juin_Dim1+13)=Année_Calendaire,MONTH(Juin_Dim1+13)=6),Juin_Dim1+13,\"\"),IF(AND(YEAR(Juin_Dim1+20)=Année_Calendaire,MONTH(Juin_Dim1+20)=6),Juin_Dim1+20,\"\"))","v":"2016-06-18"},{"$f":"IF(DAY(Juin_Dim1)=1,IF(AND(YEAR(Juin_Dim1+14)=Année_Calendaire,MONTH(Juin_Dim1+14)=6),Juin_Dim1+14,\"\"),IF(AND(YEAR(Juin_Dim1+21)=Année_Calendaire,MONTH(Juin_Dim1+21)=6),Juin_Dim1+21,\"\"))","v":"2016-06-19"}]
[null,{"$f":"IF(DAY(Mai_Dim1)=1,IF(AND(YEAR(Mai_Dim1+15)=Année_Calendaire,MONTH(Mai_Dim1+15)=5),Mai_Dim1+15,\"\"),IF(AND(YEAR(Mai_Dim1+22)=Année_Calendaire,MONTH(Mai_Dim1+22)=5),Mai_Dim1+22,\"\"))","v":"2016-05-16"},{"$f":"IF(DAY(Mai_Dim1)=1,IF(AND(YEAR(Mai_Dim1+16)=Année_Calendaire,MONTH(Mai_Dim1+16)=5),Mai_Dim1+16,\"\"),IF(AND(YEAR(Mai_Dim1+23)=Année_Calendaire,MONTH(Mai_Dim1+23)=5),Mai_Dim1+23,\"\"))","v":"2016-05-17"},{"$f":"IF(DAY(Mai_Dim1)=1,IF(AND(YEAR(Mai_Dim1+17)=Année_Calendaire,MONTH(Mai_Dim1+17)=5),Mai_Dim1+17,\"\"),IF(AND(YEAR(Mai_Dim1+24)=Année_Calendaire,MONTH(Mai_Dim1+24)=5),Mai_Dim1+24,\"\"))","v":"2016-05-18"},{"$f":"IF(DAY(Mai_Dim1)=1,IF(AND(YEAR(Mai_Dim1+18)=Année_Calendaire,MONTH(Mai_Dim1+18)=5),Mai_Dim1+18,\"\"),IF(AND(YEAR(Mai_Dim1+25)=Année_Calendaire,MONTH(Mai_Dim1+25)=5),Mai_Dim1+25,\"\"))","v":"2016-05-19"},{"$f":"IF(DAY(Mai_Dim1)=1,IF(AND(YEAR(Mai_Dim1+19)=Année_Calendaire,MONTH(Mai_Dim1+19)=5),Mai_Dim1+19,\"\"),IF(AND(YEAR(Mai_Dim1+26)=Année_Calendaire,MONTH(Mai_Dim1+26)=5),Mai_Dim1+26,\"\"))","v":"2016-05-20"},{"$f":"IF(DAY(Mai_Dim1)=1,IF(AND(YEAR(Mai_Dim1+20)=Année_Calendaire,MONTH(Mai_Dim1+20)=5),Mai_Dim1+20,\"\"),IF(AND(YEAR(Mai_Dim1+27)=Année_Calendaire,MONTH(Mai_Dim1+27)=5),Mai_Dim1+27,\"\"))","v":"2016-05-21"},{"$f":"IF(DAY(Mai_Dim1)=1,IF(AND(YEAR(Mai_Dim1+21)=Année_Calendaire,MONTH(Mai_Dim1+21)=5),Mai_Dim1+21,\"\"),IF(AND(YEAR(Mai_Dim1+28)=Année_Calendaire,MONTH(Mai_Dim1+28)=5),Mai_Dim1+28,\"\"))","v":"2016-05-22"},null,{"$f":"IF(DAY(Juin_Dim1)=1,IF(AND(YEAR(Juin_Dim1+15)=Année_Calendaire,MONTH(Juin_Dim1+15)=6),Juin_Dim1+15,\"\"),IF(AND(YEAR(Juin_Dim1+22)=Année_Calendaire,MONTH(Juin_Dim1+22)=6),Juin_Dim1+22,\"\"))","v":"2016-06-20"},{"$f":"IF(DAY(Juin_Dim1)=1,IF(AND(YEAR(Juin_Dim1+16)=Année_Calendaire,MONTH(Juin_Dim1+16)=6),Juin_Dim1+16,\"\"),IF(AND(YEAR(Juin_Dim1+23)=Année_Calendaire,MONTH(Juin_Dim1+23)=6),Juin_Dim1+23,\"\"))","v":"2016-06-21"},{"$f":"IF(DAY(Juin_Dim1)=1,IF(AND(YEAR(Juin_Dim1+17)=Année_Calendaire,MONTH(Juin_Dim1+17)=6),Juin_Dim1+17,\"\"),IF(AND(YEAR(Juin_Dim1+24)=Année_Calendaire,MONTH(Juin_Dim1+24)=6),Juin_Dim1+24,\"\"))","v":"2016-06-22"},{"$f":"IF(DAY(Juin_Dim1)=1,IF(AND(YEAR(Juin_Dim1+18)=Année_Calendaire,MONTH(Juin_Dim1+18)=6),Juin_Dim1+18,\"\"),IF(AND(YEAR(Juin_Dim1+25)=Année_Calendaire,MONTH(Juin_Dim1+25)=6),Juin_Dim1+25,\"\"))","v":"2016-06-23"},{"$f":"IF(DAY(Juin_Dim1)=1,IF(AND(YEAR(Juin_Dim1+19)=Année_Calendaire,MONTH(Juin_Dim1+19)=6),Juin_Dim1+19,\"\"),IF(AND(YEAR(Juin_Dim1+26)=Année_Calendaire,MONTH(Juin_Dim1+26)=6),Juin_Dim1+26,\"\"))","v":"2016-06-24"},{"$f":"IF(DAY(Juin_Dim1)=1,IF(AND(YEAR(Juin_Dim1+20)=Année_Calendaire,MONTH(Juin_Dim1+20)=6),Juin_Dim1+20,\"\"),IF(AND(YEAR(Juin_Dim1+27)=Année_Calendaire,MONTH(Juin_Dim1+27)=6),Juin_Dim1+27,\"\"))","v":"2016-06-25"},{"$f":"IF(DAY(Juin_Dim1)=1,IF(AND(YEAR(Juin_Dim1+21)=Année_Calendaire,MONTH(Juin_Dim1+21)=6),Juin_Dim1+21,\"\"),IF(AND(YEAR(Juin_Dim1+28)=Année_Calendaire,MONTH(Juin_Dim1+28)=6),Juin_Dim1+28,\"\"))","v":"2016-06-26"}]
[null,{"$f":"IF(DAY(Mai_Dim1)=1,IF(AND(YEAR(Mai_Dim1+22)=Année_Calendaire,MONTH(Mai_Dim1+22)=5),Mai_Dim1+22,\"\"),IF(AND(YEAR(Mai_Dim1+29)=Année_Calendaire,MONTH(Mai_Dim1+29)=5),Mai_Dim1+29,\"\"))","v":"2016-05-23"},{"$f":"IF(DAY(Mai_Dim1)=1,IF(AND(YEAR(Mai_Dim1+23)=Année_Calendaire,MONTH(Mai_Dim1+23)=5),Mai_Dim1+23,\"\"),IF(AND(YEAR(Mai_Dim1+30)=Année_Calendaire,MONTH(Mai_Dim1+30)=5),Mai_Dim1+30,\"\"))","v":"2016-05-24"},{"$f":"IF(DAY(Mai_Dim1)=1,IF(AND(YEAR(Mai_Dim1+24)=Année_Calendaire,MONTH(Mai_Dim1+24)=5),Mai_Dim1+24,\"\"),IF(AND(YEAR(Mai_Dim1+31)=Année_Calendaire,MONTH(Mai_Dim1+31)=5),Mai_Dim1+31,\"\"))","v":"2016-05-25"},{"$f":"IF(DAY(Mai_Dim1)=1,IF(AND(YEAR(Mai_Dim1+25)=Année_Calendaire,MONTH(Mai_Dim1+25)=5),Mai_Dim1+25,\"\"),IF(AND(YEAR(Mai_Dim1+32)=Année_Calendaire,MONTH(Mai_Dim1+32)=5),Mai_Dim1+32,\"\"))","v":"2016-05-26"},{"$f":"IF(DAY(Mai_Dim1)=1,IF(AND(YEAR(Mai_Dim1+26)=Année_Calendaire,MONTH(Mai_Dim1+26)=5),Mai_Dim1+26,\"\"),IF(AND(YEAR(Mai_Dim1+33)=Année_Calendaire,MONTH(Mai_Dim1+33)=5),Mai_Dim1+33,\"\"))","v":"2016-05-27"},{"$f":"IF(DAY(Mai_Dim1)=1,IF(AND(YEAR(Mai_Dim1+27)=Année_Calendaire,MONTH(Mai_Dim1+27)=5),Mai_Dim1+27,\"\"),IF(AND(YEAR(Mai_Dim1+34)=Année_Calendaire,MONTH(Mai_Dim1+34)=5),Mai_Dim1+34,\"\"))","v":"2016-05-28"},{"$f":"IF(DAY(Mai_Dim1)=1,IF(AND(YEAR(Mai_Dim1+28)=Année_Calendaire,MONTH(Mai_Dim1+28)=5),Mai_Dim1+28,\"\"),IF(AND(YEAR(Mai_Dim1+35)=Année_Calendaire,MONTH(Mai_Dim1+35)=5),Mai_Dim1+35,\"\"))","v":"2016-05-29"},null,{"$f":"IF(DAY(Juin_Dim1)=1,IF(AND(YEAR(Juin_Dim1+22)=Année_Calendaire,MONTH(Juin_Dim1+22)=6),Juin_Dim1+22,\"\"),IF(AND(YEAR(Juin_Dim1+29)=Année_Calendaire,MONTH(Juin_Dim1+29)=6),Juin_Dim1+29,\"\"))","v":"2016-06-27"},{"$f":"IF(DAY(Juin_Dim1)=1,IF(AND(YEAR(Juin_Dim1+23)=Année_Calendaire,MONTH(Juin_Dim1+23)=6),Juin_Dim1+23,\"\"),IF(AND(YEAR(Juin_Dim1+30)=Année_Calendaire,MONTH(Juin_Dim1+30)=6),Juin_Dim1+30,\"\"))","v":"2016-06-28"},{"$f":"IF(DAY(Juin_Dim1)=1,IF(AND(YEAR(Juin_Dim1+24)=Année_Calendaire,MONTH(Juin_Dim1+24)=6),Juin_Dim1+24,\"\"),IF(AND(YEAR(Juin_Dim1+31)=Année_Calendaire,MONTH(Juin_Dim1+31)=6),Juin_Dim1+31,\"\"))","v":"2016-06-29"},{"$f":"IF(DAY(Juin_Dim1)=1,IF(AND(YEAR(Juin_Dim1+25)=Année_Calendaire,MONTH(Juin_Dim1+25)=6),Juin_Dim1+25,\"\"),IF(AND(YEAR(Juin_Dim1+32)=Année_Calendaire,MONTH(Juin_Dim1+32)=6),Juin_Dim1+32,\"\"))","v":"2016-06-30"},{"$f":"IF(DAY(Juin_Dim1)=1,IF(AND(YEAR(Juin_Dim1+26)=Année_Calendaire,MONTH(Juin_Dim1+26)=6),Juin_Dim1+26,\"\"),IF(AND(YEAR(Juin_Dim1+33)=Année_Calendaire,MONTH(Juin_Dim1+33)=6),Juin_Dim1+33,\"\"))","v":""},{"$f":"IF(DAY(Juin_Dim1)=1,IF(AND(YEAR(Juin_Dim1+27)=Année_Calendaire,MONTH(Juin_Dim1+27)=6),Juin_Dim1+27,\"\"),IF(AND(YEAR(Juin_Dim1+34)=Année_Calendaire,MONTH(Juin_Dim1+34)=6),Juin_Dim1+34,\"\"))","v":""},{"$f":"IF(DAY(Juin_Dim1)=1,IF(AND(YEAR(Juin_Dim1+28)=Année_Calendaire,MONTH(Juin_Dim1+28)=6),Juin_Dim1+28,\"\"),IF(AND(YEAR(Juin_Dim1+35)=Année_Calendaire,MONTH(Juin_Dim1+35)=6),Juin_Dim1+35,\"\"))","v":""}]
[null,{"$f":"IF(DAY(Mai_Dim1)=1,IF(AND(YEAR(Mai_Dim1+29)=Année_Calendaire,MONTH(Mai_Dim1+29)=5),Mai_Dim1+29,\"\"),IF(AND(YEAR(Mai_Dim1+36)=Année_Calendaire,MONTH(Mai_Dim1+36)=5),Mai_Dim1+36,\"\"))","v":"2016-05-30"},{"$f":"IF(DAY(Mai_Dim1)=1,IF(AND(YEAR(Mai_Dim1+30)=Année_Calendaire,MONTH(Mai_Dim1+30)=5),Mai_Dim1+30,\"\"),IF(AND(YEAR(Mai_Dim1+37)=Année_Calendaire,MONTH(Mai_Dim1+37)=5),Mai_Dim1+37,\"\"))","v":"2016-05-31"},{"$f":"IF(DAY(Mai_Dim1)=1,IF(AND(YEAR(Mai_Dim1+31)=Année_Calendaire,MONTH(Mai_Dim1+31)=5),Mai_Dim1+31,\"\"),IF(AND(YEAR(Mai_Dim1+38)=Année_Calendaire,MONTH(Mai_Dim1+38)=5),Mai_Dim1+38,\"\"))","v":""},{"$f":"IF(DAY(Mai_Dim1)=1,IF(AND(YEAR(Mai_Dim1+32)=Année_Calendaire,MONTH(Mai_Dim1+32)=5),Mai_Dim1+32,\"\"),IF(AND(YEAR(Mai_Dim1+39)=Année_Calendaire,MONTH(Mai_Dim1+39)=5),Mai_Dim1+39,\"\"))","v":""},{"$f":"IF(DAY(Mai_Dim1)=1,IF(AND(YEAR(Mai_Dim1+33)=Année_Calendaire,MONTH(Mai_Dim1+33)=5),Mai_Dim1+33,\"\"),IF(AND(YEAR(Mai_Dim1+40)=Année_Calendaire,MONTH(Mai_Dim1+40)=5),Mai_Dim1+40,\"\"))","v":""},{"$f":"IF(DAY(Mai_Dim1)=1,IF(AND(YEAR(Mai_Dim1+34)=Année_Calendaire,MONTH(Mai_Dim1+34)=5),Mai_Dim1+34,\"\"),IF(AND(YEAR(Mai_Dim1+41)=Année_Calendaire,MONTH(Mai_Dim1+41)=5),Mai_Dim1+41,\"\"))","v":""},{"$f":"IF(DAY(Mai_Dim1)=1,IF(AND(YEAR(Mai_Dim1+35)=Année_Calendaire,MONTH(Mai_Dim1+35)=5),Mai_Dim1+35,\"\"),IF(AND(YEAR(Mai_Dim1+42)=Année_Calendaire,MONTH(Mai_Dim1+42)=5),Mai_Dim1+42,\"\"))","v":""},null,{"$f":"IF(DAY(Juin_Dim1)=1,IF(AND(YEAR(Juin_Dim1+29)=Année_Calendaire,MONTH(Juin_Dim1+29)=6),Juin_Dim1+29,\"\"),IF(AND(YEAR(Juin_Dim1+36)=Année_Calendaire,MONTH(Juin_Dim1+36)=6),Juin_Dim1+36,\"\"))","v":""},{"$f":"IF(DAY(Juin_Dim1)=1,IF(AND(YEAR(Juin_Dim1+30)=Année_Calendaire,MONTH(Juin_Dim1+30)=6),Juin_Dim1+30,\"\"),IF(AND(YEAR(Juin_Dim1+37)=Année_Calendaire,MONTH(Juin_Dim1+37)=6),Juin_Dim1+37,\"\"))","v":""},{"$f":"IF(DAY(Juin_Dim1)=1,IF(AND(YEAR(Juin_Dim1+31)=Année_Calendaire,MONTH(Juin_Dim1+31)=6),Juin_Dim1+31,\"\"),IF(AND(YEAR(Juin_Dim1+38)=Année_Calendaire,MONTH(Juin_Dim1+38)=6),Juin_Dim1+38,\"\"))","v":""},{"$f":"IF(DAY(Juin_Dim1)=1,IF(AND(YEAR(Juin_Dim1+32)=Année_Calendaire,MONTH(Juin_Dim1+32)=6),Juin_Dim1+32,\"\"),IF(AND(YEAR(Juin_Dim1+39)=Année_Calendaire,MONTH(Juin_Dim1+39)=6),Juin_Dim1+39,\"\"))","v":""},{"$f":"IF(DAY(Juin_Dim1)=1,IF(AND(YEAR(Juin_Dim1+33)=Année_Calendaire,MONTH(Juin_Dim1+33)=6),Juin_Dim1+33,\"\"),IF(AND(YEAR(Juin_Dim1+40)=Année_Calendaire,MONTH(Juin_Dim1+40)=6),Juin_Dim1+40,\"\"))","v":""},{"$f":"IF(DAY(Juin_Dim1)=1,IF(AND(YEAR(Juin_Dim1+34)=Année_Calendaire,MONTH(Juin_Dim1+34)=6),Juin_Dim1+34,\"\"),IF(AND(YEAR(Juin_Dim1+41)=Année_Calendaire,MONTH(Juin_Dim1+41)=6),Juin_Dim1+41,\"\"))","v":""},{"$f":"IF(DAY(Juin_Dim1)=1,IF(AND(YEAR(Juin_Dim1+35)=Année_Calendaire,MONTH(Juin_Dim1+35)=6),Juin_Dim1+35,\"\"),IF(AND(YEAR(Juin_Dim1+42)=Année_Calendaire,MONTH(Juin_Dim1+42)=6),Juin_Dim1+42,\"\"))","v":""}]
[]
[]
[null,"JUILLET",null,null,null,null,null,null,null,"AOÛT"]
[null,"L","M","M","J","V","S","D",null,"L","M","M","J","V","S","D"]
[null,{"$f":"IF(DAY(Juil_Dim1)=1,\"\",IF(AND(YEAR(Juil_Dim1+1)=Année_Calendaire,MONTH(Juil_Dim1+1)=7),Juil_Dim1+1,\"\"))","v":""},{"$f":"IF(DAY(Juil_Dim1)=1,\"\",IF(AND(YEAR(Juil_Dim1+2)=Année_Calendaire,MONTH(Juil_Dim1+2)=7),Juil_Dim1+2,\"\"))","v":""},{"$f":"IF(DAY(Juil_Dim1)=1,\"\",IF(AND(YEAR(Juil_Dim1+3)=Année_Calendaire,MONTH(Juil_Dim1+3)=7),Juil_Dim1+3,\"\"))","v":""},{"$f":"IF(DAY(Juil_Dim1)=1,\"\",IF(AND(YEAR(Juil_Dim1+4)=Année_Calendaire,MONTH(Juil_Dim1+4)=7),Juil_Dim1+4,\"\"))","v":""},{"$f":"IF(DAY(Juil_Dim1)=1,\"\",IF(AND(YEAR(Juil_Dim1+5)=Année_Calendaire,MONTH(Juil_Dim1+5)=7),Juil_Dim1+5,\"\"))","v":"2016-07-01"},{"$f":"IF(DAY(Juil_Dim1)=1,\"\",IF(AND(YEAR(Juil_Dim1+6)=Année_Calendaire,MONTH(Juil_Dim1+6)=7),Juil_Dim1+6,\"\"))","v":"2016-07-02"},{"$f":"IF(DAY(Juil_Dim1)=1,IF(AND(YEAR(Juil_Dim1)=Année_Calendaire,MONTH(Juil_Dim1)=7),Juil_Dim1,\"\"),IF(AND(YEAR(Juil_Dim1+7)=Année_Calendaire,MONTH(Juil_Dim1+7)=7),Juil_Dim1+7,\"\"))","v":"2016-07-03"},null,{"$f":"IF(DAY(Aoû_Dim1)=1,\"\",IF(AND(YEAR(Aoû_Dim1+1)=Année_Calendaire,MONTH(Aoû_Dim1+1)=8),Aoû_Dim1+1,\"\"))","v":"2016-08-01"},{"$f":"IF(DAY(Aoû_Dim1)=1,\"\",IF(AND(YEAR(Aoû_Dim1+2)=Année_Calendaire,MONTH(Aoû_Dim1+2)=8),Aoû_Dim1+2,\"\"))","v":"2016-08-02"},{"$f":"IF(DAY(Aoû_Dim1)=1,\"\",IF(AND(YEAR(Aoû_Dim1+3)=Année_Calendaire,MONTH(Aoû_Dim1+3)=8),Aoû_Dim1+3,\"\"))","v":"2016-08-03"},{"$f":"IF(DAY(Aoû_Dim1)=1,\"\",IF(AND(YEAR(Aoû_Dim1+4)=Année_Calendaire,MONTH(Aoû_Dim1+4)=8),Aoû_Dim1+4,\"\"))","v":"2016-08-04"},{"$f":"IF(DAY(Aoû_Dim1)=1,\"\",IF(AND(YEAR(Aoû_Dim1+5)=Année_Calendaire,MONTH(Aoû_Dim1+5)=8),Aoû_Dim1+5,\"\"))","v":"2016-08-05"},{"$f":"IF(DAY(Aoû_Dim1)=1,\"\",IF(AND(YEAR(Aoû_Dim1+6)=Année_Calendaire,MONTH(Aoû_Dim1+6)=8),Aoû_Dim1+6,\"\"))","v":"2016-08-06"},{"$f":"IF(DAY(Aoû_Dim1)=1,IF(AND(YEAR(Aoû_Dim1)=Année_Calendaire,MONTH(Aoû_Dim1)=8),Aoû_Dim1,\"\"),IF(AND(YEAR(Aoû_Dim1+7)=Année_Calendaire,MONTH(Aoû_Dim1+7)=8),Aoû_Dim1+7,\"\"))","v":"2016-08-07"}]
[null,{"$f":"IF(DAY(Juil_Dim1)=1,IF(AND(YEAR(Juil_Dim1+1)=Année_Calendaire,MONTH(Juil_Dim1+1)=7),Juil_Dim1+1,\"\"),IF(AND(YEAR(Juil_Dim1+8)=Année_Calendaire,MONTH(Juil_Dim1+8)=7),Juil_Dim1+8,\"\"))","v":"2016-07-04"},{"$f":"IF(DAY(Juil_Dim1)=1,IF(AND(YEAR(Juil_Dim1+2)=Année_Calendaire,MONTH(Juil_Dim1+2)=7),Juil_Dim1+2,\"\"),IF(AND(YEAR(Juil_Dim1+9)=Année_Calendaire,MONTH(Juil_Dim1+9)=7),Juil_Dim1+9,\"\"))","v":"2016-07-05"},{"$f":"IF(DAY(Juil_Dim1)=1,IF(AND(YEAR(Juil_Dim1+3)=Année_Calendaire,MONTH(Juil_Dim1+3)=7),Juil_Dim1+3,\"\"),IF(AND(YEAR(Juil_Dim1+10)=Année_Calendaire,MONTH(Juil_Dim1+10)=7),Juil_Dim1+10,\"\"))","v":"2016-07-06"},{"$f":"IF(DAY(Juil_Dim1)=1,IF(AND(YEAR(Juil_Dim1+4)=Année_Calendaire,MONTH(Juil_Dim1+4)=7),Juil_Dim1+4,\"\"),IF(AND(YEAR(Juil_Dim1+11)=Année_Calendaire,MONTH(Juil_Dim1+11)=7),Juil_Dim1+11,\"\"))","v":"2016-07-07"},{"$f":"IF(DAY(Juil_Dim1)=1,IF(AND(YEAR(Juil_Dim1+5)=Année_Calendaire,MONTH(Juil_Dim1+5)=7),Juil_Dim1+5,\"\"),IF(AND(YEAR(Juil_Dim1+12)=Année_Calendaire,MONTH(Juil_Dim1+12)=7),Juil_Dim1+12,\"\"))","v":"2016-07-08"},{"$f":"IF(DAY(Juil_Dim1)=1,IF(AND(YEAR(Juil_Dim1+6)=Année_Calendaire,MONTH(Juil_Dim1+6)=7),Juil_Dim1+6,\"\"),IF(AND(YEAR(Juil_Dim1+13)=Année_Calendaire,MONTH(Juil_Dim1+13)=7),Juil_Dim1+13,\"\"))","v":"2016-07-09"},{"$f":"IF(DAY(Juil_Dim1)=1,IF(AND(YEAR(Juil_Dim1+7)=Année_Calendaire,MONTH(Juil_Dim1+7)=7),Juil_Dim1+7,\"\"),IF(AND(YEAR(Juil_Dim1+14)=Année_Calendaire,MONTH(Juil_Dim1+14)=7),Juil_Dim1+14,\"\"))","v":"2016-07-10"},null,{"$f":"IF(DAY(Aoû_Dim1)=1,IF(AND(YEAR(Aoû_Dim1+1)=Année_Calendaire,MONTH(Aoû_Dim1+1)=8),Aoû_Dim1+1,\"\"),IF(AND(YEAR(Aoû_Dim1+8)=Année_Calendaire,MONTH(Aoû_Dim1+8)=8),Aoû_Dim1+8,\"\"))","v":"2016-08-08"},{"$f":"IF(DAY(Aoû_Dim1)=1,IF(AND(YEAR(Aoû_Dim1+2)=Année_Calendaire,MONTH(Aoû_Dim1+2)=8),Aoû_Dim1+2,\"\"),IF(AND(YEAR(Aoû_Dim1+9)=Année_Calendaire,MONTH(Aoû_Dim1+9)=8),Aoû_Dim1+9,\"\"))","v":"2016-08-09"},{"$f":"IF(DAY(Aoû_Dim1)=1,IF(AND(YEAR(Aoû_Dim1+3)=Année_Calendaire,MONTH(Aoû_Dim1+3)=8),Aoû_Dim1+3,\"\"),IF(AND(YEAR(Aoû_Dim1+10)=Année_Calendaire,MONTH(Aoû_Dim1+10)=8),Aoû_Dim1+10,\"\"))","v":"2016-08-10"},{"$f":"IF(DAY(Aoû_Dim1)=1,IF(AND(YEAR(Aoû_Dim1+4)=Année_Calendaire,MONTH(Aoû_Dim1+4)=8),Aoû_Dim1+4,\"\"),IF(AND(YEAR(Aoû_Dim1+11)=Année_Calendaire,MONTH(Aoû_Dim1+11)=8),Aoû_Dim1+11,\"\"))","v":"2016-08-11"},{"$f":"IF(DAY(Aoû_Dim1)=1,IF(AND(YEAR(Aoû_Dim1+5)=Année_Calendaire,MONTH(Aoû_Dim1+5)=8),Aoû_Dim1+5,\"\"),IF(AND(YEAR(Aoû_Dim1+12)=Année_Calendaire,MONTH(Aoû_Dim1+12)=8),Aoû_Dim1+12,\"\"))","v":"2016-08-12"},{"$f":"IF(DAY(Aoû_Dim1)=1,IF(AND(YEAR(Aoû_Dim1+6)=Année_Calendaire,MONTH(Aoû_Dim1+6)=8),Aoû_Dim1+6,\"\"),IF(AND(YEAR(Aoû_Dim1+13)=Année_Calendaire,MONTH(Aoû_Dim1+13)=8),Aoû_Dim1+13,\"\"))","v":"2016-08-13"},{"$f":"IF(DAY(Aoû_Dim1)=1,IF(AND(YEAR(Aoû_Dim1+7)=Année_Calendaire,MONTH(Aoû_Dim1+7)=8),Aoû_Dim1+7,\"\"),IF(AND(YEAR(Aoû_Dim1+14)=Année_Calendaire,MONTH(Aoû_Dim1+14)=8),Aoû_Dim1+14,\"\"))","v":"2016-08-14"}]
[null,{"$f":"IF(DAY(Juil_Dim1)=1,IF(AND(YEAR(Juil_Dim1+8)=Année_Calendaire,MONTH(Juil_Dim1+8)=7),Juil_Dim1+8,\"\"),IF(AND(YEAR(Juil_Dim1+15)=Année_Calendaire,MONTH(Juil_Dim1+15)=7),Juil_Dim1+15,\"\"))","v":"2016-07-11"},{"$f":"IF(DAY(Juil_Dim1)=1,IF(AND(YEAR(Juil_Dim1+9)=Année_Calendaire,MONTH(Juil_Dim1+9)=7),Juil_Dim1+9,\"\"),IF(AND(YEAR(Juil_Dim1+16)=Année_Calendaire,MONTH(Juil_Dim1+16)=7),Juil_Dim1+16,\"\"))","v":"2016-07-12"},{"$f":"IF(DAY(Juil_Dim1)=1,IF(AND(YEAR(Juil_Dim1+10)=Année_Calendaire,MONTH(Juil_Dim1+10)=7),Juil_Dim1+10,\"\"),IF(AND(YEAR(Juil_Dim1+17)=Année_Calendaire,MONTH(Juil_Dim1+17)=7),Juil_Dim1+17,\"\"))","v":"2016-07-13"},{"$f":"IF(DAY(Juil_Dim1)=1,IF(AND(YEAR(Juil_Dim1+11)=Année_Calendaire,MONTH(Juil_Dim1+11)=7),Juil_Dim1+11,\"\"),IF(AND(YEAR(Juil_Dim1+18)=Année_Calendaire,MONTH(Juil_Dim1+18)=7),Juil_Dim1+18,\"\"))","v":"2016-07-14"},{"$f":"IF(DAY(Juil_Dim1)=1,IF(AND(YEAR(Juil_Dim1+12)=Année_Calendaire,MONTH(Juil_Dim1+12)=7),Juil_Dim1+12,\"\"),IF(AND(YEAR(Juil_Dim1+19)=Année_Calendaire,MONTH(Juil_Dim1+19)=7),Juil_Dim1+19,\"\"))","v":"2016-07-15"},{"$f":"IF(DAY(Juil_Dim1)=1,IF(AND(YEAR(Juil_Dim1+13)=Année_Calendaire,MONTH(Juil_Dim1+13)=7),Juil_Dim1+13,\"\"),IF(AND(YEAR(Juil_Dim1+20)=Année_Calendaire,MONTH(Juil_Dim1+20)=7),Juil_Dim1+20,\"\"))","v":"2016-07-16"},{"$f":"IF(DAY(Juil_Dim1)=1,IF(AND(YEAR(Juil_Dim1+14)=Année_Calendaire,MONTH(Juil_Dim1+14)=7),Juil_Dim1+14,\"\"),IF(AND(YEAR(Juil_Dim1+21)=Année_Calendaire,MONTH(Juil_Dim1+21)=7),Juil_Dim1+21,\"\"))","v":"2016-07-17"},null,{"$f":"IF(DAY(Aoû_Dim1)=1,IF(AND(YEAR(Aoû_Dim1+8)=Année_Calendaire,MONTH(Aoû_Dim1+8)=8),Aoû_Dim1+8,\"\"),IF(AND(YEAR(Aoû_Dim1+15)=Année_Calendaire,MONTH(Aoû_Dim1+15)=8),Aoû_Dim1+15,\"\"))","v":"2016-08-15"},{"$f":"IF(DAY(Aoû_Dim1)=1,IF(AND(YEAR(Aoû_Dim1+9)=Année_Calendaire,MONTH(Aoû_Dim1+9)=8),Aoû_Dim1+9,\"\"),IF(AND(YEAR(Aoû_Dim1+16)=Année_Calendaire,MONTH(Aoû_Dim1+16)=8),Aoû_Dim1+16,\"\"))","v":"2016-08-16"},{"$f":"IF(DAY(Aoû_Dim1)=1,IF(AND(YEAR(Aoû_Dim1+10)=Année_Calendaire,MONTH(Aoû_Dim1+10)=8),Aoû_Dim1+10,\"\"),IF(AND(YEAR(Aoû_Dim1+17)=Année_Calendaire,MONTH(Aoû_Dim1+17)=8),Aoû_Dim1+17,\"\"))","v":"2016-08-17"},{"$f":"IF(DAY(Aoû_Dim1)=1,IF(AND(YEAR(Aoû_Dim1+11)=Année_Calendaire,MONTH(Aoû_Dim1+11)=8),Aoû_Dim1+11,\"\"),IF(AND(YEAR(Aoû_Dim1+18)=Année_Calendaire,MONTH(Aoû_Dim1+18)=8),Aoû_Dim1+18,\"\"))","v":"2016-08-18"},{"$f":"IF(DAY(Aoû_Dim1)=1,IF(AND(YEAR(Aoû_Dim1+12)=Année_Calendaire,MONTH(Aoû_Dim1+12)=8),Aoû_Dim1+12,\"\"),IF(AND(YEAR(Aoû_Dim1+19)=Année_Calendaire,MONTH(Aoû_Dim1+19)=8),Aoû_Dim1+19,\"\"))","v":"2016-08-19"},{"$f":"IF(DAY(Aoû_Dim1)=1,IF(AND(YEAR(Aoû_Dim1+13)=Année_Calendaire,MONTH(Aoû_Dim1+13)=8),Aoû_Dim1+13,\"\"),IF(AND(YEAR(Aoû_Dim1+20)=Année_Calendaire,MONTH(Aoû_Dim1+20)=8),Aoû_Dim1+20,\"\"))","v":"2016-08-20"},{"$f":"IF(DAY(Aoû_Dim1)=1,IF(AND(YEAR(Aoû_Dim1+14)=Année_Calendaire,MONTH(Aoû_Dim1+14)=8),Aoû_Dim1+14,\"\"),IF(AND(YEAR(Aoû_Dim1+21)=Année_Calendaire,MONTH(Aoû_Dim1+21)=8),Aoû_Dim1+21,\"\"))","v":"2016-08-21"}]
[null,{"$f":"IF(DAY(Juil_Dim1)=1,IF(AND(YEAR(Juil_Dim1+15)=Année_Calendaire,MONTH(Juil_Dim1+15)=7),Juil_Dim1+15,\"\"),IF(AND(YEAR(Juil_Dim1+22)=Année_Calendaire,MONTH(Juil_Dim1+22)=7),Juil_Dim1+22,\"\"))","v":"2016-07-18"},{"$f":"IF(DAY(Juil_Dim1)=1,IF(AND(YEAR(Juil_Dim1+16)=Année_Calendaire,MONTH(Juil_Dim1+16)=7),Juil_Dim1+16,\"\"),IF(AND(YEAR(Juil_Dim1+23)=Année_Calendaire,MONTH(Juil_Dim1+23)=7),Juil_Dim1+23,\"\"))","v":"2016-07-19"},{"$f":"IF(DAY(Juil_Dim1)=1,IF(AND(YEAR(Juil_Dim1+17)=Année_Calendaire,MONTH(Juil_Dim1+17)=7),Juil_Dim1+17,\"\"),IF(AND(YEAR(Juil_Dim1+24)=Année_Calendaire,MONTH(Juil_Dim1+24)=7),Juil_Dim1+24,\"\"))","v":"2016-07-20"},{"$f":"IF(DAY(Juil_Dim1)=1,IF(AND(YEAR(Juil_Dim1+18)=Année_Calendaire,MONTH(Juil_Dim1+18)=7),Juil_Dim1+18,\"\"),IF(AND(YEAR(Juil_Dim1+25)=Année_Calendaire,MONTH(Juil_Dim1+25)=7),Juil_Dim1+25,\"\"))","v":"2016-07-21"},{"$f":"IF(DAY(Juil_Dim1)=1,IF(AND(YEAR(Juil_Dim1+19)=Année_Calendaire,MONTH(Juil_Dim1+19)=7),Juil_Dim1+19,\"\"),IF(AND(YEAR(Juil_Dim1+26)=Année_Calendaire,MONTH(Juil_Dim1+26)=7),Juil_Dim1+26,\"\"))","v":"2016-07-22"},{"$f":"IF(DAY(Juil_Dim1)=1,IF(AND(YEAR(Juil_Dim1+20)=Année_Calendaire,MONTH(Juil_Dim1+20)=7),Juil_Dim1+20,\"\"),IF(AND(YEAR(Juil_Dim1+27)=Année_Calendaire,MONTH(Juil_Dim1+27)=7),Juil_Dim1+27,\"\"))","v":"2016-07-23"},{"$f":"IF(DAY(Juil_Dim1)=1,IF(AND(YEAR(Juil_Dim1+21)=Année_Calendaire,MONTH(Juil_Dim1+21)=7),Juil_Dim1+21,\"\"),IF(AND(YEAR(Juil_Dim1+28)=Année_Calendaire,MONTH(Juil_Dim1+28)=7),Juil_Dim1+28,\"\"))","v":"2016-07-24"},null,{"$f":"IF(DAY(Aoû_Dim1)=1,IF(AND(YEAR(Aoû_Dim1+15)=Année_Calendaire,MONTH(Aoû_Dim1+15)=8),Aoû_Dim1+15,\"\"),IF(AND(YEAR(Aoû_Dim1+22)=Année_Calendaire,MONTH(Aoû_Dim1+22)=8),Aoû_Dim1+22,\"\"))","v":"2016-08-22"},{"$f":"IF(DAY(Aoû_Dim1)=1,IF(AND(YEAR(Aoû_Dim1+16)=Année_Calendaire,MONTH(Aoû_Dim1+16)=8),Aoû_Dim1+16,\"\"),IF(AND(YEAR(Aoû_Dim1+23)=Année_Calendaire,MONTH(Aoû_Dim1+23)=8),Aoû_Dim1+23,\"\"))","v":"2016-08-23"},{"$f":"IF(DAY(Aoû_Dim1)=1,IF(AND(YEAR(Aoû_Dim1+17)=Année_Calendaire,MONTH(Aoû_Dim1+17)=8),Aoû_Dim1+17,\"\"),IF(AND(YEAR(Aoû_Dim1+24)=Année_Calendaire,MONTH(Aoû_Dim1+24)=8),Aoû_Dim1+24,\"\"))","v":"2016-08-24"},{"$f":"IF(DAY(Aoû_Dim1)=1,IF(AND(YEAR(Aoû_Dim1+18)=Année_Calendaire,MONTH(Aoû_Dim1+18)=8),Aoû_Dim1+18,\"\"),IF(AND(YEAR(Aoû_Dim1+25)=Année_Calendaire,MONTH(Aoû_Dim1+25)=8),Aoû_Dim1+25,\"\"))","v":"2016-08-25"},{"$f":"IF(DAY(Aoû_Dim1)=1,IF(AND(YEAR(Aoû_Dim1+19)=Année_Calendaire,MONTH(Aoû_Dim1+19)=8),Aoû_Dim1+19,\"\"),IF(AND(YEAR(Aoû_Dim1+26)=Année_Calendaire,MONTH(Aoû_Dim1+26)=8),Aoû_Dim1+26,\"\"))","v":"2016-08-26"},{"$f":"IF(DAY(Aoû_Dim1)=1,IF(AND(YEAR(Aoû_Dim1+20)=Année_Calendaire,MONTH(Aoû_Dim1+20)=8),Aoû_Dim1+20,\"\"),IF(AND(YEAR(Aoû_Dim1+27)=Année_Calendaire,MONTH(Aoû_Dim1+27)=8),Aoû_Dim1+27,\"\"))","v":"2016-08-27"},{"$f":"IF(DAY(Aoû_Dim1)=1,IF(AND(YEAR(Aoû_Dim1+21)=Année_Calendaire,MONTH(Aoû_Dim1+21)=8),Aoû_Dim1+21,\"\"),IF(AND(YEAR(Aoû_Dim1+28)=Année_Calendaire,MONTH(Aoû_Dim1+28)=8),Aoû_Dim1+28,\"\"))","v":"2016-08-28"}]
[null,{"$f":"IF(DAY(Juil_Dim1)=1,IF(AND(YEAR(Juil_Dim1+22)=Année_Calendaire,MONTH(Juil_Dim1+22)=7),Juil_Dim1+22,\"\"),IF(AND(YEAR(Juil_Dim1+29)=Année_Calendaire,MONTH(Juil_Dim1+29)=7),Juil_Dim1+29,\"\"))","v":"2016-07-25"},{"$f":"IF(DAY(Juil_Dim1)=1,IF(AND(YEAR(Juil_Dim1+23)=Année_Calendaire,MONTH(Juil_Dim1+23)=7),Juil_Dim1+23,\"\"),IF(AND(YEAR(Juil_Dim1+30)=Année_Calendaire,MONTH(Juil_Dim1+30)=7),Juil_Dim1+30,\"\"))","v":"2016-07-26"},{"$f":"IF(DAY(Juil_Dim1)=1,IF(AND(YEAR(Juil_Dim1+24)=Année_Calendaire,MONTH(Juil_Dim1+24)=7),Juil_Dim1+24,\"\"),IF(AND(YEAR(Juil_Dim1+31)=Année_Calendaire,MONTH(Juil_Dim1+31)=7),Juil_Dim1+31,\"\"))","v":"2016-07-27"},{"$f":"IF(DAY(Juil_Dim1)=1,IF(AND(YEAR(Juil_Dim1+25)=Année_Calendaire,MONTH(Juil_Dim1+25)=7),Juil_Dim1+25,\"\"),IF(AND(YEAR(Juil_Dim1+32)=Année_Calendaire,MONTH(Juil_Dim1+32)=7),Juil_Dim1+32,\"\"))","v":"2016-07-28"},{"$f":"IF(DAY(Juil_Dim1)=1,IF(AND(YEAR(Juil_Dim1+26)=Année_Calendaire,MONTH(Juil_Dim1+26)=7),Juil_Dim1+26,\"\"),IF(AND(YEAR(Juil_Dim1+33)=Année_Calendaire,MONTH(Juil_Dim1+33)=7),Juil_Dim1+33,\"\"))","v":"2016-07-29"},{"$f":"IF(DAY(Juil_Dim1)=1,IF(AND(YEAR(Juil_Dim1+27)=Année_Calendaire,MONTH(Juil_Dim1+27)=7),Juil_Dim1+27,\"\"),IF(AND(YEAR(Juil_Dim1+34)=Année_Calendaire,MONTH(Juil_Dim1+34)=7),Juil_Dim1+34,\"\"))","v":"2016-07-30"},{"$f":"IF(DAY(Juil_Dim1)=1,IF(AND(YEAR(Juil_Dim1+28)=Année_Calendaire,MONTH(Juil_Dim1+28)=7),Juil_Dim1+28,\"\"),IF(AND(YEAR(Juil_Dim1+35)=Année_Calendaire,MONTH(Juil_Dim1+35)=7),Juil_Dim1+35,\"\"))","v":"2016-07-31"},null,{"$f":"IF(DAY(Aoû_Dim1)=1,IF(AND(YEAR(Aoû_Dim1+22)=Année_Calendaire,MONTH(Aoû_Dim1+22)=8),Aoû_Dim1+22,\"\"),IF(AND(YEAR(Aoû_Dim1+29)=Année_Calendaire,MONTH(Aoû_Dim1+29)=8),Aoû_Dim1+29,\"\"))","v":"2016-08-29"},{"$f":"IF(DAY(Aoû_Dim1)=1,IF(AND(YEAR(Aoû_Dim1+23)=Année_Calendaire,MONTH(Aoû_Dim1+23)=8),Aoû_Dim1+23,\"\"),IF(AND(YEAR(Aoû_Dim1+30)=Année_Calendaire,MONTH(Aoû_Dim1+30)=8),Aoû_Dim1+30,\"\"))","v":"2016-08-30"},{"$f":"IF(DAY(Aoû_Dim1)=1,IF(AND(YEAR(Aoû_Dim1+24)=Année_Calendaire,MONTH(Aoû_Dim1+24)=8),Aoû_Dim1+24,\"\"),IF(AND(YEAR(Aoû_Dim1+31)=Année_Calendaire,MONTH(Aoû_Dim1+31)=8),Aoû_Dim1+31,\"\"))","v":"2016-08-31"},{"$f":"IF(DAY(Aoû_Dim1)=1,IF(AND(YEAR(Aoû_Dim1+25)=Année_Calendaire,MONTH(Aoû_Dim1+25)=8),Aoû_Dim1+25,\"\"),IF(AND(YEAR(Aoû_Dim1+32)=Année_Calendaire,MONTH(Aoû_Dim1+32)=8),Aoû_Dim1+32,\"\"))","v":""},{"$f":"IF(DAY(Aoû_Dim1)=1,IF(AND(YEAR(Aoû_Dim1+26)=Année_Calendaire,MONTH(Aoû_Dim1+26)=8),Aoû_Dim1+26,\"\"),IF(AND(YEAR(Aoû_Dim1+33)=Année_Calendaire,MONTH(Aoû_Dim1+33)=8),Aoû_Dim1+33,\"\"))","v":""},{"$f":"IF(DAY(Aoû_Dim1)=1,IF(AND(YEAR(Aoû_Dim1+27)=Année_Calendaire,MONTH(Aoû_Dim1+27)=8),Aoû_Dim1+27,\"\"),IF(AND(YEAR(Aoû_Dim1+34)=Année_Calendaire,MONTH(Aoû_Dim1+34)=8),Aoû_Dim1+34,\"\"))","v":""},{"$f":"IF(DAY(Aoû_Dim1)=1,IF(AND(YEAR(Aoû_Dim1+28)=Année_Calendaire,MONTH(Aoû_Dim1+28)=8),Aoû_Dim1+28,\"\"),IF(AND(YEAR(Aoû_Dim1+35)=Année_Calendaire,MONTH(Aoû_Dim1+35)=8),Aoû_Dim1+35,\"\"))","v":""}]
[null,{"$f":"IF(DAY(Juil_Dim1)=1,IF(AND(YEAR(Juil_Dim1+29)=Année_Calendaire,MONTH(Juil_Dim1+29)=7),Juil_Dim1+29,\"\"),IF(AND(YEAR(Juil_Dim1+36)=Année_Calendaire,MONTH(Juil_Dim1+36)=7),Juil_Dim1+36,\"\"))","v":""},{"$f":"IF(DAY(Juil_Dim1)=1,IF(AND(YEAR(Juil_Dim1+30)=Année_Calendaire,MONTH(Juil_Dim1+30)=7),Juil_Dim1+30,\"\"),IF(AND(YEAR(Juil_Dim1+37)=Année_Calendaire,MONTH(Juil_Dim1+37)=7),Juil_Dim1+37,\"\"))","v":""},{"$f":"IF(DAY(Juil_Dim1)=1,IF(AND(YEAR(Juil_Dim1+31)=Année_Calendaire,MONTH(Juil_Dim1+31)=7),Juil_Dim1+31,\"\"),IF(AND(YEAR(Juil_Dim1+38)=Année_Calendaire,MONTH(Juil_Dim1+38)=7),Juil_Dim1+38,\"\"))","v":""},{"$f":"IF(DAY(Juil_Dim1)=1,IF(AND(YEAR(Juil_Dim1+32)=Année_Calendaire,MONTH(Juil_Dim1+32)=7),Juil_Dim1+32,\"\"),IF(AND(YEAR(Juil_Dim1+39)=Année_Calendaire,MONTH(Juil_Dim1+39)=7),Juil_Dim1+39,\"\"))","v":""},{"$f":"IF(DAY(Juil_Dim1)=1,IF(AND(YEAR(Juil_Dim1+33)=Année_Calendaire,MONTH(Juil_Dim1+33)=7),Juil_Dim1+33,\"\"),IF(AND(YEAR(Juil_Dim1+40)=Année_Calendaire,MONTH(Juil_Dim1+40)=7),Juil_Dim1+40,\"\"))","v":""},{"$f":"IF(DAY(Juil_Dim1)=1,IF(AND(YEAR(Juil_Dim1+34)=Année_Calendaire,MONTH(Juil_Dim1+34)=7),Juil_Dim1+34,\"\"),IF(AND(YEAR(Juil_Dim1+41)=Année_Calendaire,MONTH(Juil_Dim1+41)=7),Juil_Dim1+41,\"\"))","v":""},{"$f":"IF(DAY(Juil_Dim1)=1,IF(AND(YEAR(Juil_Dim1+35)=Année_Calendaire,MONTH(Juil_Dim1+35)=7),Juil_Dim1+35,\"\"),IF(AND(YEAR(Juil_Dim1+42)=Année_Calendaire,MONTH(Juil_Dim1+42)=7),Juil_Dim1+42,\"\"))","v":""},null,{"$f":"IF(DAY(Aoû_Dim1)=1,IF(AND(YEAR(Aoû_Dim1+29)=Année_Calendaire,MONTH(Aoû_Dim1+29)=8),Aoû_Dim1+29,\"\"),IF(AND(YEAR(Aoû_Dim1+36)=Année_Calendaire,MONTH(Aoû_Dim1+36)=8),Aoû_Dim1+36,\"\"))","v":""},{"$f":"IF(DAY(Aoû_Dim1)=1,IF(AND(YEAR(Aoû_Dim1+30)=Année_Calendaire,MONTH(Aoû_Dim1+30)=8),Aoû_Dim1+30,\"\"),IF(AND(YEAR(Aoû_Dim1+37)=Année_Calendaire,MONTH(Aoû_Dim1+37)=8),Aoû_Dim1+37,\"\"))","v":""},{"$f":"IF(DAY(Aoû_Dim1)=1,IF(AND(YEAR(Aoû_Dim1+31)=Année_Calendaire,MONTH(Aoû_Dim1+31)=8),Aoû_Dim1+31,\"\"),IF(AND(YEAR(Aoû_Dim1+38)=Année_Calendaire,MONTH(Aoû_Dim1+38)=8),Aoû_Dim1+38,\"\"))","v":""},{"$f":"IF(DAY(Aoû_Dim1)=1,IF(AND(YEAR(Aoû_Dim1+32)=Année_Calendaire,MONTH(Aoû_Dim1+32)=8),Aoû_Dim1+32,\"\"),IF(AND(YEAR(Aoû_Dim1+39)=Année_Calendaire,MONTH(Aoû_Dim1+39)=8),Aoû_Dim1+39,\"\"))","v":""},{"$f":"IF(DAY(Aoû_Dim1)=1,IF(AND(YEAR(Aoû_Dim1+33)=Année_Calendaire,MONTH(Aoû_Dim1+33)=8),Aoû_Dim1+33,\"\"),IF(AND(YEAR(Aoû_Dim1+40)=Année_Calendaire,MONTH(Aoû_Dim1+40)=8),Aoû_Dim1+40,\"\"))","v":""},{"$f":"IF(DAY(Aoû_Dim1)=1,IF(AND(YEAR(Aoû_Dim1+34)=Année_Calendaire,MONTH(Aoû_Dim1+34)=8),Aoû_Dim1+34,\"\"),IF(AND(YEAR(Aoû_Dim1+41)=Année_Calendaire,MONTH(Aoû_Dim1+41)=8),Aoû_Dim1+41,\"\"))","v":""},{"$f":"IF(DAY(Aoû_Dim1)=1,IF(AND(YEAR(Aoû_Dim1+35)=Année_Calendaire,MONTH(Aoû_Dim1+35)=8),Aoû_Dim1+35,\"\"),IF(AND(YEAR(Aoû_Dim1+42)=Année_Calendaire,MONTH(Aoû_Dim1+42)=8),Aoû_Dim1+42,\"\"))","v":""}]
[]
[]
[null,"SEPTEMBRE",null,null,null,null,null,null,null,"OCTOBRE"]
[null,"L","M","M","J","V","S","D",null,"L","M","M","J","V","S","D"]
[null,{"$f":"IF(DAY(Sep_Dim1)=1,\"\",IF(AND(YEAR(Sep_Dim1+1)=Année_Calendaire,MONTH(Sep_Dim1+1)=9),Sep_Dim1+1,\"\"))","v":""},{"$f":"IF(DAY(Sep_Dim1)=1,\"\",IF(AND(YEAR(Sep_Dim1+2)=Année_Calendaire,MONTH(Sep_Dim1+2)=9),Sep_Dim1+2,\"\"))","v":""},{"$f":"IF(DAY(Sep_Dim1)=1,\"\",IF(AND(YEAR(Sep_Dim1+3)=Année_Calendaire,MONTH(Sep_Dim1+3)=9),Sep_Dim1+3,\"\"))","v":""},{"$f":"IF(DAY(Sep_Dim1)=1,\"\",IF(AND(YEAR(Sep_Dim1+4)=Année_Calendaire,MONTH(Sep_Dim1+4)=9),Sep_Dim1+4,\"\"))","v":"2016-09-01"},{"$f":"IF(DAY(Sep_Dim1)=1,\"\",IF(AND(YEAR(Sep_Dim1+5)=Année_Calendaire,MONTH(Sep_Dim1+5)=9),Sep_Dim1+5,\"\"))","v":"2016-09-02"},{"$f":"IF(DAY(Sep_Dim1)=1,\"\",IF(AND(YEAR(Sep_Dim1+6)=Année_Calendaire,MONTH(Sep_Dim1+6)=9),Sep_Dim1+6,\"\"))","v":"2016-09-03"},{"$f":"IF(DAY(Sep_Dim1)=1,IF(AND(YEAR(Sep_Dim1)=Année_Calendaire,MONTH(Sep_Dim1)=9),Sep_Dim1,\"\"),IF(AND(YEAR(Sep_Dim1+7)=Année_Calendaire,MONTH(Sep_Dim1+7)=9),Sep_Dim1+7,\"\"))","v":"2016-09-04"},null,{"$f":"IF(DAY(Oct_Dim1)=1,\"\",IF(AND(YEAR(Oct_Dim1+1)=Année_Calendaire,MONTH(Oct_Dim1+1)=10),Oct_Dim1+1,\"\"))","v":""},{"$f":"IF(DAY(Oct_Dim1)=1,\"\",IF(AND(YEAR(Oct_Dim1+2)=Année_Calendaire,MONTH(Oct_Dim1+2)=10),Oct_Dim1+2,\"\"))","v":""},{"$f":"IF(DAY(Oct_Dim1)=1,\"\",IF(AND(YEAR(Oct_Dim1+3)=Année_Calendaire,MONTH(Oct_Dim1+3)=10),Oct_Dim1+3,\"\"))","v":""},{"$f":"IF(DAY(Oct_Dim1)=1,\"\",IF(AND(YEAR(Oct_Dim1+4)=Année_Calendaire,MONTH(Oct_Dim1+4)=10),Oct_Dim1+4,\"\"))","v":""},{"$f":"IF(DAY(Oct_Dim1)=1,\"\",IF(AND(YEAR(Oct_Dim1+5)=Année_Calendaire,MONTH(Oct_Dim1+5)=10),Oct_Dim1+5,\"\"))","v":""},{"$f":"IF(DAY(Oct_Dim1)=1,\"\",IF(AND(YEAR(Oct_Dim1+6)=Année_Calendaire,MONTH(Oct_Dim1+6)=10),Oct_Dim1+6,\"\"))","v":"2016-10-01"},{"$f":"IF(DAY(Oct_Dim1)=1,IF(AND(YEAR(Oct_Dim1)=Année_Calendaire,MONTH(Oct_Dim1)=10),Oct_Dim1,\"\"),IF(AND(YEAR(Oct_Dim1+7)=Année_Calendaire,MONTH(Oct_Dim1+7)=10),Oct_Dim1+7,\"\"))","v":"2016-10-02"}]
[null,{"$f":"IF(DAY(Sep_Dim1)=1,IF(AND(YEAR(Sep_Dim1+1)=Année_Calendaire,MONTH(Sep_Dim1+1)=9),Sep_Dim1+1,\"\"),IF(AND(YEAR(Sep_Dim1+8)=Année_Calendaire,MONTH(Sep_Dim1+8)=9),Sep_Dim1+8,\"\"))","v":"2016-09-05"},{"$f":"IF(DAY(Sep_Dim1)=1,IF(AND(YEAR(Sep_Dim1+2)=Année_Calendaire,MONTH(Sep_Dim1+2)=9),Sep_Dim1+2,\"\"),IF(AND(YEAR(Sep_Dim1+9)=Année_Calendaire,MONTH(Sep_Dim1+9)=9),Sep_Dim1+9,\"\"))","v":"2016-09-06"},{"$f":"IF(DAY(Sep_Dim1)=1,IF(AND(YEAR(Sep_Dim1+3)=Année_Calendaire,MONTH(Sep_Dim1+3)=9),Sep_Dim1+3,\"\"),IF(AND(YEAR(Sep_Dim1+10)=Année_Calendaire,MONTH(Sep_Dim1+10)=9),Sep_Dim1+10,\"\"))","v":"2016-09-07"},{"$f":"IF(DAY(Sep_Dim1)=1,IF(AND(YEAR(Sep_Dim1+4)=Année_Calendaire,MONTH(Sep_Dim1+4)=9),Sep_Dim1+4,\"\"),IF(AND(YEAR(Sep_Dim1+11)=Année_Calendaire,MONTH(Sep_Dim1+11)=9),Sep_Dim1+11,\"\"))","v":"2016-09-08"},{"$f":"IF(DAY(Sep_Dim1)=1,IF(AND(YEAR(Sep_Dim1+5)=Année_Calendaire,MONTH(Sep_Dim1+5)=9),Sep_Dim1+5,\"\"),IF(AND(YEAR(Sep_Dim1+12)=Année_Calendaire,MONTH(Sep_Dim1+12)=9),Sep_Dim1+12,\"\"))","v":"2016-09-09"},{"$f":"IF(DAY(Sep_Dim1)=1,IF(AND(YEAR(Sep_Dim1+6)=Année_Calendaire,MONTH(Sep_Dim1+6)=9),Sep_Dim1+6,\"\"),IF(AND(YEAR(Sep_Dim1+13)=Année_Calendaire,MONTH(Sep_Dim1+13)=9),Sep_Dim1+13,\"\"))","v":"2016-09-10"},{"$f":"IF(DAY(Sep_Dim1)=1,IF(AND(YEAR(Sep_Dim1+7)=Année_Calendaire,MONTH(Sep_Dim1+7)=9),Sep_Dim1+7,\"\"),IF(AND(YEAR(Sep_Dim1+14)=Année_Calendaire,MONTH(Sep_Dim1+14)=9),Sep_Dim1+14,\"\"))","v":"2016-09-11"},null,{"$f":"IF(DAY(Oct_Dim1)=1,IF(AND(YEAR(Oct_Dim1+1)=Année_Calendaire,MONTH(Oct_Dim1+1)=10),Oct_Dim1+1,\"\"),IF(AND(YEAR(Oct_Dim1+8)=Année_Calendaire,MONTH(Oct_Dim1+8)=10),Oct_Dim1+8,\"\"))","v":"2016-10-03"},{"$f":"IF(DAY(Oct_Dim1)=1,IF(AND(YEAR(Oct_Dim1+2)=Année_Calendaire,MONTH(Oct_Dim1+2)=10),Oct_Dim1+2,\"\"),IF(AND(YEAR(Oct_Dim1+9)=Année_Calendaire,MONTH(Oct_Dim1+9)=10),Oct_Dim1+9,\"\"))","v":"2016-10-04"},{"$f":"IF(DAY(Oct_Dim1)=1,IF(AND(YEAR(Oct_Dim1+3)=Année_Calendaire,MONTH(Oct_Dim1+3)=10),Oct_Dim1+3,\"\"),IF(AND(YEAR(Oct_Dim1+10)=Année_Calendaire,MONTH(Oct_Dim1+10)=10),Oct_Dim1+10,\"\"))","v":"2016-10-05"},{"$f":"IF(DAY(Oct_Dim1)=1,IF(AND(YEAR(Oct_Dim1+4)=Année_Calendaire,MONTH(Oct_Dim1+4)=10),Oct_Dim1+4,\"\"),IF(AND(YEAR(Oct_Dim1+11)=Année_Calendaire,MONTH(Oct_Dim1+11)=10),Oct_Dim1+11,\"\"))","v":"2016-10-06"},{"$f":"IF(DAY(Oct_Dim1)=1,IF(AND(YEAR(Oct_Dim1+5)=Année_Calendaire,MONTH(Oct_Dim1+5)=10),Oct_Dim1+5,\"\"),IF(AND(YEAR(Oct_Dim1+12)=Année_Calendaire,MONTH(Oct_Dim1+12)=10),Oct_Dim1+12,\"\"))","v":"2016-10-07"},{"$f":"IF(DAY(Oct_Dim1)=1,IF(AND(YEAR(Oct_Dim1+6)=Année_Calendaire,MONTH(Oct_Dim1+6)=10),Oct_Dim1+6,\"\"),IF(AND(YEAR(Oct_Dim1+13)=Année_Calendaire,MONTH(Oct_Dim1+13)=10),Oct_Dim1+13,\"\"))","v":"2016-10-08"},{"$f":"IF(DAY(Oct_Dim1)=1,IF(AND(YEAR(Oct_Dim1+7)=Année_Calendaire,MONTH(Oct_Dim1+7)=10),Oct_Dim1+7,\"\"),IF(AND(YEAR(Oct_Dim1+14)=Année_Calendaire,MONTH(Oct_Dim1+14)=10),Oct_Dim1+14,\"\"))","v":"2016-10-09"}]
[null,{"$f":"IF(DAY(Sep_Dim1)=1,IF(AND(YEAR(Sep_Dim1+8)=Année_Calendaire,MONTH(Sep_Dim1+8)=9),Sep_Dim1+8,\"\"),IF(AND(YEAR(Sep_Dim1+15)=Année_Calendaire,MONTH(Sep_Dim1+15)=9),Sep_Dim1+15,\"\"))","v":"2016-09-12"},{"$f":"IF(DAY(Sep_Dim1)=1,IF(AND(YEAR(Sep_Dim1+9)=Année_Calendaire,MONTH(Sep_Dim1+9)=9),Sep_Dim1+9,\"\"),IF(AND(YEAR(Sep_Dim1+16)=Année_Calendaire,MONTH(Sep_Dim1+16)=9),Sep_Dim1+16,\"\"))","v":"2016-09-13"},{"$f":"IF(DAY(Sep_Dim1)=1,IF(AND(YEAR(Sep_Dim1+10)=Année_Calendaire,MONTH(Sep_Dim1+10)=9),Sep_Dim1+10,\"\"),IF(AND(YEAR(Sep_Dim1+17)=Année_Calendaire,MONTH(Sep_Dim1+17)=9),Sep_Dim1+17,\"\"))","v":"2016-09-14"},{"$f":"IF(DAY(Sep_Dim1)=1,IF(AND(YEAR(Sep_Dim1+11)=Année_Calendaire,MONTH(Sep_Dim1+11)=9),Sep_Dim1+11,\"\"),IF(AND(YEAR(Sep_Dim1+18)=Année_Calendaire,MONTH(Sep_Dim1+18)=9),Sep_Dim1+18,\"\"))","v":"2016-09-15"},{"$f":"IF(DAY(Sep_Dim1)=1,IF(AND(YEAR(Sep_Dim1+12)=Année_Calendaire,MONTH(Sep_Dim1+12)=9),Sep_Dim1+12,\"\"),IF(AND(YEAR(Sep_Dim1+19)=Année_Calendaire,MONTH(Sep_Dim1+19)=9),Sep_Dim1+19,\"\"))","v":"2016-09-16"},{"$f":"IF(DAY(Sep_Dim1)=1,IF(AND(YEAR(Sep_Dim1+13)=Année_Calendaire,MONTH(Sep_Dim1+13)=9),Sep_Dim1+13,\"\"),IF(AND(YEAR(Sep_Dim1+20)=Année_Calendaire,MONTH(Sep_Dim1+20)=9),Sep_Dim1+20,\"\"))","v":"2016-09-17"},{"$f":"IF(DAY(Sep_Dim1)=1,IF(AND(YEAR(Sep_Dim1+14)=Année_Calendaire,MONTH(Sep_Dim1+14)=9),Sep_Dim1+14,\"\"),IF(AND(YEAR(Sep_Dim1+21)=Année_Calendaire,MONTH(Sep_Dim1+21)=9),Sep_Dim1+21,\"\"))","v":"2016-09-18"},null,{"$f":"IF(DAY(Oct_Dim1)=1,IF(AND(YEAR(Oct_Dim1+8)=Année_Calendaire,MONTH(Oct_Dim1+8)=10),Oct_Dim1+8,\"\"),IF(AND(YEAR(Oct_Dim1+15)=Année_Calendaire,MONTH(Oct_Dim1+15)=10),Oct_Dim1+15,\"\"))","v":"2016-10-10"},{"$f":"IF(DAY(Oct_Dim1)=1,IF(AND(YEAR(Oct_Dim1+9)=Année_Calendaire,MONTH(Oct_Dim1+9)=10),Oct_Dim1+9,\"\"),IF(AND(YEAR(Oct_Dim1+16)=Année_Calendaire,MONTH(Oct_Dim1+16)=10),Oct_Dim1+16,\"\"))","v":"2016-10-11"},{"$f":"IF(DAY(Oct_Dim1)=1,IF(AND(YEAR(Oct_Dim1+10)=Année_Calendaire,MONTH(Oct_Dim1+10)=10),Oct_Dim1+10,\"\"),IF(AND(YEAR(Oct_Dim1+17)=Année_Calendaire,MONTH(Oct_Dim1+17)=10),Oct_Dim1+17,\"\"))","v":"2016-10-12"},{"$f":"IF(DAY(Oct_Dim1)=1,IF(AND(YEAR(Oct_Dim1+11)=Année_Calendaire,MONTH(Oct_Dim1+11)=10),Oct_Dim1+11,\"\"),IF(AND(YEAR(Oct_Dim1+18)=Année_Calendaire,MONTH(Oct_Dim1+18)=10),Oct_Dim1+18,\"\"))","v":"2016-10-13"},{"$f":"IF(DAY(Oct_Dim1)=1,IF(AND(YEAR(Oct_Dim1+12)=Année_Calendaire,MONTH(Oct_Dim1+12)=10),Oct_Dim1+12,\"\"),IF(AND(YEAR(Oct_Dim1+19)=Année_Calendaire,MONTH(Oct_Dim1+19)=10),Oct_Dim1+19,\"\"))","v":"2016-10-14"},{"$f":"IF(DAY(Oct_Dim1)=1,IF(AND(YEAR(Oct_Dim1+13)=Année_Calendaire,MONTH(Oct_Dim1+13)=10),Oct_Dim1+13,\"\"),IF(AND(YEAR(Oct_Dim1+20)=Année_Calendaire,MONTH(Oct_Dim1+20)=10),Oct_Dim1+20,\"\"))","v":"2016-10-15"},{"$f":"IF(DAY(Oct_Dim1)=1,IF(AND(YEAR(Oct_Dim1+14)=Année_Calendaire,MONTH(Oct_Dim1+14)=10),Oct_Dim1+14,\"\"),IF(AND(YEAR(Oct_Dim1+21)=Année_Calendaire,MONTH(Oct_Dim1+21)=10),Oct_Dim1+21,\"\"))","v":"2016-10-16"}]
[null,{"$f":"IF(DAY(Sep_Dim1)=1,IF(AND(YEAR(Sep_Dim1+15)=Année_Calendaire,MONTH(Sep_Dim1+15)=9),Sep_Dim1+15,\"\"),IF(AND(YEAR(Sep_Dim1+22)=Année_Calendaire,MONTH(Sep_Dim1+22)=9),Sep_Dim1+22,\"\"))","v":"2016-09-19"},{"$f":"IF(DAY(Sep_Dim1)=1,IF(AND(YEAR(Sep_Dim1+16)=Année_Calendaire,MONTH(Sep_Dim1+16)=9),Sep_Dim1+16,\"\"),IF(AND(YEAR(Sep_Dim1+23)=Année_Calendaire,MONTH(Sep_Dim1+23)=9),Sep_Dim1+23,\"\"))","v":"2016-09-20"},{"$f":"IF(DAY(Sep_Dim1)=1,IF(AND(YEAR(Sep_Dim1+17)=Année_Calendaire,MONTH(Sep_Dim1+17)=9),Sep_Dim1+17,\"\"),IF(AND(YEAR(Sep_Dim1+24)=Année_Calendaire,MONTH(Sep_Dim1+24)=9),Sep_Dim1+24,\"\"))","v":"2016-09-21"},{"$f":"IF(DAY(Sep_Dim1)=1,IF(AND(YEAR(Sep_Dim1+18)=Année_Calendaire,MONTH(Sep_Dim1+18)=9),Sep_Dim1+18,\"\"),IF(AND(YEAR(Sep_Dim1+25)=Année_Calendaire,MONTH(Sep_Dim1+25)=9),Sep_Dim1+25,\"\"))","v":"2016-09-22"},{"$f":"IF(DAY(Sep_Dim1)=1,IF(AND(YEAR(Sep_Dim1+19)=Année_Calendaire,MONTH(Sep_Dim1+19)=9),Sep_Dim1+19,\"\"),IF(AND(YEAR(Sep_Dim1+26)=Année_Calendaire,MONTH(Sep_Dim1+26)=9),Sep_Dim1+26,\"\"))","v":"2016-09-23"},{"$f":"IF(DAY(Sep_Dim1)=1,IF(AND(YEAR(Sep_Dim1+20)=Année_Calendaire,MONTH(Sep_Dim1+20)=9),Sep_Dim1+20,\"\"),IF(AND(YEAR(Sep_Dim1+27)=Année_Calendaire,MONTH(Sep_Dim1+27)=9),Sep_Dim1+27,\"\"))","v":"2016-09-24"},{"$f":"IF(DAY(Sep_Dim1)=1,IF(AND(YEAR(Sep_Dim1+21)=Année_Calendaire,MONTH(Sep_Dim1+21)=9),Sep_Dim1+21,\"\"),IF(AND(YEAR(Sep_Dim1+28)=Année_Calendaire,MONTH(Sep_Dim1+28)=9),Sep_Dim1+28,\"\"))","v":"2016-09-25"},null,{"$f":"IF(DAY(Oct_Dim1)=1,IF(AND(YEAR(Oct_Dim1+15)=Année_Calendaire,MONTH(Oct_Dim1+15)=10),Oct_Dim1+15,\"\"),IF(AND(YEAR(Oct_Dim1+22)=Année_Calendaire,MONTH(Oct_Dim1+22)=10),Oct_Dim1+22,\"\"))","v":"2016-10-17"},{"$f":"IF(DAY(Oct_Dim1)=1,IF(AND(YEAR(Oct_Dim1+16)=Année_Calendaire,MONTH(Oct_Dim1+16)=10),Oct_Dim1+16,\"\"),IF(AND(YEAR(Oct_Dim1+23)=Année_Calendaire,MONTH(Oct_Dim1+23)=10),Oct_Dim1+23,\"\"))","v":"2016-10-18"},{"$f":"IF(DAY(Oct_Dim1)=1,IF(AND(YEAR(Oct_Dim1+17)=Année_Calendaire,MONTH(Oct_Dim1+17)=10),Oct_Dim1+17,\"\"),IF(AND(YEAR(Oct_Dim1+24)=Année_Calendaire,MONTH(Oct_Dim1+24)=10),Oct_Dim1+24,\"\"))","v":"2016-10-19"},{"$f":"IF(DAY(Oct_Dim1)=1,IF(AND(YEAR(Oct_Dim1+18)=Année_Calendaire,MONTH(Oct_Dim1+18)=10),Oct_Dim1+18,\"\"),IF(AND(YEAR(Oct_Dim1+25)=Année_Calendaire,MONTH(Oct_Dim1+25)=10),Oct_Dim1+25,\"\"))","v":"2016-10-20"},{"$f":"IF(DAY(Oct_Dim1)=1,IF(AND(YEAR(Oct_Dim1+19)=Année_Calendaire,MONTH(Oct_Dim1+19)=10),Oct_Dim1+19,\"\"),IF(AND(YEAR(Oct_Dim1+26)=Année_Calendaire,MONTH(Oct_Dim1+26)=10),Oct_Dim1+26,\"\"))","v":"2016-10-21"},{"$f":"IF(DAY(Oct_Dim1)=1,IF(AND(YEAR(Oct_Dim1+20)=Année_Calendaire,MONTH(Oct_Dim1+20)=10),Oct_Dim1+20,\"\"),IF(AND(YEAR(Oct_Dim1+27)=Année_Calendaire,MONTH(Oct_Dim1+27)=10),Oct_Dim1+27,\"\"))","v":"2016-10-22"},{"$f":"IF(DAY(Oct_Dim1)=1,IF(AND(YEAR(Oct_Dim1+21)=Année_Calendaire,MONTH(Oct_Dim1+21)=10),Oct_Dim1+21,\"\"),IF(AND(YEAR(Oct_Dim1+28)=Année_Calendaire,MONTH(Oct_Dim1+28)=10),Oct_Dim1+28,\"\"))","v":"2016-10-23"}]
[null,{"$f":"IF(DAY(Sep_Dim1)=1,IF(AND(YEAR(Sep_Dim1+22)=Année_Calendaire,MONTH(Sep_Dim1+22)=9),Sep_Dim1+22,\"\"),IF(AND(YEAR(Sep_Dim1+29)=Année_Calendaire,MONTH(Sep_Dim1+29)=9),Sep_Dim1+29,\"\"))","v":"2016-09-26"},{"$f":"IF(DAY(Sep_Dim1)=1,IF(AND(YEAR(Sep_Dim1+23)=Année_Calendaire,MONTH(Sep_Dim1+23)=9),Sep_Dim1+23,\"\"),IF(AND(YEAR(Sep_Dim1+30)=Année_Calendaire,MONTH(Sep_Dim1+30)=9),Sep_Dim1+30,\"\"))","v":"2016-09-27"},{"$f":"IF(DAY(Sep_Dim1)=1,IF(AND(YEAR(Sep_Dim1+24)=Année_Calendaire,MONTH(Sep_Dim1+24)=9),Sep_Dim1+24,\"\"),IF(AND(YEAR(Sep_Dim1+31)=Année_Calendaire,MONTH(Sep_Dim1+31)=9),Sep_Dim1+31,\"\"))","v":"2016-09-28"},{"$f":"IF(DAY(Sep_Dim1)=1,IF(AND(YEAR(Sep_Dim1+25)=Année_Calendaire,MONTH(Sep_Dim1+25)=9),Sep_Dim1+25,\"\"),IF(AND(YEAR(Sep_Dim1+32)=Année_Calendaire,MONTH(Sep_Dim1+32)=9),Sep_Dim1+32,\"\"))","v":"2016-09-29"},{"$f":"IF(DAY(Sep_Dim1)=1,IF(AND(YEAR(Sep_Dim1+26)=Année_Calendaire,MONTH(Sep_Dim1+26)=9),Sep_Dim1+26,\"\"),IF(AND(YEAR(Sep_Dim1+33)=Année_Calendaire,MONTH(Sep_Dim1+33)=9),Sep_Dim1+33,\"\"))","v":"2016-09-30"},{"$f":"IF(DAY(Sep_Dim1)=1,IF(AND(YEAR(Sep_Dim1+27)=Année_Calendaire,MONTH(Sep_Dim1+27)=9),Sep_Dim1+27,\"\"),IF(AND(YEAR(Sep_Dim1+34)=Année_Calendaire,MONTH(Sep_Dim1+34)=9),Sep_Dim1+34,\"\"))","v":""},{"$f":"IF(DAY(Sep_Dim1)=1,IF(AND(YEAR(Sep_Dim1+28)=Année_Calendaire,MONTH(Sep_Dim1+28)=9),Sep_Dim1+28,\"\"),IF(AND(YEAR(Sep_Dim1+35)=Année_Calendaire,MONTH(Sep_Dim1+35)=9),Sep_Dim1+35,\"\"))","v":""},null,{"$f":"IF(DAY(Oct_Dim1)=1,IF(AND(YEAR(Oct_Dim1+22)=Année_Calendaire,MONTH(Oct_Dim1+22)=10),Oct_Dim1+22,\"\"),IF(AND(YEAR(Oct_Dim1+29)=Année_Calendaire,MONTH(Oct_Dim1+29)=10),Oct_Dim1+29,\"\"))","v":"2016-10-24"},{"$f":"IF(DAY(Oct_Dim1)=1,IF(AND(YEAR(Oct_Dim1+23)=Année_Calendaire,MONTH(Oct_Dim1+23)=10),Oct_Dim1+23,\"\"),IF(AND(YEAR(Oct_Dim1+30)=Année_Calendaire,MONTH(Oct_Dim1+30)=10),Oct_Dim1+30,\"\"))","v":"2016-10-25"},{"$f":"IF(DAY(Oct_Dim1)=1,IF(AND(YEAR(Oct_Dim1+24)=Année_Calendaire,MONTH(Oct_Dim1+24)=10),Oct_Dim1+24,\"\"),IF(AND(YEAR(Oct_Dim1+31)=Année_Calendaire,MONTH(Oct_Dim1+31)=10),Oct_Dim1+31,\"\"))","v":"2016-10-26"},{"$f":"IF(DAY(Oct_Dim1)=1,IF(AND(YEAR(Oct_Dim1+25)=Année_Calendaire,MONTH(Oct_Dim1+25)=10),Oct_Dim1+25,\"\"),IF(AND(YEAR(Oct_Dim1+32)=Année_Calendaire,MONTH(Oct_Dim1+32)=10),Oct_Dim1+32,\"\"))","v":"2016-10-27"},{"$f":"IF(DAY(Oct_Dim1)=1,IF(AND(YEAR(Oct_Dim1+26)=Année_Calendaire,MONTH(Oct_Dim1+26)=10),Oct_Dim1+26,\"\"),IF(AND(YEAR(Oct_Dim1+33)=Année_Calendaire,MONTH(Oct_Dim1+33)=10),Oct_Dim1+33,\"\"))","v":"2016-10-28"},{"$f":"IF(DAY(Oct_Dim1)=1,IF(AND(YEAR(Oct_Dim1+27)=Année_Calendaire,MONTH(Oct_Dim1+27)=10),Oct_Dim1+27,\"\"),IF(AND(YEAR(Oct_Dim1+34)=Année_Calendaire,MONTH(Oct_Dim1+34)=10),Oct_Dim1+34,\"\"))","v":"2016-10-29"},{"$f":"IF(DAY(Oct_Dim1)=1,IF(AND(YEAR(Oct_Dim1+28)=Année_Calendaire,MONTH(Oct_Dim1+28)=10),Oct_Dim1+28,\"\"),IF(AND(YEAR(Oct_Dim1+35)=Année_Calendaire,MONTH(Oct_Dim1+35)=10),Oct_Dim1+35,\"\"))","v":"2016-10-30"}]
[null,{"$f":"IF(DAY(Sep_Dim1)=1,IF(AND(YEAR(Sep_Dim1+29)=Année_Calendaire,MONTH(Sep_Dim1+29)=9),Sep_Dim1+29,\"\"),IF(AND(YEAR(Sep_Dim1+36)=Année_Calendaire,MONTH(Sep_Dim1+36)=9),Sep_Dim1+36,\"\"))","v":""},{"$f":"IF(DAY(Sep_Dim1)=1,IF(AND(YEAR(Sep_Dim1+30)=Année_Calendaire,MONTH(Sep_Dim1+30)=9),Sep_Dim1+30,\"\"),IF(AND(YEAR(Sep_Dim1+37)=Année_Calendaire,MONTH(Sep_Dim1+37)=9),Sep_Dim1+37,\"\"))","v":""},{"$f":"IF(DAY(Sep_Dim1)=1,IF(AND(YEAR(Sep_Dim1+31)=Année_Calendaire,MONTH(Sep_Dim1+31)=9),Sep_Dim1+31,\"\"),IF(AND(YEAR(Sep_Dim1+38)=Année_Calendaire,MONTH(Sep_Dim1+38)=9),Sep_Dim1+38,\"\"))","v":""},{"$f":"IF(DAY(Sep_Dim1)=1,IF(AND(YEAR(Sep_Dim1+32)=Année_Calendaire,MONTH(Sep_Dim1+32)=9),Sep_Dim1+32,\"\"),IF(AND(YEAR(Sep_Dim1+39)=Année_Calendaire,MONTH(Sep_Dim1+39)=9),Sep_Dim1+39,\"\"))","v":""},{"$f":"IF(DAY(Sep_Dim1)=1,IF(AND(YEAR(Sep_Dim1+33)=Année_Calendaire,MONTH(Sep_Dim1+33)=9),Sep_Dim1+33,\"\"),IF(AND(YEAR(Sep_Dim1+40)=Année_Calendaire,MONTH(Sep_Dim1+40)=9),Sep_Dim1+40,\"\"))","v":""},{"$f":"IF(DAY(Sep_Dim1)=1,IF(AND(YEAR(Sep_Dim1+34)=Année_Calendaire,MONTH(Sep_Dim1+34)=9),Sep_Dim1+34,\"\"),IF(AND(YEAR(Sep_Dim1+41)=Année_Calendaire,MONTH(Sep_Dim1+41)=9),Sep_Dim1+41,\"\"))","v":""},{"$f":"IF(DAY(Sep_Dim1)=1,IF(AND(YEAR(Sep_Dim1+35)=Année_Calendaire,MONTH(Sep_Dim1+35)=9),Sep_Dim1+35,\"\"),IF(AND(YEAR(Sep_Dim1+42)=Année_Calendaire,MONTH(Sep_Dim1+42)=9),Sep_Dim1+42,\"\"))","v":""},null,{"$f":"IF(DAY(Oct_Dim1)=1,IF(AND(YEAR(Oct_Dim1+29)=Année_Calendaire,MONTH(Oct_Dim1+29)=10),Oct_Dim1+29,\"\"),IF(AND(YEAR(Oct_Dim1+36)=Année_Calendaire,MONTH(Oct_Dim1+36)=10),Oct_Dim1+36,\"\"))","v":"2016-10-31"},{"$f":"IF(DAY(Oct_Dim1)=1,IF(AND(YEAR(Oct_Dim1+30)=Année_Calendaire,MONTH(Oct_Dim1+30)=10),Oct_Dim1+30,\"\"),IF(AND(YEAR(Oct_Dim1+37)=Année_Calendaire,MONTH(Oct_Dim1+37)=10),Oct_Dim1+37,\"\"))","v":""},{"$f":"IF(DAY(Oct_Dim1)=1,IF(AND(YEAR(Oct_Dim1+31)=Année_Calendaire,MONTH(Oct_Dim1+31)=10),Oct_Dim1+31,\"\"),IF(AND(YEAR(Oct_Dim1+38)=Année_Calendaire,MONTH(Oct_Dim1+38)=10),Oct_Dim1+38,\"\"))","v":""},{"$f":"IF(DAY(Oct_Dim1)=1,IF(AND(YEAR(Oct_Dim1+32)=Année_Calendaire,MONTH(Oct_Dim1+32)=10),Oct_Dim1+32,\"\"),IF(AND(YEAR(Oct_Dim1+39)=Année_Calendaire,MONTH(Oct_Dim1+39)=10),Oct_Dim1+39,\"\"))","v":""},{"$f":"IF(DAY(Oct_Dim1)=1,IF(AND(YEAR(Oct_Dim1+33)=Année_Calendaire,MONTH(Oct_Dim1+33)=10),Oct_Dim1+33,\"\"),IF(AND(YEAR(Oct_Dim1+40)=Année_Calendaire,MONTH(Oct_Dim1+40)=10),Oct_Dim1+40,\"\"))","v":""},{"$f":"IF(DAY(Oct_Dim1)=1,IF(AND(YEAR(Oct_Dim1+34)=Année_Calendaire,MONTH(Oct_Dim1+34)=10),Oct_Dim1+34,\"\"),IF(AND(YEAR(Oct_Dim1+41)=Année_Calendaire,MONTH(Oct_Dim1+41)=10),Oct_Dim1+41,\"\"))","v":""},{"$f":"IF(DAY(Oct_Dim1)=1,IF(AND(YEAR(Oct_Dim1+35)=Année_Calendaire,MONTH(Oct_Dim1+35)=10),Oct_Dim1+35,\"\"),IF(AND(YEAR(Oct_Dim1+42)=Année_Calendaire,MONTH(Oct_Dim1+42)=10),Oct_Dim1+42,\"\"))","v":""}]
[]
[]
[null,"NOVEMBRE",null,null,null,null,null,null,null,"DÉCEMBRE"]
[null,"L","M","M","J","V","S","D",null,"L","M","M","J","V","S","D"]
[null,{"$f":"IF(DAY(Nov_Dim1)=1,\"\",IF(AND(YEAR(Nov_Dim1+1)=Année_Calendaire,MONTH(Nov_Dim1+1)=11),Nov_Dim1+1,\"\"))","v":""},{"$f":"IF(DAY(Nov_Dim1)=1,\"\",IF(AND(YEAR(Nov_Dim1+2)=Année_Calendaire,MONTH(Nov_Dim1+2)=11),Nov_Dim1+2,\"\"))","v":"2016-11-01"},{"$f":"IF(DAY(Nov_Dim1)=1,\"\",IF(AND(YEAR(Nov_Dim1+3)=Année_Calendaire,MONTH(Nov_Dim1+3)=11),Nov_Dim1+3,\"\"))","v":"2016-11-02"},{"$f":"IF(DAY(Nov_Dim1)=1,\"\",IF(AND(YEAR(Nov_Dim1+4)=Année_Calendaire,MONTH(Nov_Dim1+4)=11),Nov_Dim1+4,\"\"))","v":"2016-11-03"},{"$f":"IF(DAY(Nov_Dim1)=1,\"\",IF(AND(YEAR(Nov_Dim1+5)=Année_Calendaire,MONTH(Nov_Dim1+5)=11),Nov_Dim1+5,\"\"))","v":"2016-11-04"},{"$f":"IF(DAY(Nov_Dim1)=1,\"\",IF(AND(YEAR(Nov_Dim1+6)=Année_Calendaire,MONTH(Nov_Dim1+6)=11),Nov_Dim1+6,\"\"))","v":"2016-11-05"},{"$f":"IF(DAY(Nov_Dim1)=1,IF(AND(YEAR(Nov_Dim1)=Année_Calendaire,MONTH(Nov_Dim1)=11),Nov_Dim1,\"\"),IF(AND(YEAR(Nov_Dim1+7)=Année_Calendaire,MONTH(Nov_Dim1+7)=11),Nov_Dim1+7,\"\"))","v":"2016-11-06"},null,{"$f":"IF(DAY(Déc_Dim1)=1,\"\",IF(AND(YEAR(Déc_Dim1+1)=Année_Calendaire,MONTH(Déc_Dim1+1)=12),Déc_Dim1+1,\"\"))","v":""},{"$f":"IF(DAY(Déc_Dim1)=1,\"\",IF(AND(YEAR(Déc_Dim1+2)=Année_Calendaire,MONTH(Déc_Dim1+2)=12),Déc_Dim1+2,\"\"))","v":""},{"$f":"IF(DAY(Déc_Dim1)=1,\"\",IF(AND(YEAR(Déc_Dim1+3)=Année_Calendaire,MONTH(Déc_Dim1+3)=12),Déc_Dim1+3,\"\"))","v":""},{"$f":"IF(DAY(Déc_Dim1)=1,\"\",IF(AND(YEAR(Déc_Dim1+4)=Année_Calendaire,MONTH(Déc_Dim1+4)=12),Déc_Dim1+4,\"\"))","v":"2016-12-01"},{"$f":"IF(DAY(Déc_Dim1)=1,\"\",IF(AND(YEAR(Déc_Dim1+5)=Année_Calendaire,MONTH(Déc_Dim1+5)=12),Déc_Dim1+5,\"\"))","v":"2016-12-02"},{"$f":"IF(DAY(Déc_Dim1)=1,\"\",IF(AND(YEAR(Déc_Dim1+6)=Année_Calendaire,MONTH(Déc_Dim1+6)=12),Déc_Dim1+6,\"\"))","v":"2016-12-03"},{"$f":"IF(DAY(Déc_Dim1)=1,IF(AND(YEAR(Déc_Dim1)=Année_Calendaire,MONTH(Déc_Dim1)=12),Déc_Dim1,\"\"),IF(AND(YEAR(Déc_Dim1+7)=Année_Calendaire,MONTH(Déc_Dim1+7)=12),Déc_Dim1+7,\"\"))","v":"2016-12-04"}]
[null,{"$f":"IF(DAY(Nov_Dim1)=1,IF(AND(YEAR(Nov_Dim1+1)=Année_Calendaire,MONTH(Nov_Dim1+1)=11),Nov_Dim1+1,\"\"),IF(AND(YEAR(Nov_Dim1+8)=Année_Calendaire,MONTH(Nov_Dim1+8)=11),Nov_Dim1+8,\"\"))","v":"2016-11-07"},{"$f":"IF(DAY(Nov_Dim1)=1,IF(AND(YEAR(Nov_Dim1+2)=Année_Calendaire,MONTH(Nov_Dim1+2)=11),Nov_Dim1+2,\"\"),IF(AND(YEAR(Nov_Dim1+9)=Année_Calendaire,MONTH(Nov_Dim1+9)=11),Nov_Dim1+9,\"\"))","v":"2016-11-08"},{"$f":"IF(DAY(Nov_Dim1)=1,IF(AND(YEAR(Nov_Dim1+3)=Année_Calendaire,MONTH(Nov_Dim1+3)=11),Nov_Dim1+3,\"\"),IF(AND(YEAR(Nov_Dim1+10)=Année_Calendaire,MONTH(Nov_Dim1+10)=11),Nov_Dim1+10,\"\"))","v":"2016-11-09"},{"$f":"IF(DAY(Nov_Dim1)=1,IF(AND(YEAR(Nov_Dim1+4)=Année_Calendaire,MONTH(Nov_Dim1+4)=11),Nov_Dim1+4,\"\"),IF(AND(YEAR(Nov_Dim1+11)=Année_Calendaire,MONTH(Nov_Dim1+11)=11),Nov_Dim1+11,\"\"))","v":"2016-11-10"},{"$f":"IF(DAY(Nov_Dim1)=1,IF(AND(YEAR(Nov_Dim1+5)=Année_Calendaire,MONTH(Nov_Dim1+5)=11),Nov_Dim1+5,\"\"),IF(AND(YEAR(Nov_Dim1+12)=Année_Calendaire,MONTH(Nov_Dim1+12)=11),Nov_Dim1+12,\"\"))","v":"2016-11-11"},{"$f":"IF(DAY(Nov_Dim1)=1,IF(AND(YEAR(Nov_Dim1+6)=Année_Calendaire,MONTH(Nov_Dim1+6)=11),Nov_Dim1+6,\"\"),IF(AND(YEAR(Nov_Dim1+13)=Année_Calendaire,MONTH(Nov_Dim1+13)=11),Nov_Dim1+13,\"\"))","v":"2016-11-12"},{"$f":"IF(DAY(Nov_Dim1)=1,IF(AND(YEAR(Nov_Dim1+7)=Année_Calendaire,MONTH(Nov_Dim1+7)=11),Nov_Dim1+7,\"\"),IF(AND(YEAR(Nov_Dim1+14)=Année_Calendaire,MONTH(Nov_Dim1+14)=11),Nov_Dim1+14,\"\"))","v":"2016-11-13"},null,{"$f":"IF(DAY(Déc_Dim1)=1,IF(AND(YEAR(Déc_Dim1+1)=Année_Calendaire,MONTH(Déc_Dim1+1)=12),Déc_Dim1+1,\"\"),IF(AND(YEAR(Déc_Dim1+8)=Année_Calendaire,MONTH(Déc_Dim1+8)=12),Déc_Dim1+8,\"\"))","v":"2016-12-05"},{"$f":"IF(DAY(Déc_Dim1)=1,IF(AND(YEAR(Déc_Dim1+2)=Année_Calendaire,MONTH(Déc_Dim1+2)=12),Déc_Dim1+2,\"\"),IF(AND(YEAR(Déc_Dim1+9)=Année_Calendaire,MONTH(Déc_Dim1+9)=12),Déc_Dim1+9,\"\"))","v":"2016-12-06"},{"$f":"IF(DAY(Déc_Dim1)=1,IF(AND(YEAR(Déc_Dim1+3)=Année_Calendaire,MONTH(Déc_Dim1+3)=12),Déc_Dim1+3,\"\"),IF(AND(YEAR(Déc_Dim1+10)=Année_Calendaire,MONTH(Déc_Dim1+10)=12),Déc_Dim1+10,\"\"))","v":"2016-12-07"},{"$f":"IF(DAY(Déc_Dim1)=1,IF(AND(YEAR(Déc_Dim1+4)=Année_Calendaire,MONTH(Déc_Dim1+4)=12),Déc_Dim1+4,\"\"),IF(AND(YEAR(Déc_Dim1+11)=Année_Calendaire,MONTH(Déc_Dim1+11)=12),Déc_Dim1+11,\"\"))","v":"2016-12-08"},{"$f":"IF(DAY(Déc_Dim1)=1,IF(AND(YEAR(Déc_Dim1+5)=Année_Calendaire,MONTH(Déc_Dim1+5)=12),Déc_Dim1+5,\"\"),IF(AND(YEAR(Déc_Dim1+12)=Année_Calendaire,MONTH(Déc_Dim1+12)=12),Déc_Dim1+12,\"\"))","v":"2016-12-09"},{"$f":"IF(DAY(Déc_Dim1)=1,IF(AND(YEAR(Déc_Dim1+6)=Année_Calendaire,MONTH(Déc_Dim1+6)=12),Déc_Dim1+6,\"\"),IF(AND(YEAR(Déc_Dim1+13)=Année_Calendaire,MONTH(Déc_Dim1+13)=12),Déc_Dim1+13,\"\"))","v":"2016-12-10"},{"$f":"IF(DAY(Déc_Dim1)=1,IF(AND(YEAR(Déc_Dim1+7)=Année_Calendaire,MONTH(Déc_Dim1+7)=12),Déc_Dim1+7,\"\"),IF(AND(YEAR(Déc_Dim1+14)=Année_Calendaire,MONTH(Déc_Dim1+14)=12),Déc_Dim1+14,\"\"))","v":"2016-12-11"}]
[null,{"$f":"IF(DAY(Nov_Dim1)=1,IF(AND(YEAR(Nov_Dim1+8)=Année_Calendaire,MONTH(Nov_Dim1+8)=11),Nov_Dim1+8,\"\"),IF(AND(YEAR(Nov_Dim1+15)=Année_Calendaire,MONTH(Nov_Dim1+15)=11),Nov_Dim1+15,\"\"))","v":"2016-11-14"},{"$f":"IF(DAY(Nov_Dim1)=1,IF(AND(YEAR(Nov_Dim1+9)=Année_Calendaire,MONTH(Nov_Dim1+9)=11),Nov_Dim1+9,\"\"),IF(AND(YEAR(Nov_Dim1+16)=Année_Calendaire,MONTH(Nov_Dim1+16)=11),Nov_Dim1+16,\"\"))","v":"2016-11-15"},{"$f":"IF(DAY(Nov_Dim1)=1,IF(AND(YEAR(Nov_Dim1+10)=Année_Calendaire,MONTH(Nov_Dim1+10)=11),Nov_Dim1+10,\"\"),IF(AND(YEAR(Nov_Dim1+17)=Année_Calendaire,MONTH(Nov_Dim1+17)=11),Nov_Dim1+17,\"\"))","v":"2016-11-16"},{"$f":"IF(DAY(Nov_Dim1)=1,IF(AND(YEAR(Nov_Dim1+11)=Année_Calendaire,MONTH(Nov_Dim1+11)=11),Nov_Dim1+11,\"\"),IF(AND(YEAR(Nov_Dim1+18)=Année_Calendaire,MONTH(Nov_Dim1+18)=11),Nov_Dim1+18,\"\"))","v":"2016-11-17"},{"$f":"IF(DAY(Nov_Dim1)=1,IF(AND(YEAR(Nov_Dim1+12)=Année_Calendaire,MONTH(Nov_Dim1+12)=11),Nov_Dim1+12,\"\"),IF(AND(YEAR(Nov_Dim1+19)=Année_Calendaire,MONTH(Nov_Dim1+19)=11),Nov_Dim1+19,\"\"))","v":"2016-11-18"},{"$f":"IF(DAY(Nov_Dim1)=1,IF(AND(YEAR(Nov_Dim1+13)=Année_Calendaire,MONTH(Nov_Dim1+13)=11),Nov_Dim1+13,\"\"),IF(AND(YEAR(Nov_Dim1+20)=Année_Calendaire,MONTH(Nov_Dim1+20)=11),Nov_Dim1+20,\"\"))","v":"2016-11-19"},{"$f":"IF(DAY(Nov_Dim1)=1,IF(AND(YEAR(Nov_Dim1+14)=Année_Calendaire,MONTH(Nov_Dim1+14)=11),Nov_Dim1+14,\"\"),IF(AND(YEAR(Nov_Dim1+21)=Année_Calendaire,MONTH(Nov_Dim1+21)=11),Nov_Dim1+21,\"\"))","v":"2016-11-20"},null,{"$f":"IF(DAY(Déc_Dim1)=1,IF(AND(YEAR(Déc_Dim1+8)=Année_Calendaire,MONTH(Déc_Dim1+8)=12),Déc_Dim1+8,\"\"),IF(AND(YEAR(Déc_Dim1+15)=Année_Calendaire,MONTH(Déc_Dim1+15)=12),Déc_Dim1+15,\"\"))","v":"2016-12-12"},{"$f":"IF(DAY(Déc_Dim1)=1,IF(AND(YEAR(Déc_Dim1+9)=Année_Calendaire,MONTH(Déc_Dim1+9)=12),Déc_Dim1+9,\"\"),IF(AND(YEAR(Déc_Dim1+16)=Année_Calendaire,MONTH(Déc_Dim1+16)=12),Déc_Dim1+16,\"\"))","v":"2016-12-13"},{"$f":"IF(DAY(Déc_Dim1)=1,IF(AND(YEAR(Déc_Dim1+10)=Année_Calendaire,MONTH(Déc_Dim1+10)=12),Déc_Dim1+10,\"\"),IF(AND(YEAR(Déc_Dim1+17)=Année_Calendaire,MONTH(Déc_Dim1+17)=12),Déc_Dim1+17,\"\"))","v":"2016-12-14"},{"$f":"IF(DAY(Déc_Dim1)=1,IF(AND(YEAR(Déc_Dim1+11)=Année_Calendaire,MONTH(Déc_Dim1+11)=12),Déc_Dim1+11,\"\"),IF(AND(YEAR(Déc_Dim1+18)=Année_Calendaire,MONTH(Déc_Dim1+18)=12),Déc_Dim1+18,\"\"))","v":"2016-12-15"},{"$f":"IF(DAY(Déc_Dim1)=1,IF(AND(YEAR(Déc_Dim1+12)=Année_Calendaire,MONTH(Déc_Dim1+12)=12),Déc_Dim1+12,\"\"),IF(AND(YEAR(Déc_Dim1+19)=Année_Calendaire,MONTH(Déc_Dim1+19)=12),Déc_Dim1+19,\"\"))","v":"2016-12-16"},{"$f":"IF(DAY(Déc_Dim1)=1,IF(AND(YEAR(Déc_Dim1+13)=Année_Calendaire,MONTH(Déc_Dim1+13)=12),Déc_Dim1+13,\"\"),IF(AND(YEAR(Déc_Dim1+20)=Année_Calendaire,MONTH(Déc_Dim1+20)=12),Déc_Dim1+20,\"\"))","v":"2016-12-17"},{"$f":"IF(DAY(Déc_Dim1)=1,IF(AND(YEAR(Déc_Dim1+14)=Année_Calendaire,MONTH(Déc_Dim1+14)=12),Déc_Dim1+14,\"\"),IF(AND(YEAR(Déc_Dim1+21)=Année_Calendaire,MONTH(Déc_Dim1+21)=12),Déc_Dim1+21,\"\"))","v":"2016-12-18"}]
[null,{"$f":"IF(DAY(Nov_Dim1)=1,IF(AND(YEAR(Nov_Dim1+15)=Année_Calendaire,MONTH(Nov_Dim1+15)=11),Nov_Dim1+15,\"\"),IF(AND(YEAR(Nov_Dim1+22)=Année_Calendaire,MONTH(Nov_Dim1+22)=11),Nov_Dim1+22,\"\"))","v":"2016-11-21"},{"$f":"IF(DAY(Nov_Dim1)=1,IF(AND(YEAR(Nov_Dim1+16)=Année_Calendaire,MONTH(Nov_Dim1+16)=11),Nov_Dim1+16,\"\"),IF(AND(YEAR(Nov_Dim1+23)=Année_Calendaire,MONTH(Nov_Dim1+23)=11),Nov_Dim1+23,\"\"))","v":"2016-11-22"},{"$f":"IF(DAY(Nov_Dim1)=1,IF(AND(YEAR(Nov_Dim1+17)=Année_Calendaire,MONTH(Nov_Dim1+17)=11),Nov_Dim1+17,\"\"),IF(AND(YEAR(Nov_Dim1+24)=Année_Calendaire,MONTH(Nov_Dim1+24)=11),Nov_Dim1+24,\"\"))","v":"2016-11-23"},{"$f":"IF(DAY(Nov_Dim1)=1,IF(AND(YEAR(Nov_Dim1+18)=Année_Calendaire,MONTH(Nov_Dim1+18)=11),Nov_Dim1+18,\"\"),IF(AND(YEAR(Nov_Dim1+25)=Année_Calendaire,MONTH(Nov_Dim1+25)=11),Nov_Dim1+25,\"\"))","v":"2016-11-24"},{"$f":"IF(DAY(Nov_Dim1)=1,IF(AND(YEAR(Nov_Dim1+19)=Année_Calendaire,MONTH(Nov_Dim1+19)=11),Nov_Dim1+19,\"\"),IF(AND(YEAR(Nov_Dim1+26)=Année_Calendaire,MONTH(Nov_Dim1+26)=11),Nov_Dim1+26,\"\"))","v":"2016-11-25"},{"$f":"IF(DAY(Nov_Dim1)=1,IF(AND(YEAR(Nov_Dim1+20)=Année_Calendaire,MONTH(Nov_Dim1+20)=11),Nov_Dim1+20,\"\"),IF(AND(YEAR(Nov_Dim1+27)=Année_Calendaire,MONTH(Nov_Dim1+27)=11),Nov_Dim1+27,\"\"))","v":"2016-11-26"},{"$f":"IF(DAY(Nov_Dim1)=1,IF(AND(YEAR(Nov_Dim1+21)=Année_Calendaire,MONTH(Nov_Dim1+21)=11),Nov_Dim1+21,\"\"),IF(AND(YEAR(Nov_Dim1+28)=Année_Calendaire,MONTH(Nov_Dim1+28)=11),Nov_Dim1+28,\"\"))","v":"2016-11-27"},null,{"$f":"IF(DAY(Déc_Dim1)=1,IF(AND(YEAR(Déc_Dim1+15)=Année_Calendaire,MONTH(Déc_Dim1+15)=12),Déc_Dim1+15,\"\"),IF(AND(YEAR(Déc_Dim1+22)=Année_Calendaire,MONTH(Déc_Dim1+22)=12),Déc_Dim1+22,\"\"))","v":"2016-12-19"},{"$f":"IF(DAY(Déc_Dim1)=1,IF(AND(YEAR(Déc_Dim1+16)=Année_Calendaire,MONTH(Déc_Dim1+16)=12),Déc_Dim1+16,\"\"),IF(AND(YEAR(Déc_Dim1+23)=Année_Calendaire,MONTH(Déc_Dim1+23)=12),Déc_Dim1+23,\"\"))","v":"2016-12-20"},{"$f":"IF(DAY(Déc_Dim1)=1,IF(AND(YEAR(Déc_Dim1+17)=Année_Calendaire,MONTH(Déc_Dim1+17)=12),Déc_Dim1+17,\"\"),IF(AND(YEAR(Déc_Dim1+24)=Année_Calendaire,MONTH(Déc_Dim1+24)=12),Déc_Dim1+24,\"\"))","v":"2016-12-21"},{"$f":"IF(DAY(Déc_Dim1)=1,IF(AND(YEAR(Déc_Dim1+18)=Année_Calendaire,MONTH(Déc_Dim1+18)=12),Déc_Dim1+18,\"\"),IF(AND(YEAR(Déc_Dim1+25)=Année_Calendaire,MONTH(Déc_Dim1+25)=12),Déc_Dim1+25,\"\"))","v":"2016-12-22"},{"$f":"IF(DAY(Déc_Dim1)=1,IF(AND(YEAR(Déc_Dim1+19)=Année_Calendaire,MONTH(Déc_Dim1+19)=12),Déc_Dim1+19,\"\"),IF(AND(YEAR(Déc_Dim1+26)=Année_Calendaire,MONTH(Déc_Dim1+26)=12),Déc_Dim1+26,\"\"))","v":"2016-12-23"},{"$f":"IF(DAY(Déc_Dim1)=1,IF(AND(YEAR(Déc_Dim1+20)=Année_Calendaire,MONTH(Déc_Dim1+20)=12),Déc_Dim1+20,\"\"),IF(AND(YEAR(Déc_Dim1+27)=Année_Calendaire,MONTH(Déc_Dim1+27)=12),Déc_Dim1+27,\"\"))","v":"2016-12-24"},{"$f":"IF(DAY(Déc_Dim1)=1,IF(AND(YEAR(Déc_Dim1+21)=Année_Calendaire,MONTH(Déc_Dim1+21)=12),Déc_Dim1+21,\"\"),IF(AND(YEAR(Déc_Dim1+28)=Année_Calendaire,MONTH(Déc_Dim1+28)=12),Déc_Dim1+28,\"\"))","v":"2016-12-25"}]
[null,{"$f":"IF(DAY(Nov_Dim1)=1,IF(AND(YEAR(Nov_Dim1+22)=Année_Calendaire,MONTH(Nov_Dim1+22)=11),Nov_Dim1+22,\"\"),IF(AND(YEAR(Nov_Dim1+29)=Année_Calendaire,MONTH(Nov_Dim1+29)=11),Nov_Dim1+29,\"\"))","v":"2016-11-28"},{"$f":"IF(DAY(Nov_Dim1)=1,IF(AND(YEAR(Nov_Dim1+23)=Année_Calendaire,MONTH(Nov_Dim1+23)=11),Nov_Dim1+23,\"\"),IF(AND(YEAR(Nov_Dim1+30)=Année_Calendaire,MONTH(Nov_Dim1+30)=11),Nov_Dim1+30,\"\"))","v":"2016-11-29"},{"$f":"IF(DAY(Nov_Dim1)=1,IF(AND(YEAR(Nov_Dim1+24)=Année_Calendaire,MONTH(Nov_Dim1+24)=11),Nov_Dim1+24,\"\"),IF(AND(YEAR(Nov_Dim1+31)=Année_Calendaire,MONTH(Nov_Dim1+31)=11),Nov_Dim1+31,\"\"))","v":"2016-11-30"},{"$f":"IF(DAY(Nov_Dim1)=1,IF(AND(YEAR(Nov_Dim1+25)=Année_Calendaire,MONTH(Nov_Dim1+25)=11),Nov_Dim1+25,\"\"),IF(AND(YEAR(Nov_Dim1+32)=Année_Calendaire,MONTH(Nov_Dim1+32)=11),Nov_Dim1+32,\"\"))","v":""},{"$f":"IF(DAY(Nov_Dim1)=1,IF(AND(YEAR(Nov_Dim1+26)=Année_Calendaire,MONTH(Nov_Dim1+26)=11),Nov_Dim1+26,\"\"),IF(AND(YEAR(Nov_Dim1+33)=Année_Calendaire,MONTH(Nov_Dim1+33)=11),Nov_Dim1+33,\"\"))","v":""},{"$f":"IF(DAY(Nov_Dim1)=1,IF(AND(YEAR(Nov_Dim1+27)=Année_Calendaire,MONTH(Nov_Dim1+27)=11),Nov_Dim1+27,\"\"),IF(AND(YEAR(Nov_Dim1+34)=Année_Calendaire,MONTH(Nov_Dim1+34)=11),Nov_Dim1+34,\"\"))","v":""},{"$f":"IF(DAY(Nov_Dim1)=1,IF(AND(YEAR(Nov_Dim1+28)=Année_Calendaire,MONTH(Nov_Dim1+28)=11),Nov_Dim1+28,\"\"),IF(AND(YEAR(Nov_Dim1+35)=Année_Calendaire,MONTH(Nov_Dim1+35)=11),Nov_Dim1+35,\"\"))","v":""},null,{"$f":"IF(DAY(Déc_Dim1)=1,IF(AND(YEAR(Déc_Dim1+22)=Année_Calendaire,MONTH(Déc_Dim1+22)=12),Déc_Dim1+22,\"\"),IF(AND(YEAR(Déc_Dim1+29)=Année_Calendaire,MONTH(Déc_Dim1+29)=12),Déc_Dim1+29,\"\"))","v":"2016-12-26"},{"$f":"IF(DAY(Déc_Dim1)=1,IF(AND(YEAR(Déc_Dim1+23)=Année_Calendaire,MONTH(Déc_Dim1+23)=12),Déc_Dim1+23,\"\"),IF(AND(YEAR(Déc_Dim1+30)=Année_Calendaire,MONTH(Déc_Dim1+30)=12),Déc_Dim1+30,\"\"))","v":"2016-12-27"},{"$f":"IF(DAY(Déc_Dim1)=1,IF(AND(YEAR(Déc_Dim1+24)=Année_Calendaire,MONTH(Déc_Dim1+24)=12),Déc_Dim1+24,\"\"),IF(AND(YEAR(Déc_Dim1+31)=Année_Calendaire,MONTH(Déc_Dim1+31)=12),Déc_Dim1+31,\"\"))","v":"2016-12-28"},{"$f":"IF(DAY(Déc_Dim1)=1,IF(AND(YEAR(Déc_Dim1+25)=Année_Calendaire,MONTH(Déc_Dim1+25)=12),Déc_Dim1+25,\"\"),IF(AND(YEAR(Déc_Dim1+32)=Année_Calendaire,MONTH(Déc_Dim1+32)=12),Déc_Dim1+32,\"\"))","v":"2016-12-29"},{"$f":"IF(DAY(Déc_Dim1)=1,IF(AND(YEAR(Déc_Dim1+26)=Année_Calendaire,MONTH(Déc_Dim1+26)=12),Déc_Dim1+26,\"\"),IF(AND(YEAR(Déc_Dim1+33)=Année_Calendaire,MONTH(Déc_Dim1+33)=12),Déc_Dim1+33,\"\"))","v":"2016-12-30"},{"$f":"IF(DAY(Déc_Dim1)=1,IF(AND(YEAR(Déc_Dim1+27)=Année_Calendaire,MONTH(Déc_Dim1+27)=12),Déc_Dim1+27,\"\"),IF(AND(YEAR(Déc_Dim1+34)=Année_Calendaire,MONTH(Déc_Dim1+34)=12),Déc_Dim1+34,\"\"))","v":"2016-12-31"},{"$f":"IF(DAY(Déc_Dim1)=1,IF(AND(YEAR(Déc_Dim1+28)=Année_Calendaire,MONTH(Déc_Dim1+28)=12),Déc_Dim1+28,\"\"),IF(AND(YEAR(Déc_Dim1+35)=Année_Calendaire,MONTH(Déc_Dim1+35)=12),Déc_Dim1+35,\"\"))","v":""}]
[null,{"$f":"IF(DAY(Nov_Dim1)=1,IF(AND(YEAR(Nov_Dim1+29)=Année_Calendaire,MONTH(Nov_Dim1+29)=11),Nov_Dim1+29,\"\"),IF(AND(YEAR(Nov_Dim1+36)=Année_Calendaire,MONTH(Nov_Dim1+36)=11),Nov_Dim1+36,\"\"))","v":""},{"$f":"IF(DAY(Nov_Dim1)=1,IF(AND(YEAR(Nov_Dim1+30)=Année_Calendaire,MONTH(Nov_Dim1+30)=11),Nov_Dim1+30,\"\"),IF(AND(YEAR(Nov_Dim1+37)=Année_Calendaire,MONTH(Nov_Dim1+37)=11),Nov_Dim1+37,\"\"))","v":""},{"$f":"IF(DAY(Nov_Dim1)=1,IF(AND(YEAR(Nov_Dim1+31)=Année_Calendaire,MONTH(Nov_Dim1+31)=11),Nov_Dim1+31,\"\"),IF(AND(YEAR(Nov_Dim1+38)=Année_Calendaire,MONTH(Nov_Dim1+38)=11),Nov_Dim1+38,\"\"))","v":""},{"$f":"IF(DAY(Nov_Dim1)=1,IF(AND(YEAR(Nov_Dim1+32)=Année_Calendaire,MONTH(Nov_Dim1+32)=11),Nov_Dim1+32,\"\"),IF(AND(YEAR(Nov_Dim1+39)=Année_Calendaire,MONTH(Nov_Dim1+39)=11),Nov_Dim1+39,\"\"))","v":""},{"$f":"IF(DAY(Nov_Dim1)=1,IF(AND(YEAR(Nov_Dim1+33)=Année_Calendaire,MONTH(Nov_Dim1+33)=11),Nov_Dim1+33,\"\"),IF(AND(YEAR(Nov_Dim1+40)=Année_Calendaire,MONTH(Nov_Dim1+40)=11),Nov_Dim1+40,\"\"))","v":""},{"$f":"IF(DAY(Nov_Dim1)=1,IF(AND(YEAR(Nov_Dim1+34)=Année_Calendaire,MONTH(Nov_Dim1+34)=11),Nov_Dim1+34,\"\"),IF(AND(YEAR(Nov_Dim1+41)=Année_Calendaire,MONTH(Nov_Dim1+41)=11),Nov_Dim1+41,\"\"))","v":""},{"$f":"IF(DAY(Nov_Dim1)=1,IF(AND(YEAR(Nov_Dim1+35)=Année_Calendaire,MONTH(Nov_Dim1+35)=11),Nov_Dim1+35,\"\"),IF(AND(YEAR(Nov_Dim1+42)=Année_Calendaire,MONTH(Nov_Dim1+42)=11),Nov_Dim1+42,\"\"))","v":""},null,{"$f":"IF(DAY(Déc_Dim1)=1,IF(AND(YEAR(Déc_Dim1+29)=Année_Calendaire,MONTH(Déc_Dim1+29)=12),Déc_Dim1+29,\"\"),IF(AND(YEAR(Déc_Dim1+36)=Année_Calendaire,MONTH(Déc_Dim1+36)=12),Déc_Dim1+36,\"\"))","v":""},{"$f":"IF(DAY(Déc_Dim1)=1,IF(AND(YEAR(Déc_Dim1+30)=Année_Calendaire,MONTH(Déc_Dim1+30)=12),Déc_Dim1+30,\"\"),IF(AND(YEAR(Déc_Dim1+37)=Année_Calendaire,MONTH(Déc_Dim1+37)=12),Déc_Dim1+37,\"\"))","v":""},{"$f":"IF(DAY(Déc_Dim1)=1,IF(AND(YEAR(Déc_Dim1+31)=Année_Calendaire,MONTH(Déc_Dim1+31)=12),Déc_Dim1+31,\"\"),IF(AND(YEAR(Déc_Dim1+38)=Année_Calendaire,MONTH(Déc_Dim1+38)=12),Déc_Dim1+38,\"\"))","v":""},{"$f":"IF(DAY(Déc_Dim1)=1,IF(AND(YEAR(Déc_Dim1+32)=Année_Calendaire,MONTH(Déc_Dim1+32)=12),Déc_Dim1+32,\"\"),IF(AND(YEAR(Déc_Dim1+39)=Année_Calendaire,MONTH(Déc_Dim1+39)=12),Déc_Dim1+39,\"\"))","v":""},{"$f":"IF(DAY(Déc_Dim1)=1,IF(AND(YEAR(Déc_Dim1+33)=Année_Calendaire,MONTH(Déc_Dim1+33)=12),Déc_Dim1+33,\"\"),IF(AND(YEAR(Déc_Dim1+40)=Année_Calendaire,MONTH(Déc_Dim1+40)=12),Déc_Dim1+40,\"\"))","v":""},{"$f":"IF(DAY(Déc_Dim1)=1,IF(AND(YEAR(Déc_Dim1+34)=Année_Calendaire,MONTH(Déc_Dim1+34)=12),Déc_Dim1+34,\"\"),IF(AND(YEAR(Déc_Dim1+41)=Année_Calendaire,MONTH(Déc_Dim1+41)=12),Déc_Dim1+41,\"\"))","v":""},{"$f":"IF(DAY(Déc_Dim1)=1,IF(AND(YEAR(Déc_Dim1+35)=Année_Calendaire,MONTH(Déc_Dim1+35)=12),Déc_Dim1+35,\"\"),IF(AND(YEAR(Déc_Dim1+42)=Année_Calendaire,MONTH(Déc_Dim1+42)=12),Déc_Dim1+42,\"\"))","v":""}]

{"sheet":"OLSA Mensuelle","index":4,"n_rows":1,"n_cols":2,"rows_kept":1,"cut":false,"hidden":false,"merged":[[0,1,0,16],[1,1,48,8],[1,9,48,16]]}
[null,"MAINTENANCE PREVENTIVE MENSUELLE MACEF "]

{"sheet":"OLSA Semestrielle","index":5,"n_rows":1,"n_cols":2,"rows_kept":1,"cut":false,"hidden":false,"merged":[[0,1,0,16],[1,1,48,8],[1,9,48,16]]}
[null,"MAINTENANCE PREVENTIVE Semestrielle MACEF "]

{"sheet":"OLSA Annuelle","index":6,"n_rows":1,"n_cols":2,"rows_kept":1,"cut":false,"hidden":false,"merged":[[0,1,0,32],[1,1,48,8],[1,9,48,16],[1,17,48,24],[1,25,48,32]]}
[null,"MAINTENANCE PREVENTIVE ANNUELLE MACEF "]

{"sheet":"BJA Mensuelle","index":7,"n_rows":1,"n_cols":2,"rows_kept":1,"cut":false,"hidden":false,"merged":[[1,1,48,8],[0,1,0,8]]}
[null,"MAINTENANCE PREVENTIVE MENSUELLE BJA"]

{"sheet":"BJA Annuelle","index":8,"n_rows":1,"n_cols":2,"rows_kept":1,"cut":false,"hidden":false,"merged":[[1,1,48,8],[1,9,48,16],[0,1,0,16]]}
[null,"MAINTENANCE PREVENTIVE ANNUELLE BJA"]

{"sheet":"Planning","index":9,"n_rows":15,"n_cols":14,"rows_kept":15,"cut":false,"hidden":false,"merged":[[0,1,0,13],[11,1,11,13],[12,1,14,1],[12,2,12,4],[13,2,13,4],[14,2,14,4]]}
[null,"PLANNING MAINTENANCE EQUIPEMENTS FABRICATION"]
[null,null,"Janvier","Février","Mars","Avril","Mai","Juin","Juillet","Août","Septembre","Octobre","Novembre","Décembre"]
[null,"BJA","Annuelle","Mensuelle","Mensuelle","Mensuelle","Mensuelle","Mensuelle","Mensuelle","Mensuelle","Mensuelle","Mensuelle","Mensuelle","Mensuelle"]
[null,"MACEF 100L ROUGE","Annuelle","Mensuelle","Mensuelle","Mensuelle","Mensuelle","Mensuelle","Semestrielle","Mensuelle","Mensuelle","Mensuelle","Mensuelle","Mensuelle"]
[null,"MACEF 50L NOIR","Annuelle","Mensuelle","Mensuelle","Mensuelle","Mensuelle","Mensuelle","Semestrielle","Mensuelle","Mensuelle","Mensuelle","Mensuelle","Mensuelle"]
[null,"MACEF 50L VIOLETTE","Mensuelle","Annuelle","Mensuelle","Mensuelle","Mensuelle","Mensuelle","Mensuelle","Semestrielle","Mensuelle","Mensuelle","Mensuelle","Mensuelle"]
[null,"MACEF 50L GRISE","Mensuelle","Annuelle","Mensuelle","Mensuelle","Mensuelle","Mensuelle","Mensuelle","Semestrielle","Mensuelle","Mensuelle","Mensuelle","Mensuelle"]
[null,"MACEF 50L MARINE","Mensuelle","Annuelle","Mensuelle","Mensuelle","Mensuelle","Mensuelle","Mensuelle","Semestrielle","Mensuelle","Mensuelle","Mensuelle","Mensuelle"]
[null,"MACEF 100 L CIEL","Mensuelle","Mensuelle","Annuelle","Mensuelle","Mensuelle","Mensuelle","Mensuelle","Mensuelle","Semestrielle","Mensuelle","Mensuelle","Mensuelle"]
[null,"MACEF 100 L PEPPER","Mensuelle","Mensuelle","Annuelle","Mensuelle","Mensuelle","Mensuelle","Mensuelle","Mensuelle","Semestrielle","Mensuelle","Mensuelle","Mensuelle"]
[null,"MACEF 50L MELON","Mensuelle","Mensuelle","Annuelle","Mensuelle","Mensuelle","Mensuelle","Mensuelle","Mensuelle","Semestrielle","Mensuelle","Mensuelle","Mensuelle"]
[]
[null,"Légende","Maintenance preventive mensuelle"]
[null,null,"Maintenance preventive semestrielle"]
[null,null,"Maintenance preventive annuelle"]

{"sheet":"Listes","index":10,"n_rows":71,"n_cols":13,"rows_kept":71,"cut":false,"hidden":false,"merged":[]}
["Fchier des techniciens"]
[]
["Demandeur",null,null,"Priorité",null,null,"Equipement",null,null,"Etat",null,null,"Panne"]
["BELLI Karim",null,null,"Haute",null,null,"MACEF  BLEU CLAIR",null,null,"En cours",null,null,"Vanne de vidange"]
["BERAHA Corinne",null,null,"Moyenne",null,null,"MACEF JAUNE",null,null,"Terminé",null,null,"Vanne d'intro"]
["BOUSQUIE Stéphane",null,null,"Faible",null,null,"MACEF MARINE",null,null,null,null,null,"Le vide"]
["CAUWEL Séverine",null,null,null,null,null,"MACEF MELON",null,null,null,null,null,"Problème de chauffe"]
["EL AZZAOUI Morad",null,null,null,null,null,"MACEF NOIR",null,null,null,null,null,"Problème de refroidissement"]
["GODEFROID Nathalie",null,null,null,null,null,"MACEF PEPRMINT",null,null,null,null,null,"Joint de dome"]
["LEGRIS Aurelie",null,null,null,null,null,"MACEF ROUGE",null,null,null,null,null,"Essuie glace"]
["LISCIATI Remy",null,null,null,null,null,"MACEF GRISE",null,null,null,null,null,"Problème midjet"]
["NOURY David",null,null,null,null,null,"MACEF VIOLET",null,null,null,null,null,"Bouton poussoir"]
["OUALI Medhi",null,null,null,null,null,"GUERIN N°1",null,null,null,null,null,"Voyant lumieux"]
["SALVI Jean-Christophe",null,null,null,null,null,"GUERIN N°2",null,null,null,null,null,"Turbine"]
[null,null,null,null,null,null,"GUERIN 50L",null,null,null,null,null,"Pale"]
[null,null,null,null,null,null,"DYNOMILL"]
[null,null,null,null,null,null,"UNIMIX"]
[null,null,null,null,null,null,"KALIX KX60"]
[null,null,null,null,null,null,"KALIX KX400"]
[null,null,null,null,null,null,"CITUS"]
[null,null,null,null,null,null,"FLEXICON"]
[null,null,null,null,null,null,"DELAU MASCARRA"]
[null,null,null,null,null,null,"VETRACO"]
[null,null,null,null,null,null,"DELAU 208"]
[null,null,null,null,null,null,"DELAU 209"]
[null,null,null,null,null,null,"DELAU 210"]
[null,null,null,null,null,null,"DELAU 215"]
[null,null,null,null,null,null,"BROYEUR BLEU MARINE"]
[null,null,null,null,null,null,"BROYEUR BLEU CIEL"]
[null,null,null,null,null,null,"BROYEUR ROUGE"]
[null,null,null,null,null,null,"BROYEUR ORANGE"]
[null,null,null,null,null,null,"BROYEUR 3L VIOLET"]
[null,null,null,null,null,null,"BROYEUR ORANGE"]
[null,null,null,null,null,null,"KRIEGER"]
[null,null,null,null,null,null,"FONDOIR N°1"]
[null,null,null,null,null,null,"FONDOIR N°2"]
[null,null,null,null,null,null,"FONDOIR  N°3"]
[null,null,null,null,null,null,"FONDOIR  N°4"]
[null,null,null,null,null,null,"FONDOIR  N°5"]
[null,null,null,null,null,null,"FONDOIR  N°6"]
[null,null,null,null,null,null,"FONDOIR  N°7"]
[null,null,null,null,null,null,"FONDOIR  N°8"]
[null,null,null,null,null,null,"FONDOIR  N°9"]
[null,null,null,null,null,null,"FONDOIR  N°11"]
[null,null,null,null,null,null,"FONDOIR  N°12"]
[null,null,null,null,null,null,"FONDOIR N°33"]
[null,null,null,null,null,null,"FONDOIR N°44"]
[null,null,null,null,null,null,"NETZSCH"]
[null,null,null,null,null,null,"Elevateur elec"]
[null,null,null,null,null,null,"TPS"]
[null,null,null,null,null,null,"Plot N°10A"]
[null,null,null,null,null,null,"Plot N°10B"]
[null,null,null,null,null,null,"BPlot N°07A"]
[null,null,null,null,null,null,"BPlot N°07B"]
[null,null,null,null,null,null,"Plot N°3"]
[null,null,null,null,null,null,"SKID PARFUM"]
[null,null,null,null,null,null,"25L ADF"]
[null,null,null,null,null,null,"100L ADF"]
[null,null,null,null,null,null,"GUERIN 50L"]
[null,null,null,null,null,null,"BOX N°1"]
[null,null,null,null,null,null,"BOX N°2"]
[null,null,null,null,null,null,"BOX N°3"]
[null,null,null,null,null,null,"BOX N°4"]
[null,null,null,null,null,null,"BOX N°5"]
[null,null,null,null,null,null,"BJA"]
[null,null,null,null,null,null,"Maxilab"]
[null,null,null,null,null,null,"RAL 10L Fondoir Olsa "]
[null,null,null,null,null,null,"KITNETT"]
[null,null,null,null,null,null,"BAKER 24 L NOVAMIX"]
[null,null,null,null,null,null,"BAKER 10L"]
[null,null,null,null,null,null,"BAKER 24 L SICOS"]

{"sheet":"Paramètres","index":11,"n_rows":18,"n_cols":3,"rows_kept":18,"cut":false,"hidden":false,"merged":[]}
["Raison sociale",",,,"]
["Titre","Demande d'intervention"]
["Cellule de Panne :",{"$f":"VLOOKUP(Listes!M4,Tableau5[[#All],[Panne]],1,FALSE)","v":"Vanne de vidange"}]
["Cellule de travail :",{"$f":"VLOOKUP(\"\", Liste_Demandeur,1,FALSE)","v":{"$error":"#N/A"}}]
["Cellule de pièce :",{"$f":"IFERROR(VLOOKUP(\"3333\", Pièces,5,FALSE), \"\")","v":""}]
["Cellule de priorité",{"$f":"VLOOKUP(\"\", Liste_Priorité,1,FALSE)","v":{"$error":"#N/A"}}]
["Cellule d'Equipement",{"$f":"VLOOKUP(\"\", Liste_Equipement,1,FALSE)","v":{"$error":"#N/A"}}]
["Cellule demandeur",{"$f":"VLOOKUP(Listes!A4,Tableau2[[#All],[Demandeur]],1,FALSE)","v":"BELLI Karim"}]
["Pièce","Référence",{"$f":"IFERROR(MATCH(VD_Pièce,Liste_Pièces,0)-1,0)","v":0}]
["Fournisseur","Libellé",{"$f":"IFERROR(MATCH(VD_Fournisseur,Liste_Fournisseurs,0)-1,0)","v":0}]
["Demandeur","Libellé",{"$f":"IFERROR(MATCH(VD_Demandeur,Liste_Demandeur,0)-1,0)","v":0}]
["Priorité","Libellé",{"$f":"IFERROR(MATCH(VD_Demandeur,Liste_Demandeur,0)-1,0)","v":0}]
["Panne"]
["Personnalisation du classeur"]
["Appliquer plein écran ?","non"]
["Afficher formules ?","non"]
["Afficher feuilles ?","oui"]
["Afficher entêtes ?","oui"]